BODY,BODY NAME,SERVICE CODE,ORGANISATIONAL UNIT,ORGANISATIONAL UNIT CODE,EXPENDITURE CATEGORY,EXPENDITURE CODE,DATE (POSTING DATE),TRANSACTION NUMBER,AMOUNT,SUPPLIER NAME,SUPPLIER ID
WARRINGTON BOROUGH COUNCIL,http://opendatacommunities.org/id/unitary-authority/warrington,FWB,Collaborative Training Group,33301,Training,190150,07/12/2018,5100377617,3129,Clarity Travel Management,100576
WARRINGTON BOROUGH COUNCIL,http://opendatacommunities.org/id/unitary-authority/warrington,FWB,DSG Post-16 Special Educational Needs,32309,Materials,400500,04/09/2019,5100391058,6642.15,The Together Trust,101518
WARRINGTON BOROUGH COUNCIL,http://opendatacommunities.org/id/unitary-authority/warrington,ENO,Open Spaces,82006,Materials,400500,10/09/2019,5100391865,38232.67,Wicksteed Leisure Ltd,105436
WARRINGTON BOROUGH COUNCIL,http://opendatacommunities.org/id/unitary-authority/warrington,ENO,Open Spaces,82006,Materials,400500,04/09/2019,5100392754,43589.57,Wicksteed Leisure Ltd,105436
WARRINGTON BOROUGH COUNCIL,http://opendatacommunities.org/id/unitary-authority/warrington,FWB,DSG Post-16 Special Educational Needs,32309,Materials,400500,16/09/2019,5100392957,19244.25,The Together Trust,101518
WARRINGTON BOROUGH COUNCIL,http://opendatacommunities.org/id/unitary-authority/warrington,ET0,Street Lighting Client,44241,Lighting Energy Char,531550,03/09/2019,5100393304,8798.22,Npower Electricity,101884
WARRINGTON BOROUGH COUNCIL,http://opendatacommunities.org/id/unitary-authority/warrington,FWB,DSG Inter Authority Recoupment,32009,Fees (Including Agents Fees),441450,04/09/2019,5100394261,3400.5,St Hughs Catholic Primary School,400217
WARRINGTON BOROUGH COUNCIL,http://opendatacommunities.org/id/unitary-authority/warrington,ET0,Street Lighting Contractor,44240,Training,190150,04/09/2019,5100395043,700,Cable Detection Ltd,110743
WARRINGTON BOROUGH COUNCIL,http://opendatacommunities.org/id/unitary-authority/warrington,ET0,Street Lighting Contractor,44240,Training,190150,04/09/2019,5100395044,700,Cable Detection Ltd,110743
WARRINGTON BOROUGH COUNCIL,http://opendatacommunities.org/id/unitary-authority/warrington,NEP,Neighbourhood & Community Services,83000,Equipment Purchase & Contract,400000,22/07/2019,5100395878,2856.77,Livewire,110692
WARRINGTON BOROUGH COUNCIL,http://opendatacommunities.org/id/unitary-authority/warrington,FWB,Care Call,54550,Health Awareness,441950,04/07/2019,5100396031,2500,Tynetec Ltd,108750
WARRINGTON BOROUGH COUNCIL,http://opendatacommunities.org/id/unitary-authority/warrington,FWB,Contracts - SM Commissioning Team 1,55910,Public Health Contract Payments,540000,26/07/2019,5100397560,6250,Warrington Primary Care Trust,103360
WARRINGTON BOROUGH COUNCIL,http://opendatacommunities.org/id/unitary-authority/warrington,FWB,Fair Trading & Investigations,41500,Training,190150,03/07/2019,5100397769,975,Mallard Consultancy Ltd,116605
WARRINGTON BOROUGH COUNCIL,http://opendatacommunities.org/id/unitary-authority/warrington,NEO,Neighbourhood & Community Other,83002,Consult.& Prof. Serv,440000,08/08/2019,5100398247,8330,Baker Mallett LLP,116160
WARRINGTON BOROUGH COUNCIL,http://opendatacommunities.org/id/unitary-authority/warrington,ET0,Trees & Woodland Services,41421,Training,190150,09/07/2019,5100398624,1050,Arboricultural Association,116373
WARRINGTON BOROUGH COUNCIL,http://opendatacommunities.org/id/unitary-authority/warrington,DG0,New Town House,45168,Consult.& Prof. Serv,440000,04/09/2019,5100398916,19550,BESA Publications Ltd,115184
WARRINGTON BOROUGH COUNCIL,http://opendatacommunities.org/id/unitary-authority/warrington,NEO,IT Projects,83003,Computer Hardware - Purchase,450700,16/07/2019,5100399200,2666.6,Probrand Ltd,102886
WARRINGTON BOROUGH COUNCIL,http://opendatacommunities.org/id/unitary-authority/warrington,RSC,Central Procurement,53270,Licences,492000,17/07/2019,5100399328,2200,Proactis Limited,108741
WARRINGTON BOROUGH COUNCIL,http://opendatacommunities.org/id/unitary-authority/warrington,FWB,Fostering Team,31105,Fees (Including Agents Fees),441450,04/09/2019,5100399675,716.66,Gullivers World Ltd,102253
WARRINGTON BOROUGH COUNCIL,http://opendatacommunities.org/id/unitary-authority/warrington,ET0,Transport Holding Account,41311,Maintenance Work - Sub Contractors,301150,04/09/2019,5100399765,640.56,Van Conversion Ltd,117052
WARRINGTON BOROUGH COUNCIL,http://opendatacommunities.org/id/unitary-authority/warrington,ET0,Facilities Management,41422,Training,190150,26/07/2019,5100399796,1250,Wilkinson Welding Academy,117275
WARRINGTON BOROUGH COUNCIL,http://opendatacommunities.org/id/unitary-authority/warrington,ET0,Building Cleaning Revenue,41112,Equipment Purchase & Contract,400000,24/07/2019,5100399860,1545.2,Bunzl Cleaning And Hygiene Supplies,104650
WARRINGTON BOROUGH COUNCIL,http://opendatacommunities.org/id/unitary-authority/warrington,ENO,Highways LTP,82004,Traffic Section,531150,26/07/2019,5100400124,7473.06,Cubic Transportation Systems Ltd,115689
WARRINGTON BOROUGH COUNCIL,http://opendatacommunities.org/id/unitary-authority/warrington,FWB,Sankey Bridges CH,51239,Computer Hardware - Purchase,450700,27/08/2019,5100400328,862.2,TNP - The Networking People,110271
WARRINGTON BOROUGH COUNCIL,http://opendatacommunities.org/id/unitary-authority/warrington,FWB,Sankey Bridges CH,51239,Computer Hardware - Purchase,450700,27/08/2019,5100400328,600,TNP - The Networking People,110271
WARRINGTON BOROUGH COUNCIL,http://opendatacommunities.org/id/unitary-authority/warrington,NEO,IT Projects,83003,Computer Hardware - Purchase,450700,27/08/2019,5100400588,1902.3,Probrand Ltd,102886
WARRINGTON BOROUGH COUNCIL,http://opendatacommunities.org/id/unitary-authority/warrington,ET0,Core Operational Business,41730,Grounds Maintenance - External,280000,02/08/2019,5100400704,769.6,Rigby Taylor Ltd,105070
WARRINGTON BOROUGH COUNCIL,http://opendatacommunities.org/id/unitary-authority/warrington,ET0,Schools (Street Scene),41733,Grounds Maintenance - External,280000,02/08/2019,5100400704,790.4,Rigby Taylor Ltd,105070
WARRINGTON BOROUGH COUNCIL,http://opendatacommunities.org/id/unitary-authority/warrington,ENO,Open Spaces,82006,Materials,400500,12/09/2019,5100400977,86033.59,Wicksteed Leisure Ltd,105436
WARRINGTON BOROUGH COUNCIL,http://opendatacommunities.org/id/unitary-authority/warrington,FWB,DSG Inter Authority Recoupment,32009,Fees (Including Agents Fees),441450,04/09/2019,5100401236,26826,Halton Borough Council,410008
WARRINGTON BOROUGH COUNCIL,http://opendatacommunities.org/id/unitary-authority/warrington,ET0,Development Control,43430,Consult.& Prof. Serv,440000,07/08/2019,5100401286,1879.38,Vivid Resourcing Limited,115752
WARRINGTON BOROUGH COUNCIL,http://opendatacommunities.org/id/unitary-authority/warrington,ET0,Development Control,43430,Consult.& Prof. Serv,440000,07/08/2019,5100401287,656.5,Vivid Resourcing Limited,115752
WARRINGTON BOROUGH COUNCIL,http://opendatacommunities.org/id/unitary-authority/warrington,ET0,Development Control,43430,Consult.& Prof. Serv,440000,07/08/2019,5100401288,852.86,Vivid Resourcing Limited,115752
WARRINGTON BOROUGH COUNCIL,http://opendatacommunities.org/id/unitary-authority/warrington,ET0,Development Control,43430,Consult.& Prof. Serv,440000,07/08/2019,5100401289,929.25,Vivid Resourcing Limited,115752
WARRINGTON BOROUGH COUNCIL,http://opendatacommunities.org/id/unitary-authority/warrington,ET0,Development Control,43430,Consult.& Prof. Serv,440000,07/08/2019,5100401290,1391.25,Vivid Resourcing Limited,115752
WARRINGTON BOROUGH COUNCIL,http://opendatacommunities.org/id/unitary-authority/warrington,FWB,Equipment Store,54930,Equipment Purchase & Contract,400000,07/08/2019,5100401316,750,Nottingham Rehab Limited,101513
WARRINGTON BOROUGH COUNCIL,http://opendatacommunities.org/id/unitary-authority/warrington,RSC,HR Advisory,20005,Legal Costs Incurred,440200,07/08/2019,5100401331,864,Weightmans Office AC,101452
WARRINGTON BOROUGH COUNCIL,http://opendatacommunities.org/id/unitary-authority/warrington,ET0,Development Control,43430,Consult.& Prof. Serv,440000,07/08/2019,5100401333,825,Vivid Resourcing Limited,115752
WARRINGTON BOROUGH COUNCIL,http://opendatacommunities.org/id/unitary-authority/warrington,PIO,People & Improvement Other,85002,Consult.& Prof. Serv,440000,07/08/2019,5100401343,2520,Mpulse Ltd,101462
WARRINGTON BOROUGH COUNCIL,http://opendatacommunities.org/id/unitary-authority/warrington,ET0,Development Control,43430,Consult.& Prof. Serv,440000,08/08/2019,5100401382,1000,Park Avenue Recruitment Limited,116840
WARRINGTON BOROUGH COUNCIL,http://opendatacommunities.org/id/unitary-authority/warrington,RSC,IT - Contracts,23600,Computer Software - Maintenance,450850,06/09/2019,5100401385,1450,Centre For Assessment Ltd,103443
WARRINGTON BOROUGH COUNCIL,http://opendatacommunities.org/id/unitary-authority/warrington,RSC,Translation Service,52202,Agency Supply ,180000,15/08/2019,5100401391,6075.67,DA Languages Ltd,115660
WARRINGTON BOROUGH COUNCIL,http://opendatacommunities.org/id/unitary-authority/warrington,FWB,Contracts - SM Commissioning Team 1,55910,Drug Action,443600,08/08/2019,5100401393,8149,Liverpool John Moores University,101442
WARRINGTON BOROUGH COUNCIL,http://opendatacommunities.org/id/unitary-authority/warrington,ET0,Urban Traffic Management Control,44370,Signal Equipment,531650,08/08/2019,5100401422,3690.47,Siemens PLC,101162
WARRINGTON BOROUGH COUNCIL,http://opendatacommunities.org/id/unitary-authority/warrington,ET0,Urban Traffic Management Control,44370,Signal Equipment,531650,08/08/2019,5100401423,562.84,Siemens PLC,101162
WARRINGTON BOROUGH COUNCIL,http://opendatacommunities.org/id/unitary-authority/warrington,ET0,Urban Traffic Management Control,44370,Signal Equipment,531650,08/08/2019,5100401424,546.32,Siemens PLC,101162
WARRINGTON BOROUGH COUNCIL,http://opendatacommunities.org/id/unitary-authority/warrington,HOL,Insurance Fund,91100,Insurance Premium,443350,08/08/2019,5100401436,6851.27,Arthur Gallagher Insurance Brokers,115534
WARRINGTON BOROUGH COUNCIL,http://opendatacommunities.org/id/unitary-authority/warrington,ET0,Development Control,43430,Other Advertising & Publicity,450050,11/09/2019,5100401469,802.12,TMP UK Ltd,108498
WARRINGTON BOROUGH COUNCIL,http://opendatacommunities.org/id/unitary-authority/warrington,RSC,IT - Contracts,23600,Computer Software - Maintenance,450850,08/08/2019,5100401492,2964.2,Softcat,109539
WARRINGTON BOROUGH COUNCIL,http://opendatacommunities.org/id/unitary-authority/warrington,ET0,Crematorium,41411,Consult.& Prof. Serv,440000,08/08/2019,5100401494,810,Redacted for personal data,117122
WARRINGTON BOROUGH COUNCIL,http://opendatacommunities.org/id/unitary-authority/warrington,NEO,IT Projects,83003,Computer Software - Purchase,450800,08/08/2019,5100401496,20354.82,Softcat,109539
WARRINGTON BOROUGH COUNCIL,http://opendatacommunities.org/id/unitary-authority/warrington,FWB,Trading Standards North West,41564,"Campaigns,  Projects and Events",491950,12/08/2019,5100401608,610.03,Knowsley Metropolitan Borough,410024
WARRINGTON BOROUGH COUNCIL,http://opendatacommunities.org/id/unitary-authority/warrington,ENO,Highways Other,82005,Maintenance of Plant & Machinery,250050,12/08/2019,5100401717,29653.59,Acrypol Products Limited,117067
WARRINGTON BOROUGH COUNCIL,http://opendatacommunities.org/id/unitary-authority/warrington,RSC,Professional Development Centre,21000,Learning Resources,400100,12/08/2019,5100401727,23965,Learning Pool Limited,102937
WARRINGTON BOROUGH COUNCIL,http://opendatacommunities.org/id/unitary-authority/warrington,ET0,Development Control,43430,Other Advertising & Publicity,450050,12/08/2019,5100401735,1225.52,TMP UK Ltd,108498
WARRINGTON BOROUGH COUNCIL,http://opendatacommunities.org/id/unitary-authority/warrington,FWB,Outreach,54090,Rent Of Premises,220000,04/09/2019,5100401738,924,Culture Warrington,100957
WARRINGTON BOROUGH COUNCIL,http://opendatacommunities.org/id/unitary-authority/warrington,PIO,People & Improvement Other,85002,Consult.& Prof. Serv,440000,12/08/2019,5100401739,2395,Walker Simpson Architects,115058
WARRINGTON BOROUGH COUNCIL,http://opendatacommunities.org/id/unitary-authority/warrington,FWB,CIN Team 6,31016,Looked after children in Warrington,301000,13/08/2019,5100401805,620,Lextox,114551
WARRINGTON BOROUGH COUNCIL,http://opendatacommunities.org/id/unitary-authority/warrington,FWB,CIN Team 6,31016,Looked after children in Warrington,301000,13/08/2019,5100401806,660,Lextox,114551
WARRINGTON BOROUGH COUNCIL,http://opendatacommunities.org/id/unitary-authority/warrington,ET0,Land Drainage,44120,Consult.& Prof. Serv,440000,13/08/2019,5100401821,2990,Innovyze Ltd,109466
WARRINGTON BOROUGH COUNCIL,http://opendatacommunities.org/id/unitary-authority/warrington,ET0,Development Control,43430,Consult.& Prof. Serv,440000,13/08/2019,5100401826,1280,Park Avenue Recruitment Limited,116840
WARRINGTON BOROUGH COUNCIL,http://opendatacommunities.org/id/unitary-authority/warrington,ET0,Development Control,43430,Consult.& Prof. Serv,440000,13/08/2019,5100401827,665,Park Avenue Recruitment Limited,116840
WARRINGTON BOROUGH COUNCIL,http://opendatacommunities.org/id/unitary-authority/warrington,ET0,Development Control,43430,Consult.& Prof. Serv,440000,13/08/2019,5100401828,1175,Park Avenue Recruitment Limited,116840
WARRINGTON BOROUGH COUNCIL,http://opendatacommunities.org/id/unitary-authority/warrington,FWB,Birchwood Primary School,35060,Advertisings-Jobs,190000,14/08/2019,5100401889,759.05,TES Global Limited,106908
WARRINGTON BOROUGH COUNCIL,http://opendatacommunities.org/id/unitary-authority/warrington,ENO,Open Spaces,82006,Materials,400500,07/09/2019,5100401898,85489.83,Wicksteed Leisure Ltd,105436
WARRINGTON BOROUGH COUNCIL,http://opendatacommunities.org/id/unitary-authority/warrington,ENO,Highways LTP,82004,Consult.& Prof. Serv,440000,04/09/2019,5100401900,10930,Streetwise Services Ltd,116060
WARRINGTON BOROUGH COUNCIL,http://opendatacommunities.org/id/unitary-authority/warrington,ET0,Transport Holding Account,41311,Veh Maint. Materials,300000,27/08/2019,5100401916,1052.78,Thomas Hardie Commercials Ltd,102761
WARRINGTON BOROUGH COUNCIL,http://opendatacommunities.org/id/unitary-authority/warrington,ENP,Environment & Regeneration,82000,Consult.& Prof. Serv,440000,27/08/2019,5100401924,202884.64,Muse Developments Ltd,113059
WARRINGTON BOROUGH COUNCIL,http://opendatacommunities.org/id/unitary-authority/warrington,FWB,CIN Team 2,31002,Looked after children in Warrington,301000,14/08/2019,5100401961,500.1,Westbury Health Limited,115233
WARRINGTON BOROUGH COUNCIL,http://opendatacommunities.org/id/unitary-authority/warrington,FWB,CIN Team 5,31015,Looked after children in Warrington,301000,14/08/2019,5100401972,564.96,Westbury Health Limited,115233
WARRINGTON BOROUGH COUNCIL,http://opendatacommunities.org/id/unitary-authority/warrington,FWB,CIN Team 5,31015,Looked after children in Warrington,301000,14/08/2019,5100401980,4920,Foresight Clinical Services,110173
WARRINGTON BOROUGH COUNCIL,http://opendatacommunities.org/id/unitary-authority/warrington,FWB,CIN Team 1,31001,Looked after children in Warrington,301000,14/08/2019,5100401983,5000,Rodor Housing and Support,117208
WARRINGTON BOROUGH COUNCIL,http://opendatacommunities.org/id/unitary-authority/warrington,FWB,CIN Team 1,31001,Looked after children in Warrington,301000,14/08/2019,5100401984,31002,Rodor Housing and Support,117208
WARRINGTON BOROUGH COUNCIL,http://opendatacommunities.org/id/unitary-authority/warrington,FWB,CIN Team 1,31001,Looked after children in Warrington,301000,14/08/2019,5100401985,5000,Rodor Housing and Support,117208
WARRINGTON BOROUGH COUNCIL,http://opendatacommunities.org/id/unitary-authority/warrington,PIO,People & Improvement Other,85002,Lifts from Stock,400850,14/08/2019,5100402000,647.5,AMW Lift & Mobility Services Ltd,112766
WARRINGTON BOROUGH COUNCIL,http://opendatacommunities.org/id/unitary-authority/warrington,PIO,People & Improvement Other,85002,Lifts from Stock,400850,14/08/2019,5100402001,2397.5,AMW Lift & Mobility Services Ltd,112766
WARRINGTON BOROUGH COUNCIL,http://opendatacommunities.org/id/unitary-authority/warrington,PIO,People & Improvement Other,85002,Lifts from Stock,400850,14/08/2019,5100402008,4107.5,AMW Lift & Mobility Services Ltd,112766
WARRINGTON BOROUGH COUNCIL,http://opendatacommunities.org/id/unitary-authority/warrington,FWB,Trading Standards North West,41564,"Campaigns,  Projects and Events",491950,14/08/2019,5100402021,3809.91,Wirral Borough Council,440052
WARRINGTON BOROUGH COUNCIL,http://opendatacommunities.org/id/unitary-authority/warrington,ENO,Priority Infrastructure,82009,Consult.& Prof. Serv,440000,14/08/2019,5100402031,31115,Wsp Uk Ltd,103007
WARRINGTON BOROUGH COUNCIL,http://opendatacommunities.org/id/unitary-authority/warrington,FWB,Equipment Store,54930,Equipment Purchase & Contract,400000,14/08/2019,5100402054,854.04,Prism Medical UK,108616
WARRINGTON BOROUGH COUNCIL,http://opendatacommunities.org/id/unitary-authority/warrington,ENO,Open Spaces,82006,Equipment Purchase & Contract,400000,14/08/2019,5100402058,840,David Webster & Sons Ltd,102202
WARRINGTON BOROUGH COUNCIL,http://opendatacommunities.org/id/unitary-authority/warrington,HOL,Insurance Fund,91100,Insurance Premium,443350,15/08/2019,5100402095,11054.4,Aon Ltd,102117
WARRINGTON BOROUGH COUNCIL,http://opendatacommunities.org/id/unitary-authority/warrington,HOL,Insurance Fund,91100,Insurance Premium,443350,15/08/2019,5100402096,13154.4,Aon Ltd,102117
WARRINGTON BOROUGH COUNCIL,http://opendatacommunities.org/id/unitary-authority/warrington,HOL,Insurance Fund,91100,Insurance Premium,443350,15/08/2019,5100402097,19040,Aon Ltd,102117
WARRINGTON BOROUGH COUNCIL,http://opendatacommunities.org/id/unitary-authority/warrington,HOL,Insurance Fund,91100,Insurance Premium,443350,15/08/2019,5100402098,5057.92,Aon Ltd,102117
WARRINGTON BOROUGH COUNCIL,http://opendatacommunities.org/id/unitary-authority/warrington,HOL,Insurance Fund,91100,Insurance Premium,443350,15/08/2019,5100402100,13919.36,Aon Ltd,102117
WARRINGTON BOROUGH COUNCIL,http://opendatacommunities.org/id/unitary-authority/warrington,HOL,Insurance Fund,91100,Insurance Premium,443350,15/08/2019,5100402101,7177.97,Aon Ltd,102117
WARRINGTON BOROUGH COUNCIL,http://opendatacommunities.org/id/unitary-authority/warrington,HOL,Insurance Fund,91100,Insurance Premium,443350,15/08/2019,5100402102,4300.8,Aon Ltd,102117
WARRINGTON BOROUGH COUNCIL,http://opendatacommunities.org/id/unitary-authority/warrington,HOL,Insurance Fund,91100,Insurance Premium,443350,15/08/2019,5100402103,4141.76,Aon Ltd,102117
WARRINGTON BOROUGH COUNCIL,http://opendatacommunities.org/id/unitary-authority/warrington,HOL,Insurance Fund,91100,Insurance Premium,443350,15/08/2019,5100402104,44788.8,Aon Ltd,102117
WARRINGTON BOROUGH COUNCIL,http://opendatacommunities.org/id/unitary-authority/warrington,ET0,Transport Holding Account,41311,Vehicle Hire Charges,320000,15/08/2019,5100402106,6460.94,West Wallasey Car Hire Ltd,103584
WARRINGTON BOROUGH COUNCIL,http://opendatacommunities.org/id/unitary-authority/warrington,FWB,DSG Post-16 Special Educational Needs,32309,Materials,400500,15/08/2019,5100402141,16354.64,Expanse Group Limited,116815
WARRINGTON BOROUGH COUNCIL,http://opendatacommunities.org/id/unitary-authority/warrington,ENO,Highways LTP,82004,Materials,400500,15/08/2019,5100402144,750,Royal Mail,101445
WARRINGTON BOROUGH COUNCIL,http://opendatacommunities.org/id/unitary-authority/warrington,ENO,Priority Infrastructure,82009,Environmental Works,531050,20/08/2019,5100402186,27329.4,Geotechnics Limited,103671
WARRINGTON BOROUGH COUNCIL,http://opendatacommunities.org/id/unitary-authority/warrington,RSC,Corporate PC Replacement Programme,23000,Computer Hardware - Purchase,450700,16/08/2019,5100402190,1349.28,Dell,104659
WARRINGTON BOROUGH COUNCIL,http://opendatacommunities.org/id/unitary-authority/warrington,RSC,Corporate PC Replacement Programme,23000,Computer Hardware - Purchase,450700,16/08/2019,5100402191,1123.1,Dell,104659
WARRINGTON BOROUGH COUNCIL,http://opendatacommunities.org/id/unitary-authority/warrington,RSC,Corporate PC Replacement Programme,23000,Computer Hardware - Purchase,450700,16/08/2019,5100402192,3590.58,Dell,104659
WARRINGTON BOROUGH COUNCIL,http://opendatacommunities.org/id/unitary-authority/warrington,ET0,Transport Holding Account,41311,Veh Maint. Materials,300000,16/08/2019,5100402198,1509.54,Johnston Sweepers Ltd,101251
WARRINGTON BOROUGH COUNCIL,http://opendatacommunities.org/id/unitary-authority/warrington,ENO,Environment & Regeneration Other,82002,ICT Comms - Line Maintenance,450250,16/08/2019,5100402203,16200,Bt Red Care,100411
WARRINGTON BOROUGH COUNCIL,http://opendatacommunities.org/id/unitary-authority/warrington,RSC,Welfare Support,10360,"Campaigns,  Projects and Events",491950,30/08/2019,5100402346,5770,Changing Lives in Cheshire,111607
WARRINGTON BOROUGH COUNCIL,http://opendatacommunities.org/id/unitary-authority/warrington,HOL,Insurance Fund,91100,Insurance Premium,443350,19/08/2019,5100402384,57680,Aon Ltd,102117
WARRINGTON BOROUGH COUNCIL,http://opendatacommunities.org/id/unitary-authority/warrington,HOL,Insurance Fund,91100,Insurance Premium,443350,19/08/2019,5100402385,222880,Aon Ltd,102117
WARRINGTON BOROUGH COUNCIL,http://opendatacommunities.org/id/unitary-authority/warrington,HOL,Insurance Fund,91100,Insurance Premium,443350,19/08/2019,5100402386,97537.44,Aon Ltd,102117
WARRINGTON BOROUGH COUNCIL,http://opendatacommunities.org/id/unitary-authority/warrington,ENO,Highways LTP,82004,Consult.& Prof. Serv,440000,19/08/2019,5100402395,8160,Bikeright,101692
WARRINGTON BOROUGH COUNCIL,http://opendatacommunities.org/id/unitary-authority/warrington,RSC,One - Off ICT Costs,23200,Computer Software - Maintenance,450850,19/08/2019,5100402398,650,Mapvirtu Limited,117244
WARRINGTON BOROUGH COUNCIL,http://opendatacommunities.org/id/unitary-authority/warrington,PIO,People & Improvement Other,85002,Lifts from Stock,400850,19/08/2019,5100402403,4007.5,AMW Lift & Mobility Services Ltd,112766
WARRINGTON BOROUGH COUNCIL,http://opendatacommunities.org/id/unitary-authority/warrington,PIO,People & Improvement Other,85002,Lifts from Stock,400850,19/08/2019,5100402404,900,AMW Lift & Mobility Services Ltd,112766
WARRINGTON BOROUGH COUNCIL,http://opendatacommunities.org/id/unitary-authority/warrington,COR,Industrial Estates,43570,Fees (Including Agents Fees),441450,19/08/2019,5100402406,1420.65,Goodman Nash Limited,117260
WARRINGTON BOROUGH COUNCIL,http://opendatacommunities.org/id/unitary-authority/warrington,ET0,Development Control,43430,Consult.& Prof. Serv,440000,19/08/2019,5100402413,1225,Park Avenue Recruitment Limited,116840
WARRINGTON BOROUGH COUNCIL,http://opendatacommunities.org/id/unitary-authority/warrington,ET0,Development Control,43430,Consult.& Prof. Serv,440000,19/08/2019,5100402414,1110,Park Avenue Recruitment Limited,116840
WARRINGTON BOROUGH COUNCIL,http://opendatacommunities.org/id/unitary-authority/warrington,ET0,Development Control,43430,Consult.& Prof. Serv,440000,19/08/2019,5100402415,1303.75,Vivid Resourcing Limited,115752
WARRINGTON BOROUGH COUNCIL,http://opendatacommunities.org/id/unitary-authority/warrington,ET0,Development Control,43430,Consult.& Prof. Serv,440000,19/08/2019,5100402416,1865.48,Vivid Resourcing Limited,115752
WARRINGTON BOROUGH COUNCIL,http://opendatacommunities.org/id/unitary-authority/warrington,ET0,Development Control,43430,Consult.& Prof. Serv,440000,19/08/2019,5100402417,925,Vivid Resourcing Limited,115752
WARRINGTON BOROUGH COUNCIL,http://opendatacommunities.org/id/unitary-authority/warrington,ET0,Development Control,43430,Consult.& Prof. Serv,440000,19/08/2019,5100402418,814.22,Vivid Resourcing Limited,115752
WARRINGTON BOROUGH COUNCIL,http://opendatacommunities.org/id/unitary-authority/warrington,ET0,Development Control,43430,Consult.& Prof. Serv,440000,19/08/2019,5100402419,1515.63,Vivid Resourcing Limited,115752
WARRINGTON BOROUGH COUNCIL,http://opendatacommunities.org/id/unitary-authority/warrington,ET0,Development Control,43430,Consult.& Prof. Serv,440000,19/08/2019,5100402420,860.5,Vivid Resourcing Limited,115752
WARRINGTON BOROUGH COUNCIL,http://opendatacommunities.org/id/unitary-authority/warrington,ET0,Development Control,43430,Consult.& Prof. Serv,440000,19/08/2019,5100402421,1347.5,Vivid Resourcing Limited,115752
WARRINGTON BOROUGH COUNCIL,http://opendatacommunities.org/id/unitary-authority/warrington,ET0,Development Control,43430,Consult.& Prof. Serv,440000,19/08/2019,5100402422,1347.5,Oyster Partnership,116595
WARRINGTON BOROUGH COUNCIL,http://opendatacommunities.org/id/unitary-authority/warrington,ET0,Development Control,43430,Consult.& Prof. Serv,440000,19/08/2019,5100402424,1356.25,Oyster Partnership,116595
WARRINGTON BOROUGH COUNCIL,http://opendatacommunities.org/id/unitary-authority/warrington,ET0,Development Control,43430,Consult.& Prof. Serv,440000,19/08/2019,5100402425,1338.75,Oyster Partnership,116595
WARRINGTON BOROUGH COUNCIL,http://opendatacommunities.org/id/unitary-authority/warrington,ET0,Development Control,43430,Consult.& Prof. Serv,440000,19/08/2019,5100402426,1376.55,Oyster Partnership,116595
WARRINGTON BOROUGH COUNCIL,http://opendatacommunities.org/id/unitary-authority/warrington,FWB,Divert / Health Project,33307,Training,190150,19/08/2019,5100402442,1050,Integral Business Support,117322
WARRINGTON BOROUGH COUNCIL,http://opendatacommunities.org/id/unitary-authority/warrington,RSC,Customer Contact Centre,52201,Equipment Purchase & Contract,400000,20/08/2019,5100402483,977.76,Allied Publicity Services (Man) LTD,117019
WARRINGTON BOROUGH COUNCIL,http://opendatacommunities.org/id/unitary-authority/warrington,RSC,Customer Contact Centre,52201,Equipment Purchase & Contract,400000,20/08/2019,5100402484,1716.89,Premier Physical Healthcare Ltd,114603
WARRINGTON BOROUGH COUNCIL,http://opendatacommunities.org/id/unitary-authority/warrington,HOL,Insurance Fund,91100,Insurance Premium,443350,20/08/2019,5100402499,9520,Aon Ltd,102117
WARRINGTON BOROUGH COUNCIL,http://opendatacommunities.org/id/unitary-authority/warrington,RSC,Professional Development Centre,21000,Security Systems,250000,04/09/2019,5100402500,736,Kingdom Security Ltd,101324
WARRINGTON BOROUGH COUNCIL,http://opendatacommunities.org/id/unitary-authority/warrington,ET0,Traffic and Safety,44350,Safety Fences Cat1,531100,27/08/2019,5100402501,992,Kingdom Security Ltd,101324
WARRINGTON BOROUGH COUNCIL,http://opendatacommunities.org/id/unitary-authority/warrington,COR,Markets,43711,"Campaigns,  Projects and Events",491950,20/08/2019,5100402503,550,Lime Print Solutions Ltd,101507
WARRINGTON BOROUGH COUNCIL,http://opendatacommunities.org/id/unitary-authority/warrington,HOL,Insurance Fund,91100,Insurance Premium,443350,20/08/2019,5100402504,307164.84,Aon Ltd,102117
WARRINGTON BOROUGH COUNCIL,http://opendatacommunities.org/id/unitary-authority/warrington,COR,Markets,43711,"Campaigns,  Projects and Events",491950,20/08/2019,5100402533,700,Wonderslide Ltd,117257
WARRINGTON BOROUGH COUNCIL,http://opendatacommunities.org/id/unitary-authority/warrington,FWB,DSG Independent School Fees,32011,Fees (Including Agents Fees),441450,04/09/2019,5100402538,4652.63,Nugent Care,101082
WARRINGTON BOROUGH COUNCIL,http://opendatacommunities.org/id/unitary-authority/warrington,FWB,CIN Team 1,31001,Looked after children in Warrington,301000,20/08/2019,5100402539,1934,Indie 16 Limited,117171
WARRINGTON BOROUGH COUNCIL,http://opendatacommunities.org/id/unitary-authority/warrington,COR,Other Commercial Prop.,43560,Consult.& Prof. Serv,440000,20/08/2019,5100402567,1075,Brabners LLP,117064
WARRINGTON BOROUGH COUNCIL,http://opendatacommunities.org/id/unitary-authority/warrington,COR,Other Commercial Prop.,43560,Consult.& Prof. Serv,440000,20/08/2019,5100402567,750,Brabners LLP,117064
WARRINGTON BOROUGH COUNCIL,http://opendatacommunities.org/id/unitary-authority/warrington,FWB,Child Disability,32212,Equipment Purchase & Contract,400000,20/08/2019,5100402574,3100,Astor Bannerman Ltd,109391
WARRINGTON BOROUGH COUNCIL,http://opendatacommunities.org/id/unitary-authority/warrington,ENO,Environment & Regeneration Other,82002,Consult.& Prof. Serv,440000,27/08/2019,5100402575,1584.16,Bradshaw Gass & Hope,115103
WARRINGTON BOROUGH COUNCIL,http://opendatacommunities.org/id/unitary-authority/warrington,FWB,Public Health Licensing,41550,Consult.& Prof. Serv,440000,04/09/2019,5100402624,931.84,Public Health England,112188
WARRINGTON BOROUGH COUNCIL,http://opendatacommunities.org/id/unitary-authority/warrington,COR,Investment Property Acquisitions,62095,Fees (Including Agents Fees),441450,22/08/2019,5100402634,1246.48,Knight Frank Llp,102232
WARRINGTON BOROUGH COUNCIL,http://opendatacommunities.org/id/unitary-authority/warrington,COR,Investment Property Acquisitions,62095,Fees (Including Agents Fees),441450,22/08/2019,5100402635,2083.15,Knight Frank Llp,102232
WARRINGTON BOROUGH COUNCIL,http://opendatacommunities.org/id/unitary-authority/warrington,ET0,Development Control,43430,Other Advertising & Publicity,450050,04/09/2019,5100402722,590.42,TMP UK Ltd,108498
WARRINGTON BOROUGH COUNCIL,http://opendatacommunities.org/id/unitary-authority/warrington,RSC,ICT Projects,23300,Computer Hardware - Purchase,450700,23/08/2019,5100402735,619.88,Dell,104659
WARRINGTON BOROUGH COUNCIL,http://opendatacommunities.org/id/unitary-authority/warrington,ENO,Environment & Regeneration Other,82002,Consult.& Prof. Serv,440000,23/08/2019,5100402736,3859.04,Bradshaw Gass & Hope,115103
WARRINGTON BOROUGH COUNCIL,http://opendatacommunities.org/id/unitary-authority/warrington,ET0,Construction Stores Overhead Account,41320,Security Systems,250000,02/09/2019,5100402771,1094.26,Safeguard Nw Ltd,105412
WARRINGTON BOROUGH COUNCIL,http://opendatacommunities.org/id/unitary-authority/warrington,FWB,Fostering Collaboration,31115,Other Advertising & Publicity,450050,23/08/2019,5100402773,2340,Booh Media PLC,117301
WARRINGTON BOROUGH COUNCIL,http://opendatacommunities.org/id/unitary-authority/warrington,ENO,Highways Other,82005,Building Work,200850,02/09/2019,5100402780,18690.25,Chargemaster PLC,116524
WARRINGTON BOROUGH COUNCIL,http://opendatacommunities.org/id/unitary-authority/warrington,FWB,DSG Independent School Fees,32011,Fees (Including Agents Fees),441450,04/09/2019,5100402785,58440.58,Bright Futures Care Ltd,114579
WARRINGTON BOROUGH COUNCIL,http://opendatacommunities.org/id/unitary-authority/warrington,FWB,Equipment Store,54930,Equipment Purchase & Contract,400000,23/08/2019,5100402804,630,Direct Healthcare Group,116289
WARRINGTON BOROUGH COUNCIL,http://opendatacommunities.org/id/unitary-authority/warrington,ET0,Transport Holding Account,41311,Vehicle Hire Charges,320000,23/08/2019,5100402811,8288.88,West Wallasey Car Hire Ltd,103584
WARRINGTON BOROUGH COUNCIL,http://opendatacommunities.org/id/unitary-authority/warrington,ET0,Waste Recycling,41820,Bring Site Charges,443150,23/08/2019,5100402813,902.1,Wsr Recycling Ltd,101196
WARRINGTON BOROUGH COUNCIL,http://opendatacommunities.org/id/unitary-authority/warrington,ET0,Waste Recycling,41820,MRF Recycling,530750,23/08/2019,5100402818,18972.1,UPM Kymmene (UK) Ltd,115351
WARRINGTON BOROUGH COUNCIL,http://opendatacommunities.org/id/unitary-authority/warrington,FWB,Trading Standards North West,41564,Consult.& Prof. Serv,440000,23/08/2019,5100402819,14583,East of England Trading Standards,117327
WARRINGTON BOROUGH COUNCIL,http://opendatacommunities.org/id/unitary-authority/warrington,ET0,Development Control,43430,Consult.& Prof. Serv,440000,02/09/2019,5100402820,560,Park Avenue Recruitment Limited,116840
WARRINGTON BOROUGH COUNCIL,http://opendatacommunities.org/id/unitary-authority/warrington,FWB,Telecare / Sensory,54560,Equipment Purchase & Contract,400000,11/09/2019,5100403021,12900,Brain in Hand Limited,117325
WARRINGTON BOROUGH COUNCIL,http://opendatacommunities.org/id/unitary-authority/warrington,RSC,One - Off ICT Costs,23200,Computer Software - Maintenance,450850,28/08/2019,5100403023,104000,Softcat,109539
WARRINGTON BOROUGH COUNCIL,http://opendatacommunities.org/id/unitary-authority/warrington,RSC,One - Off ICT Costs,23200,Computer Software - Maintenance,450850,28/08/2019,5100403023,25673.12,Softcat,109539
WARRINGTON BOROUGH COUNCIL,http://opendatacommunities.org/id/unitary-authority/warrington,NEO,IT Projects,83003,Computer Hardware - Purchase,450700,28/08/2019,5100403025,61988,Dell,104659
WARRINGTON BOROUGH COUNCIL,http://opendatacommunities.org/id/unitary-authority/warrington,COR,Concessionary Travel,60000,Travelling Allowance,330000,11/09/2019,5100403026,237261.55,Cheshire West And Chester,103357
WARRINGTON BOROUGH COUNCIL,http://opendatacommunities.org/id/unitary-authority/warrington,ENO,Highways Other,82005,Technical Surveys,532050,28/08/2019,5100403027,6319.3,Ginger Lehmann Ltd,116636
WARRINGTON BOROUGH COUNCIL,http://opendatacommunities.org/id/unitary-authority/warrington,ENO,Highways Other,82005,Technical Surveys,532050,28/08/2019,5100403028,6920.44,Ginger Lehmann Ltd,116636
WARRINGTON BOROUGH COUNCIL,http://opendatacommunities.org/id/unitary-authority/warrington,RSC,Professional Development Centre,21000,Training,190150,04/09/2019,5100403037,572,City And Guilds,104610
WARRINGTON BOROUGH COUNCIL,http://opendatacommunities.org/id/unitary-authority/warrington,FWB,Equipment Store,54930,Equipment Purchase & Contract,400000,28/08/2019,5100403039,559.72,Prism Medical UK,108616
WARRINGTON BOROUGH COUNCIL,http://opendatacommunities.org/id/unitary-authority/warrington,FWB,Equipment Store,54930,Equipment Purchase & Contract,400000,28/08/2019,5100403040,944.48,Prism Medical UK,108616
WARRINGTON BOROUGH COUNCIL,http://opendatacommunities.org/id/unitary-authority/warrington,FWB,Neighbourhood Enga,51305,"Campaigns,  Projects and Events",491950,28/08/2019,5100403042,584.5,Recycling Lives,117160
WARRINGTON BOROUGH COUNCIL,http://opendatacommunities.org/id/unitary-authority/warrington,ET0,Cemeteries,41410,Grounds Maintenance - External,280000,28/08/2019,5100403047,1012,Siemens Financial Services Ltd,101880
WARRINGTON BOROUGH COUNCIL,http://opendatacommunities.org/id/unitary-authority/warrington,ET0,Waste Recycling,41820,Green Waste Treatment,530800,02/09/2019,5100403053,27948.41,White Moss Horticulture Ltd,104283
WARRINGTON BOROUGH COUNCIL,http://opendatacommunities.org/id/unitary-authority/warrington,ET0,Waste Recycling,41820,Green Waste Treatment,530800,02/09/2019,5100403054,5605.92,White Moss Horticulture Ltd,104283
WARRINGTON BOROUGH COUNCIL,http://opendatacommunities.org/id/unitary-authority/warrington,FWB,Equipment Store,54930,Equipment Purchase & Contract,400000,28/08/2019,5100403055,1440,Harvest Healthcare Ltd,108555
WARRINGTON BOROUGH COUNCIL,http://opendatacommunities.org/id/unitary-authority/warrington,ET0,NPIF Warrington East Phase 3,40027,Consult.& Prof. Serv,440000,28/08/2019,5100403059,1965,Mott Macdonald Ltd,104950
WARRINGTON BOROUGH COUNCIL,http://opendatacommunities.org/id/unitary-authority/warrington,ET0,Warrington East Ph 2 - 4,40020,Consult.& Prof. Serv,440000,28/08/2019,5100403060,3778.3,Mott Macdonald Ltd,104950
WARRINGTON BOROUGH COUNCIL,http://opendatacommunities.org/id/unitary-authority/warrington,ET0,Warrington East Ph 2 - 4,40020,Consult.& Prof. Serv,440000,28/08/2019,5100403061,4980.95,Mott Macdonald Ltd,104950
WARRINGTON BOROUGH COUNCIL,http://opendatacommunities.org/id/unitary-authority/warrington,ET0,NPIF Warrington East Phase 3,40027,Consult.& Prof. Serv,440000,28/08/2019,5100403062,1260,Mott Macdonald Ltd,104950
WARRINGTON BOROUGH COUNCIL,http://opendatacommunities.org/id/unitary-authority/warrington,ENO,Environment & Regeneration Other,82002,Computer Hardware - Purchase,450700,04/09/2019,5100403063,2034.09,TNP - The Networking People,110271
WARRINGTON BOROUGH COUNCIL,http://opendatacommunities.org/id/unitary-authority/warrington,ET0,Traffic and Safety,44350,Traffic Section,531150,04/09/2019,5100403069,519.85,TMP UK Ltd,108498
WARRINGTON BOROUGH COUNCIL,http://opendatacommunities.org/id/unitary-authority/warrington,ET0,Administration,44340,Temporary Traffic Regulation Orders,442400,04/09/2019,5100403070,603.93,TMP UK Ltd,108498
WARRINGTON BOROUGH COUNCIL,http://opendatacommunities.org/id/unitary-authority/warrington,ET0,Transport Holding Account,41311,Vehicle Hire Charges,320000,04/09/2019,5100403080,727.07,West Wallasey Car Hire Ltd,103584
WARRINGTON BOROUGH COUNCIL,http://opendatacommunities.org/id/unitary-authority/warrington,ET0,Bus Interchange,44460,Tools Purchase,401150,28/08/2019,5100403086,680,Electrical Data Security EDS,116902
WARRINGTON BOROUGH COUNCIL,http://opendatacommunities.org/id/unitary-authority/warrington,ET0,Transport Holding Account,41311,Veh Maint. Materials,300000,28/08/2019,5100403088,1122,Brian James Trailers LTD,110042
WARRINGTON BOROUGH COUNCIL,http://opendatacommunities.org/id/unitary-authority/warrington,ENO,Environment & Regeneration Other,82002,Vehicle & Plant Purchase,301350,28/08/2019,5100403091,2407.62,Wyke Signs & Graphics Ltd,115264
WARRINGTON BOROUGH COUNCIL,http://opendatacommunities.org/id/unitary-authority/warrington,RSC,One - Off ICT Costs,23200,Computer Software - Maintenance,450850,28/08/2019,5100403094,1662.5,Idox Software Ltd,102179
WARRINGTON BOROUGH COUNCIL,http://opendatacommunities.org/id/unitary-authority/warrington,ET0,Transport Holding Account,41311,Maintenance Work - Sub Contractors,301150,29/08/2019,5100403140,1419.84,F R Sharrock Ltd,105122
WARRINGTON BOROUGH COUNCIL,http://opendatacommunities.org/id/unitary-authority/warrington,NEP,Neighbourhood & Community Services,83000,Consult.& Prof. Serv,440000,29/08/2019,5100403153,64776.66,EFT Construction Ltd,117068
WARRINGTON BOROUGH COUNCIL,http://opendatacommunities.org/id/unitary-authority/warrington,ET0,Facilities Management,41422,Materials,400500,29/08/2019,5100403162,580,Jrs Fabrications Ltd,105378
WARRINGTON BOROUGH COUNCIL,http://opendatacommunities.org/id/unitary-authority/warrington,ET0,Walton Estate,41430,Security Systems,250000,29/08/2019,5100403164,935.04,Chubb Fire and Security Ltd,105335
WARRINGTON BOROUGH COUNCIL,http://opendatacommunities.org/id/unitary-authority/warrington,ET0,Transport Holding Account,41311,Tyres,300250,29/08/2019,5100403165,5301.5,Lodge Tyre Company,105203
WARRINGTON BOROUGH COUNCIL,http://opendatacommunities.org/id/unitary-authority/warrington,RSC,Printing & Graphics,23040,External Printing,430100,29/08/2019,5100403168,585,Browns CTP Limited,116875
WARRINGTON BOROUGH COUNCIL,http://opendatacommunities.org/id/unitary-authority/warrington,ET0,Waste Disposal,41830,Landfill Contract,530500,29/08/2019,5100403169,111699.22,FCC Environment,101348
WARRINGTON BOROUGH COUNCIL,http://opendatacommunities.org/id/unitary-authority/warrington,ET0,Waste Disposal,41830,Landfill Contract,530500,29/08/2019,5100403170,105183.42,FCC Environment,101348
WARRINGTON BOROUGH COUNCIL,http://opendatacommunities.org/id/unitary-authority/warrington,ET0,Waste Disposal,41830,Landfill Contract,530500,29/08/2019,5100403171,110725.7,FCC Environment,101348
WARRINGTON BOROUGH COUNCIL,http://opendatacommunities.org/id/unitary-authority/warrington,ET0,Waste Disposal,41830,Landfill Contract,530500,29/08/2019,5100403172,102480.56,FCC Environment,101348
WARRINGTON BOROUGH COUNCIL,http://opendatacommunities.org/id/unitary-authority/warrington,RSC,Printing & Graphics,23040,External Printing,430100,29/08/2019,5100403173,523,Browns CTP Limited,116875
WARRINGTON BOROUGH COUNCIL,http://opendatacommunities.org/id/unitary-authority/warrington,COR,Industrial Estates,43570,Maintenance Work - Sub Contractors,301150,29/08/2019,5100403176,1135,Entrance Technology Services Ltd,105354
WARRINGTON BOROUGH COUNCIL,http://opendatacommunities.org/id/unitary-authority/warrington,PIO,People & Improvement Other,85002,Lifts from Stock,400850,29/08/2019,5100403192,4107.5,AMW Lift & Mobility Services Ltd,112766
WARRINGTON BOROUGH COUNCIL,http://opendatacommunities.org/id/unitary-authority/warrington,ET0,Domestic (Drivers & Collectors),41840,Bulky Waste Collections,442600,29/08/2019,5100403193,7453.45,Changing Lives in Cheshire,111607
WARRINGTON BOROUGH COUNCIL,http://opendatacommunities.org/id/unitary-authority/warrington,PIO,People & Improvement Other,85002,Lifts from Stock,400850,30/08/2019,5100403196,1797.54,Prism Medical UK,108616
WARRINGTON BOROUGH COUNCIL,http://opendatacommunities.org/id/unitary-authority/warrington,FWB,Equipment Store,54930,Equipment Purchase & Contract,400000,30/08/2019,5100403197,1500,The Disability Trading Company Ltd,108623
WARRINGTON BOROUGH COUNCIL,http://opendatacommunities.org/id/unitary-authority/warrington,ET0,Waste Disposal,41830,Landfill Contract,530500,30/08/2019,5100403198,6140,Wsr Recycling Ltd,101196
WARRINGTON BOROUGH COUNCIL,http://opendatacommunities.org/id/unitary-authority/warrington,FWB,CIN Team 5,31015,Looked after children in Warrington,301000,30/08/2019,5100403228,1696,Warrington Cars,113774
WARRINGTON BOROUGH COUNCIL,http://opendatacommunities.org/id/unitary-authority/warrington,ENO,Highways LTP,82004,Equipment Purchase & Contract,400000,30/08/2019,5100403235,4405,Creative Signs,104642
WARRINGTON BOROUGH COUNCIL,http://opendatacommunities.org/id/unitary-authority/warrington,ENO,Highways Other,82005,Consult.& Prof. Serv,440000,30/08/2019,5100403239,2612,Balfour Beatty Civil Engineering Li,114442
WARRINGTON BOROUGH COUNCIL,http://opendatacommunities.org/id/unitary-authority/warrington,FWB,Equipment Store,54930,Annual Maintenance,442100,03/09/2019,5100403250,1680.13,Prism Medical UK,108616
WARRINGTON BOROUGH COUNCIL,http://opendatacommunities.org/id/unitary-authority/warrington,FWB,Equipment Store,54930,Annual Maintenance,442100,03/09/2019,5100403251,629.28,Prism Medical UK,108616
WARRINGTON BOROUGH COUNCIL,http://opendatacommunities.org/id/unitary-authority/warrington,ET0,Schools (Street Scene),41733,Storage Facilities,441900,30/08/2019,5100403254,540.14,M C & M A Stewart Haulage Ltd,105159
WARRINGTON BOROUGH COUNCIL,http://opendatacommunities.org/id/unitary-authority/warrington,COR,General Contingencies,61000,"Campaigns,  Projects and Events",491950,30/08/2019,5100403259,4830,Mersey Medical Services Ltd,116772
WARRINGTON BOROUGH COUNCIL,http://opendatacommunities.org/id/unitary-authority/warrington,COR,General Contingencies,61000,"Campaigns,  Projects and Events",491950,30/08/2019,5100403260,2710,Redacted for personal data,103267
WARRINGTON BOROUGH COUNCIL,http://opendatacommunities.org/id/unitary-authority/warrington,ET0,Core Operational Business,41730,Hazardous Waste,530600,30/08/2019,5100403264,730,Woods Building Services Limited,117198
WARRINGTON BOROUGH COUNCIL,http://opendatacommunities.org/id/unitary-authority/warrington,ET0,Waste Recycling,41820,Green Waste Treatment,530800,30/08/2019,5100403267,624.69,White Moss Horticulture Ltd,104283
WARRINGTON BOROUGH COUNCIL,http://opendatacommunities.org/id/unitary-authority/warrington,ENO,Highways Other,82005,Consult.& Prof. Serv,440000,11/09/2019,5100403269,190749.4,Balfour Beatty Civil Engineering Li,114442
WARRINGTON BOROUGH COUNCIL,http://opendatacommunities.org/id/unitary-authority/warrington,FWB,Catering Crew,31536,Resaleables,400600,30/08/2019,5100403274,580.32,Woodward Foodservice Ltd,101749
WARRINGTON BOROUGH COUNCIL,http://opendatacommunities.org/id/unitary-authority/warrington,ET0,Woolston Depot,41331,Annual Maintenance,442100,30/08/2019,5100403279,720,Wilkes Vending Services Ltd,106613
WARRINGTON BOROUGH COUNCIL,http://opendatacommunities.org/id/unitary-authority/warrington,ET0,Transport Holding Account,41311,Vehicle Hire Charges,320000,04/09/2019,5100403280,1253,Carroll Plant Ltd,101548
WARRINGTON BOROUGH COUNCIL,http://opendatacommunities.org/id/unitary-authority/warrington,ET0,Street Lighting Contractor,44240,Training,190150,30/08/2019,5100403282,914.95,Horizon Platforms Ltd,115031
WARRINGTON BOROUGH COUNCIL,http://opendatacommunities.org/id/unitary-authority/warrington,ET0,Development Control,43430,Consult.& Prof. Serv,440000,04/09/2019,5100403284,507.5,Park Avenue Recruitment Limited,116840
WARRINGTON BOROUGH COUNCIL,http://opendatacommunities.org/id/unitary-authority/warrington,NEO,IT Projects,83003,Computer Hardware - Purchase,450700,30/08/2019,5100403287,569.8,Probrand Ltd,102886
WARRINGTON BOROUGH COUNCIL,http://opendatacommunities.org/id/unitary-authority/warrington,ENP,Environment & Regeneration,82000,Materials,400500,01/09/2019,5100403311,572863.19,New World Trading Company (UK) Ltd,117309
WARRINGTON BOROUGH COUNCIL,http://opendatacommunities.org/id/unitary-authority/warrington,FWB,Supporting People Grant Payments,53260,Sheltd/Xtra Care Hsing and Comm Alarms,535050,31/08/2019,5100403342,5725.08,Warrington Housing Current Acc,101208
WARRINGTON BOROUGH COUNCIL,http://opendatacommunities.org/id/unitary-authority/warrington,FWB,Supporting People Grant Payments,53260,Young People and/or Care Leavers,535150,31/08/2019,5100403343,17159.12,Arena Options,101746
WARRINGTON BOROUGH COUNCIL,http://opendatacommunities.org/id/unitary-authority/warrington,FWB,Supporting People Grant Payments,53260,Risk of Homelessness and Floating Suppor,535100,31/08/2019,5100403344,16666,Arena Options,101746
WARRINGTON BOROUGH COUNCIL,http://opendatacommunities.org/id/unitary-authority/warrington,FWB,Supporting People Grant Payments,53260,Risk of Homelessness and Floating Suppor,535100,31/08/2019,5100403345,24791.17,The Salvation Army,105105
WARRINGTON BOROUGH COUNCIL,http://opendatacommunities.org/id/unitary-authority/warrington,FWB,SLA - Grant Account,53920,Payment of Grants,470050,31/08/2019,5100403346,17797.5,WIRED,109547
WARRINGTON BOROUGH COUNCIL,http://opendatacommunities.org/id/unitary-authority/warrington,FWB,Supporting People Grant Payments,53260,People with Mental Health Problems,535200,31/08/2019,5100403347,5091.32,SLC Raglin Ltd,111037
WARRINGTON BOROUGH COUNCIL,http://opendatacommunities.org/id/unitary-authority/warrington,FWB,Supporting People Grant Payments,53260,Risk of Homelessness and Floating Suppor,535100,31/08/2019,5100403348,14408.5,Warrington Womens Aid Ltd,440000
WARRINGTON BOROUGH COUNCIL,http://opendatacommunities.org/id/unitary-authority/warrington,FWB,Supporting People Grant Payments,53260,Risk of Homelessness and Floating Suppor,535100,31/08/2019,5100403349,3000,Room at the Inn and The Y Project,440065
WARRINGTON BOROUGH COUNCIL,http://opendatacommunities.org/id/unitary-authority/warrington,FWB,Telecare / Sensory,54560,Health Awareness,441950,20/09/2019,5100403365,2400,Tunstall Healthcare UK Ltd,105427
WARRINGTON BOROUGH COUNCIL,http://opendatacommunities.org/id/unitary-authority/warrington,FWB,Telecare / Sensory,54560,Health Awareness,441950,02/09/2019,5100403367,2400,Tunstall Healthcare UK Ltd,105427
WARRINGTON BOROUGH COUNCIL,http://opendatacommunities.org/id/unitary-authority/warrington,FWB,Telecare / Sensory,54560,Health Awareness,441950,02/09/2019,5100403367,600,Tunstall Healthcare UK Ltd,105427
WARRINGTON BOROUGH COUNCIL,http://opendatacommunities.org/id/unitary-authority/warrington,FWB,Supporting People Grant Payments,53260,Sheltd/Xtra Care Hsing and Comm Alarms,535050,02/09/2019,5100403396,636.12,Anchor Ha,100886
WARRINGTON BOROUGH COUNCIL,http://opendatacommunities.org/id/unitary-authority/warrington,FWB,Catalyst Choices,54495,CP ExternalOther Exp,440800,02/09/2019,5100403401,30000,Walton Lea Project,102953
WARRINGTON BOROUGH COUNCIL,http://opendatacommunities.org/id/unitary-authority/warrington,FWB,Supporting People Grant Payments,53260,Sheltd/Xtra Care Hsing and Comm Alarms,535050,02/09/2019,5100403404,1998.44,Warrington Housing Rent,103168
WARRINGTON BOROUGH COUNCIL,http://opendatacommunities.org/id/unitary-authority/warrington,FWB,Supporting People Grant Payments,53260,Sheltd/Xtra Care Hsing and Comm Alarms,535050,02/09/2019,5100403405,966.96,Warrington Housing Rent,103168
WARRINGTON BOROUGH COUNCIL,http://opendatacommunities.org/id/unitary-authority/warrington,FWB,Supporting People Grant Payments,53260,People with Mental Health Problems,535200,02/09/2019,5100403407,12084.66,Warrington Community Living,105229
WARRINGTON BOROUGH COUNCIL,http://opendatacommunities.org/id/unitary-authority/warrington,FWB,Supporting People Grant Payments,53260,Sheltd/Xtra Care Hsing and Comm Alarms,535050,02/09/2019,5100403408,10624.32,Warrington Community Living,105229
WARRINGTON BOROUGH COUNCIL,http://opendatacommunities.org/id/unitary-authority/warrington,FWB,Supporting People Grant Payments,53260,People with Mental Health Problems,535200,02/09/2019,5100403409,2977.54,Carr Gomm,106573
WARRINGTON BOROUGH COUNCIL,http://opendatacommunities.org/id/unitary-authority/warrington,ET0,Transport Holding Account,41311,Veh Maint. Materials,300000,11/09/2019,5100403416,696.74,FAUN Zoeller UK Ltd,105260
WARRINGTON BOROUGH COUNCIL,http://opendatacommunities.org/id/unitary-authority/warrington,ET0,Crematorium,41411,Resaleables,400600,02/09/2019,5100403420,879.55,Halliday Funeral Supplies Ltd,110936
WARRINGTON BOROUGH COUNCIL,http://opendatacommunities.org/id/unitary-authority/warrington,RSC,Professional Development Centre,21000,Training,190150,02/09/2019,5100403425,644.3,City And Guilds,104610
WARRINGTON BOROUGH COUNCIL,http://opendatacommunities.org/id/unitary-authority/warrington,PIO,People & Improvement Other,85002,Lifts from Stock,400850,02/09/2019,5100403427,647.5,AMW Lift & Mobility Services Ltd,112766
WARRINGTON BOROUGH COUNCIL,http://opendatacommunities.org/id/unitary-authority/warrington,ET0,Administration,44340,Temporary Traffic Regulation Orders,442400,02/09/2019,5100403430,753.73,TMP UK Ltd,108498
WARRINGTON BOROUGH COUNCIL,http://opendatacommunities.org/id/unitary-authority/warrington,FWB,Permanence staff teams,31021,Transport SLA,300400,02/09/2019,5100403444,1615,Redacted for personal data,116267
WARRINGTON BOROUGH COUNCIL,http://opendatacommunities.org/id/unitary-authority/warrington,FWB,Permanence staff teams,31021,Transport SLA,300400,02/09/2019,5100403447,1615,Redacted for personal data,116267
WARRINGTON BOROUGH COUNCIL,http://opendatacommunities.org/id/unitary-authority/warrington,RSC,IT - Contracts,23600,Computer Hardware - Purchase,450700,02/09/2019,5100403456,559,Powertecnique Ltd,108843
WARRINGTON BOROUGH COUNCIL,http://opendatacommunities.org/id/unitary-authority/warrington,RSC,IT - Contracts,23600,Computer Hardware - Maintenance,450750,02/09/2019,5100403456,545,Powertecnique Ltd,108843
WARRINGTON BOROUGH COUNCIL,http://opendatacommunities.org/id/unitary-authority/warrington,ET0,Development Control,43430,Consult.& Prof. Serv,440000,02/09/2019,5100403466,1406.5,Vivid Resourcing Limited,115752
WARRINGTON BOROUGH COUNCIL,http://opendatacommunities.org/id/unitary-authority/warrington,ET0,Development Control,43430,Consult.& Prof. Serv,440000,02/09/2019,5100403467,1365,Vivid Resourcing Limited,115752
WARRINGTON BOROUGH COUNCIL,http://opendatacommunities.org/id/unitary-authority/warrington,COR,General Contingencies,61000,"Campaigns,  Projects and Events",491950,02/09/2019,5100403469,17950,Blue Arrow Traffic Management Ltd,109292
WARRINGTON BOROUGH COUNCIL,http://opendatacommunities.org/id/unitary-authority/warrington,ET0,Crematorium,41411,Resaleables,400600,02/09/2019,5100403470,579.47,Hilton Cabinet Company Liimited,101054
WARRINGTON BOROUGH COUNCIL,http://opendatacommunities.org/id/unitary-authority/warrington,NEO,IT Projects,83003,Computer Hardware - Purchase,450700,02/09/2019,5100403471,1744.32,TNP - The Networking People,110271
WARRINGTON BOROUGH COUNCIL,http://opendatacommunities.org/id/unitary-authority/warrington,ENO,Environment & Regeneration Other,82002,Vehicle & Plant Purchase,301350,02/09/2019,5100403473,166095,Dennis Eagle Parts,104661
WARRINGTON BOROUGH COUNCIL,http://opendatacommunities.org/id/unitary-authority/warrington,ENO,Environment & Regeneration Other,82002,Vehicle & Plant Purchase,301350,02/09/2019,5100403474,166095,Dennis Eagle Parts,104661
WARRINGTON BOROUGH COUNCIL,http://opendatacommunities.org/id/unitary-authority/warrington,ENO,Environment & Regeneration Other,82002,Vehicle & Plant Purchase,301350,02/09/2019,5100403475,166095,Dennis Eagle Parts,104661
WARRINGTON BOROUGH COUNCIL,http://opendatacommunities.org/id/unitary-authority/warrington,ENO,Environment & Regeneration Other,82002,Vehicle & Plant Purchase,301350,02/09/2019,5100403476,166095,Dennis Eagle Parts,104661
WARRINGTON BOROUGH COUNCIL,http://opendatacommunities.org/id/unitary-authority/warrington,ENO,Environment & Regeneration Other,82002,Vehicle & Plant Purchase,301350,02/09/2019,5100403477,166095,Dennis Eagle Parts,104661
WARRINGTON BOROUGH COUNCIL,http://opendatacommunities.org/id/unitary-authority/warrington,ENO,Environment & Regeneration Other,82002,Vehicle & Plant Purchase,301350,02/09/2019,5100403478,166095,Dennis Eagle Parts,104661
WARRINGTON BOROUGH COUNCIL,http://opendatacommunities.org/id/unitary-authority/warrington,COR,Other Commercial Prop.,43560,Specific Work,200200,03/09/2019,5100403492,895,B & K Landscapes,105448
WARRINGTON BOROUGH COUNCIL,http://opendatacommunities.org/id/unitary-authority/warrington,RSC,ICT Projects,23300,Computer Hardware - Purchase,450700,03/09/2019,5100403499,667.35,Dell,104659
WARRINGTON BOROUGH COUNCIL,http://opendatacommunities.org/id/unitary-authority/warrington,FWB,Transport,54950,Transport-Snad Cot,300600,03/09/2019,5100403537,1088,Direct Taxis,101873
WARRINGTON BOROUGH COUNCIL,http://opendatacommunities.org/id/unitary-authority/warrington,FWB,Transport,54950,Transport-Snad Cot,300600,03/09/2019,5100403538,832,Direct Taxis,101873
WARRINGTON BOROUGH COUNCIL,http://opendatacommunities.org/id/unitary-authority/warrington,FWB,Transport,54950,Transport-Snad Cot,300600,03/09/2019,5100403539,756,Horn'S Private Hire,101991
WARRINGTON BOROUGH COUNCIL,http://opendatacommunities.org/id/unitary-authority/warrington,FWB,Transport,54950,Transport-Snad Cot,300600,03/09/2019,5100403541,612,Raza Taxis,105056
WARRINGTON BOROUGH COUNCIL,http://opendatacommunities.org/id/unitary-authority/warrington,RSC,Professional Development Centre,21000,Materials,400500,03/09/2019,5100403551,1210,MHFA England,116176
WARRINGTON BOROUGH COUNCIL,http://opendatacommunities.org/id/unitary-authority/warrington,ET0,Street Lighting Client,44241,Lighting Energy Char,531550,03/09/2019,5100403553,8798.22,Npower Electricity,101884
WARRINGTON BOROUGH COUNCIL,http://opendatacommunities.org/id/unitary-authority/warrington,ET0,Waste Recycling,41820,CRC Contract,530450,03/09/2019,5100403562,13080.61,Environmental Waste Controls Ltd,102474
WARRINGTON BOROUGH COUNCIL,http://opendatacommunities.org/id/unitary-authority/warrington,ET0,Waste Recycling,41820,Green Waste Treatment,530800,03/09/2019,5100403563,3709.51,White Moss Horticulture Ltd,104283
WARRINGTON BOROUGH COUNCIL,http://opendatacommunities.org/id/unitary-authority/warrington,ET0,Bus Interchange,44460,Equipment Purchase & Contract,400000,03/09/2019,5100403564,781.01,Ravenhead Services,105054
WARRINGTON BOROUGH COUNCIL,http://opendatacommunities.org/id/unitary-authority/warrington,NEO,IT Projects,83003,Computer Hardware - Purchase,450700,03/09/2019,5100403565,1744.32,TNP - The Networking People,110271
WARRINGTON BOROUGH COUNCIL,http://opendatacommunities.org/id/unitary-authority/warrington,RSC,Individual Electoral Registration,11660,Equipment Purchase & Contract,400000,03/09/2019,5100403569,685,J Lyons Removals,113390
WARRINGTON BOROUGH COUNCIL,http://opendatacommunities.org/id/unitary-authority/warrington,ENO,Highways LTP,82004,Carriageway-Resurfacing,532250,03/09/2019,5100403571,14325.22,Tarmac,100489
WARRINGTON BOROUGH COUNCIL,http://opendatacommunities.org/id/unitary-authority/warrington,ET0,Transport Holding Account,41311,Maintenance Work - Sub Contractors,301150,03/09/2019,5100403572,833.31,Robins & Day Peugeot Liverpool,113829
WARRINGTON BOROUGH COUNCIL,http://opendatacommunities.org/id/unitary-authority/warrington,DG0,Local Plan,43445,Consult.& Prof. Serv,440000,03/09/2019,5100403574,1110,Vivid Resourcing Limited,115752
WARRINGTON BOROUGH COUNCIL,http://opendatacommunities.org/id/unitary-authority/warrington,DG0,Local Plan,43445,Consult.& Prof. Serv,440000,03/09/2019,5100403575,900,Vivid Resourcing Limited,115752
WARRINGTON BOROUGH COUNCIL,http://opendatacommunities.org/id/unitary-authority/warrington,ET0,Urban Traffic Management Control,44370,Signal Equipment,531650,03/09/2019,5100403592,900.48,Siemens PLC,101162
WARRINGTON BOROUGH COUNCIL,http://opendatacommunities.org/id/unitary-authority/warrington,ET0,Street Lighting (Other Works),44243,Materials,400500,03/09/2019,5100403595,6047,Twm Traffic Control Systems,103994
WARRINGTON BOROUGH COUNCIL,http://opendatacommunities.org/id/unitary-authority/warrington,ET0,Street Lighting (Other Works),44243,Materials,400500,03/09/2019,5100403596,3998,Twm Traffic Control Systems,103994
WARRINGTON BOROUGH COUNCIL,http://opendatacommunities.org/id/unitary-authority/warrington,ET0,Transport Holding Account,41311,Veh Maint. Materials,300000,11/09/2019,5100403600,666.6,Walton Summit Truck Centre Ltd,112806
WARRINGTON BOROUGH COUNCIL,http://opendatacommunities.org/id/unitary-authority/warrington,ET0,Construction Stores Overhead Account,41320,Uniforms,420000,03/09/2019,5100403606,1339.56,Parker Merchanting Ltd,105007
WARRINGTON BOROUGH COUNCIL,http://opendatacommunities.org/id/unitary-authority/warrington,FWB,CIN Team 5,31015,Looked after children in Warrington,301000,04/09/2019,5100403661,1696,Warrington Cars,113774
WARRINGTON BOROUGH COUNCIL,http://opendatacommunities.org/id/unitary-authority/warrington,PIO,People & Improvement Other,85002,Minor Adaptations<750,400700,04/09/2019,5100403662,2442,Access-Able (UK) Limited,114939
WARRINGTON BOROUGH COUNCIL,http://opendatacommunities.org/id/unitary-authority/warrington,PIO,People & Improvement Other,85002,Minor Adaptations<750,400700,04/09/2019,5100403663,2888,Access-Able (UK) Limited,114939
WARRINGTON BOROUGH COUNCIL,http://opendatacommunities.org/id/unitary-authority/warrington,FWB,Equipment Store,54930,Equipment Purchase & Contract,400000,04/09/2019,5100403671,1230,Newlyn Healthcare Ltd,101429
WARRINGTON BOROUGH COUNCIL,http://opendatacommunities.org/id/unitary-authority/warrington,RSC,Annual Canvas,11500,Postages,450000,04/09/2019,5100403672,1826.23,Print Image Facilities LLP,111374
WARRINGTON BOROUGH COUNCIL,http://opendatacommunities.org/id/unitary-authority/warrington,ENO,Highways Other,82005,Carriageway-Resurfacing,532250,04/09/2019,5100403673,164640.93,Tarmac,100489
WARRINGTON BOROUGH COUNCIL,http://opendatacommunities.org/id/unitary-authority/warrington,ENO,Highways Other,82005,Carriageway-Resurfacing,532250,04/09/2019,5100403674,72162.14,Tarmac,100489
WARRINGTON BOROUGH COUNCIL,http://opendatacommunities.org/id/unitary-authority/warrington,FWB,Telecare / Sensory,54560,Health Awareness,441950,04/09/2019,5100403675,765,Tunstall Healthcare UK Ltd,105427
WARRINGTON BOROUGH COUNCIL,http://opendatacommunities.org/id/unitary-authority/warrington,ET0,Transport Holding Account,41311,Diesel,300100,04/09/2019,5100403678,20556.33,GB Oils Ltd (Martindale Fuels),103439
WARRINGTON BOROUGH COUNCIL,http://opendatacommunities.org/id/unitary-authority/warrington,ENO,Highways Other,82005,Environmental Works,531050,11/09/2019,5100403679,35760,Tyco Intergrated Fire & Security,100962
WARRINGTON BOROUGH COUNCIL,http://opendatacommunities.org/id/unitary-authority/warrington,ET0,Time Square MSCP,44321,Equipment Purchase & Contract,400000,04/09/2019,5100403681,3963,Siemens PLC,101162
WARRINGTON BOROUGH COUNCIL,http://opendatacommunities.org/id/unitary-authority/warrington,ET0,CCTV Operations exp,44380,Equipment Purchase & Contract,400000,04/09/2019,5100403681,3689.5,Siemens PLC,101162
WARRINGTON BOROUGH COUNCIL,http://opendatacommunities.org/id/unitary-authority/warrington,ET0,Risley Moss Observation Tower,40028,Consult.& Prof. Serv,440000,04/09/2019,5100403683,5215,Mott Macdonald Ltd,104950
WARRINGTON BOROUGH COUNCIL,http://opendatacommunities.org/id/unitary-authority/warrington,ET0,Transport Holding Account,41311,Vehicle Hire Charges,320000,11/09/2019,5100403684,1469,F G Rowland Ltd,102555
WARRINGTON BOROUGH COUNCIL,http://opendatacommunities.org/id/unitary-authority/warrington,ET0,Development Control,43430,Consult.& Prof. Serv,440000,04/09/2019,5100403694,958.5,Vivid Resourcing Limited,115752
WARRINGTON BOROUGH COUNCIL,http://opendatacommunities.org/id/unitary-authority/warrington,ET0,Transport Holding Account,41311,Vehicle Hire Charges,320000,11/09/2019,5100403695,1469,F G Rowland Ltd,102555
WARRINGTON BOROUGH COUNCIL,http://opendatacommunities.org/id/unitary-authority/warrington,ENO,Environment & Regeneration Other,82002,Consult.& Prof. Serv,440000,04/09/2019,5100403697,1000,Frank Whittle Partnership,110231
WARRINGTON BOROUGH COUNCIL,http://opendatacommunities.org/id/unitary-authority/warrington,ET0,Core Operational Business,41730,Grounds Maintenance - External,280000,04/09/2019,5100403701,863,Duttons Traffic Management Services,115913
WARRINGTON BOROUGH COUNCIL,http://opendatacommunities.org/id/unitary-authority/warrington,ET0,Core Operational Business,41730,Grounds Maintenance - External,280000,04/09/2019,5100403701,863,Duttons Traffic Management Services,115913
WARRINGTON BOROUGH COUNCIL,http://opendatacommunities.org/id/unitary-authority/warrington,ET0,Core Operational Business,41730,Grounds Maintenance - External,280000,04/09/2019,5100403701,863,Duttons Traffic Management Services,115913
WARRINGTON BOROUGH COUNCIL,http://opendatacommunities.org/id/unitary-authority/warrington,ET0,Core Operational Business,41730,Grounds Maintenance - External,280000,04/09/2019,5100403701,863,Duttons Traffic Management Services,115913
WARRINGTON BOROUGH COUNCIL,http://opendatacommunities.org/id/unitary-authority/warrington,ET0,Core Operational Business,41730,Grounds Maintenance - External,280000,04/09/2019,5100403701,700,Duttons Traffic Management Services,115913
WARRINGTON BOROUGH COUNCIL,http://opendatacommunities.org/id/unitary-authority/warrington,ET0,Core Operational Business,41730,Grounds Maintenance - External,280000,04/09/2019,5100403701,700,Duttons Traffic Management Services,115913
WARRINGTON BOROUGH COUNCIL,http://opendatacommunities.org/id/unitary-authority/warrington,ET0,Core Operational Business,41730,Grounds Maintenance - External,280000,04/09/2019,5100403701,700,Duttons Traffic Management Services,115913
WARRINGTON BOROUGH COUNCIL,http://opendatacommunities.org/id/unitary-authority/warrington,ET0,Core Operational Business,41730,Grounds Maintenance - External,280000,04/09/2019,5100403701,550,Duttons Traffic Management Services,115913
WARRINGTON BOROUGH COUNCIL,http://opendatacommunities.org/id/unitary-authority/warrington,ET0,Core Operational Business,41730,Grounds Maintenance - External,280000,04/09/2019,5100403701,550,Duttons Traffic Management Services,115913
WARRINGTON BOROUGH COUNCIL,http://opendatacommunities.org/id/unitary-authority/warrington,ET0,Core Operational Business,41730,Grounds Maintenance - External,280000,04/09/2019,5100403701,550,Duttons Traffic Management Services,115913
WARRINGTON BOROUGH COUNCIL,http://opendatacommunities.org/id/unitary-authority/warrington,ET0,Core Operational Business,41730,Grounds Maintenance - External,280000,04/09/2019,5100403701,550,Duttons Traffic Management Services,115913
WARRINGTON BOROUGH COUNCIL,http://opendatacommunities.org/id/unitary-authority/warrington,ET0,Town Centre (Street Scene),41732,Grounds Maintenance - External,280000,04/09/2019,5100403701,863,Duttons Traffic Management Services,115913
WARRINGTON BOROUGH COUNCIL,http://opendatacommunities.org/id/unitary-authority/warrington,RSC,One - Off ICT Costs,23200,Computer Software - Maintenance,450850,04/09/2019,5100403703,1400,Xn Leisure Systems Ltd,102132
WARRINGTON BOROUGH COUNCIL,http://opendatacommunities.org/id/unitary-authority/warrington,PIO,People & Improvement Other,85002,Lifts from Stock,400850,04/09/2019,5100403704,3165,ThyssenKrupp Encasa Ltd,105382
WARRINGTON BOROUGH COUNCIL,http://opendatacommunities.org/id/unitary-authority/warrington,RSC,Welfare Support,10360,"Campaigns,  Projects and Events",491950,04/09/2019,5100403706,5165,Changing Lives in Cheshire,111607
WARRINGTON BOROUGH COUNCIL,http://opendatacommunities.org/id/unitary-authority/warrington,NEO,Neighbourhood & Community Other,83002,Consult.& Prof. Serv,440000,11/09/2019,5100403707,8330,Baker Mallett LLP,116160
WARRINGTON BOROUGH COUNCIL,http://opendatacommunities.org/id/unitary-authority/warrington,PIO,People & Improvement Other,85002,Lifts from Stock,400850,04/09/2019,5100403708,847.5,AMW Lift & Mobility Services Ltd,112766
WARRINGTON BOROUGH COUNCIL,http://opendatacommunities.org/id/unitary-authority/warrington,ET0,Transport Holding Account,41311,Vehicle Hire Charges,320000,11/09/2019,5100403710,1020,B & T Skip Hire,100921
WARRINGTON BOROUGH COUNCIL,http://opendatacommunities.org/id/unitary-authority/warrington,CYP,Childrens & Young People,81000,Specific Work,200200,04/09/2019,5100403714,39214.08,BBR Roofing Ltd,113249
WARRINGTON BOROUGH COUNCIL,http://opendatacommunities.org/id/unitary-authority/warrington,COR,Other Commercial Prop.,43560,Consult.& Prof. Serv,440000,04/09/2019,5100403720,10450,Knight Frank Llp,104426
WARRINGTON BOROUGH COUNCIL,http://opendatacommunities.org/id/unitary-authority/warrington,DG0,Business Exchange,22260,Exhibitions,442450,04/09/2019,5100403722,950,BusinessCloud Media Limited,117349
WARRINGTON BOROUGH COUNCIL,http://opendatacommunities.org/id/unitary-authority/warrington,FWB,Special Schools Transport,33208,Statemented - Special Unit Pupil Transpo,300750,04/09/2019,5100403727,2100,Andys Bus Company,100654
WARRINGTON BOROUGH COUNCIL,http://opendatacommunities.org/id/unitary-authority/warrington,ET0,Local Bus Contracts,44430,Payments To Operator,530150,04/09/2019,5100403735,2524.07,J J Travel & Transport Ltd,104838
WARRINGTON BOROUGH COUNCIL,http://opendatacommunities.org/id/unitary-authority/warrington,FWB,Transport,54950,Transport-Snad Cot,300600,04/09/2019,5100403737,2530,Sure & Safe Minibus Service Ltd,100137
WARRINGTON BOROUGH COUNCIL,http://opendatacommunities.org/id/unitary-authority/warrington,FWB,Special Schools Transport,33208,Statemented - Special Unit Pupil Transpo,300750,04/09/2019,5100403738,2530,Sure & Safe Minibus Service Ltd,100137
WARRINGTON BOROUGH COUNCIL,http://opendatacommunities.org/id/unitary-authority/warrington,FWB,Transport,54950,Transport-Snad Cot,300600,04/09/2019,5100403739,2620,Sure & Safe Minibus Service Ltd,100137
WARRINGTON BOROUGH COUNCIL,http://opendatacommunities.org/id/unitary-authority/warrington,FWB,Equipment Store,54930,Equipment Purchase & Contract,400000,04/09/2019,5100403740,650,Harvest Healthcare Ltd,108555
WARRINGTON BOROUGH COUNCIL,http://opendatacommunities.org/id/unitary-authority/warrington,ET0,Walton Estate,41430,Events Costs,490000,04/09/2019,5100403741,2796,Inflatable Flix,116913
WARRINGTON BOROUGH COUNCIL,http://opendatacommunities.org/id/unitary-authority/warrington,COR,Other Commercial Prop.,43560,Consult.& Prof. Serv,440000,04/09/2019,5100403743,12000,Knight Frank Llp,104426
WARRINGTON BOROUGH COUNCIL,http://opendatacommunities.org/id/unitary-authority/warrington,FWB,DSG Independent School Fees,32011,Fees (Including Agents Fees),441450,05/09/2019,5100403752,4607.47,Seashell Trust,103082
WARRINGTON BOROUGH COUNCIL,http://opendatacommunities.org/id/unitary-authority/warrington,FWB,DSG Independent School Fees,32011,Fees (Including Agents Fees),441450,05/09/2019,5100403753,4607.47,Seashell Trust,103082
WARRINGTON BOROUGH COUNCIL,http://opendatacommunities.org/id/unitary-authority/warrington,ET0,Construction Stores Overhead Account,41320,Materials,400500,06/09/2019,5100403757,748,The Helping Hand Co (Ledbury) Ltd,104778
WARRINGTON BOROUGH COUNCIL,http://opendatacommunities.org/id/unitary-authority/warrington,ENO,Highways LTP,82004,Carriageway-Resurfacing,532250,05/09/2019,5100403789,87087.06,Tarmac,100489
WARRINGTON BOROUGH COUNCIL,http://opendatacommunities.org/id/unitary-authority/warrington,FWB,Effective Practice,33300,Agency Supply,180000,05/09/2019,5100403790,165217.34,Cheshire East Council,410116
WARRINGTON BOROUGH COUNCIL,http://opendatacommunities.org/id/unitary-authority/warrington,FWB,Permanence Team,31100,Fees (Including Agents Fees),441450,05/09/2019,5100403792,2420,G-Map Services,106244
WARRINGTON BOROUGH COUNCIL,http://opendatacommunities.org/id/unitary-authority/warrington,ET0,Recreation & Games,41431,Equipment Purchase & Contract,400000,05/09/2019,5100403793,669.6,Safeguard Nw Ltd,105412
WARRINGTON BOROUGH COUNCIL,http://opendatacommunities.org/id/unitary-authority/warrington,ET0,Waste Recycling,41820,CRC Contract,530450,05/09/2019,5100403794,2180.1,Environmental Waste Controls Ltd,102474
WARRINGTON BOROUGH COUNCIL,http://opendatacommunities.org/id/unitary-authority/warrington,ENO,Environment & Regeneration Other,82002,Building Work,200850,05/09/2019,5100403795,57343.84,SKE Buildiing Products Limited,117155
WARRINGTON BOROUGH COUNCIL,http://opendatacommunities.org/id/unitary-authority/warrington,ENO,Housing Projects,82008,Environmental Works,531050,05/09/2019,5100403798,21233.45,Ritson McKenzie Contractors Ltd,115586
WARRINGTON BOROUGH COUNCIL,http://opendatacommunities.org/id/unitary-authority/warrington,ET0,Walton Estate,41430,Materials,400500,05/09/2019,5100403799,948.46,Phs Group Ltd,105024
WARRINGTON BOROUGH COUNCIL,http://opendatacommunities.org/id/unitary-authority/warrington,FWB,Reablement permanent Scheme,54785,Car Leasing Charges,350000,05/09/2019,5100403800,1432.2,Arnold Clark Finance Ltd,103263
WARRINGTON BOROUGH COUNCIL,http://opendatacommunities.org/id/unitary-authority/warrington,FWB,Reablement permanent Scheme,54785,Car Leasing Charges,350000,05/09/2019,5100403801,1432.2,Arnold Clark Finance Ltd,103263
WARRINGTON BOROUGH COUNCIL,http://opendatacommunities.org/id/unitary-authority/warrington,ENO,Highways Other,82005,Environmental Works,531050,05/09/2019,5100403803,103362.84,Balfour Beatty Civil Engineering Li,114442
WARRINGTON BOROUGH COUNCIL,http://opendatacommunities.org/id/unitary-authority/warrington,ET0,Bus Interchange,44460,Equipment Purchase & Contract,400000,05/09/2019,5100403805,781.01,Ravenhead Services,105054
WARRINGTON BOROUGH COUNCIL,http://opendatacommunities.org/id/unitary-authority/warrington,COR,Other Commercial Prop.,43560,Consult.& Prof. Serv,440000,05/09/2019,5100403833,36750,TLT Solicitors,115669
WARRINGTON BOROUGH COUNCIL,http://opendatacommunities.org/id/unitary-authority/warrington,COR,Other Commercial Prop.,43560,Consult.& Prof. Serv,440000,05/09/2019,5100403833,1670.58,TLT Solicitors,115669
WARRINGTON BOROUGH COUNCIL,http://opendatacommunities.org/id/unitary-authority/warrington,ET0,Walton Estate,41430,Events Costs,490000,05/09/2019,5100403836,924,St John Ambulance,105098
WARRINGTON BOROUGH COUNCIL,http://opendatacommunities.org/id/unitary-authority/warrington,FWB,Collaborative Training Group,33301,Training,190150,05/09/2019,5100403837,3500,Aym' Association Of Yot Managers,101253
WARRINGTON BOROUGH COUNCIL,http://opendatacommunities.org/id/unitary-authority/warrington,ENO,Highways LTP,82004,Traffic Section,531150,05/09/2019,5100403838,3231.13,Tarmac,100489
WARRINGTON BOROUGH COUNCIL,http://opendatacommunities.org/id/unitary-authority/warrington,ENO,Highways LTP,82004,Traffic Section,531150,05/09/2019,5100403839,846.81,Tarmac,100489
WARRINGTON BOROUGH COUNCIL,http://opendatacommunities.org/id/unitary-authority/warrington,ENO,Highways LTP,82004,Traffic Section,531150,05/09/2019,5100403839,686.85,Tarmac,100489
WARRINGTON BOROUGH COUNCIL,http://opendatacommunities.org/id/unitary-authority/warrington,ENO,Highways LTP,82004,Traffic Section,531150,05/09/2019,5100403839,647.93,Tarmac,100489
WARRINGTON BOROUGH COUNCIL,http://opendatacommunities.org/id/unitary-authority/warrington,ET0,Traffic and Safety,44350,Unlit Signs,531200,05/09/2019,5100403839,1500.47,Tarmac,100489
WARRINGTON BOROUGH COUNCIL,http://opendatacommunities.org/id/unitary-authority/warrington,ENP,Environment & Regeneration,82000,Computer Hardware - Purchase,450700,05/09/2019,5100403843,2555.28,TNP - The Networking People,110271
WARRINGTON BOROUGH COUNCIL,http://opendatacommunities.org/id/unitary-authority/warrington,ENP,Environment & Regeneration,82000,Computer Hardware - Purchase,450700,05/09/2019,5100403843,900,TNP - The Networking People,110271
WARRINGTON BOROUGH COUNCIL,http://opendatacommunities.org/id/unitary-authority/warrington,ET0,Schools (Street Scene),41733,Materials,400500,11/09/2019,5100403844,560,Envirolawn,108926
WARRINGTON BOROUGH COUNCIL,http://opendatacommunities.org/id/unitary-authority/warrington,ET0,Transport Holding Account,41311,Veh Maint. Materials,300000,06/09/2019,5100403876,645.91,F R Sharrock Ltd,105122
WARRINGTON BOROUGH COUNCIL,http://opendatacommunities.org/id/unitary-authority/warrington,ET0,Street Lighting Client,44241,Lighting Energy Char,531550,06/09/2019,5100403878,689.32,Npower Electricity,101884
WARRINGTON BOROUGH COUNCIL,http://opendatacommunities.org/id/unitary-authority/warrington,ENO,Building Maintenance Environment & Regen,82001,Specific Work,200200,06/09/2019,5100403879,3050,B & K Landscapes,105448
WARRINGTON BOROUGH COUNCIL,http://opendatacommunities.org/id/unitary-authority/warrington,ET0,Development Control,43430,Consult.& Prof. Serv,440000,11/09/2019,5100403884,1018.5,Vivid Resourcing Limited,115752
WARRINGTON BOROUGH COUNCIL,http://opendatacommunities.org/id/unitary-authority/warrington,ENO,Environment & Regeneration Other,82002,Licences,492000,06/09/2019,5100403885,925,Labc,100506
WARRINGTON BOROUGH COUNCIL,http://opendatacommunities.org/id/unitary-authority/warrington,ET0,Development Control,43430,Consult.& Prof. Serv,440000,06/09/2019,5100403886,1376.25,Vivid Resourcing Limited,115752
WARRINGTON BOROUGH COUNCIL,http://opendatacommunities.org/id/unitary-authority/warrington,ET0,Schools (Street Scene),41733,Materials,400500,06/09/2019,5100403887,870,M C & M A Stewart Haulage Ltd,105159
WARRINGTON BOROUGH COUNCIL,http://opendatacommunities.org/id/unitary-authority/warrington,FWB,Temporary Accomodation,43652,Maintenance Work - Sub Contractors,301150,06/09/2019,5100403891,1140,Cleansforyou.com,114634
WARRINGTON BOROUGH COUNCIL,http://opendatacommunities.org/id/unitary-authority/warrington,FWB,Transport,54950,Transport-Snad Cot,300600,06/09/2019,5100403899,4110,Redacted for personal data,104639
WARRINGTON BOROUGH COUNCIL,http://opendatacommunities.org/id/unitary-authority/warrington,ENO,Housing Projects,82008,Minor Adaptations<750,400700,06/09/2019,5100403900,9700,Gt Builders,104761
WARRINGTON BOROUGH COUNCIL,http://opendatacommunities.org/id/unitary-authority/warrington,FWB,Homelessness,43650,Emergency Accommodation Allowance,550500,06/09/2019,5100403909,1650,The Patten Arms Hotel,115465
WARRINGTON BOROUGH COUNCIL,http://opendatacommunities.org/id/unitary-authority/warrington,FWB,Homelessness,43650,Emergency Accommodation Allowance,550500,06/09/2019,5100403912,1583.34,The Patten Arms Hotel,115465
WARRINGTON BOROUGH COUNCIL,http://opendatacommunities.org/id/unitary-authority/warrington,ET0,Local Bus Contracts,44430,Payments To Operator,530150,06/09/2019,5100403920,4083.33,Warrington Borough Transport Ltd,105226
WARRINGTON BOROUGH COUNCIL,http://opendatacommunities.org/id/unitary-authority/warrington,ET0,Local Bus Contracts,44430,Payments To Operator,530150,06/09/2019,5100403921,728.58,Warrington Borough Transport Ltd,105226
WARRINGTON BOROUGH COUNCIL,http://opendatacommunities.org/id/unitary-authority/warrington,ET0,Waste Disposal,41830,Landfill Contract,530500,06/09/2019,5100403941,50890.03,FCC Environment,101348
WARRINGTON BOROUGH COUNCIL,http://opendatacommunities.org/id/unitary-authority/warrington,ET0,Time Square MSCP,44321,Car Park Attendants,530250,06/09/2019,5100403942,22380,NSL Services Group,113509
WARRINGTON BOROUGH COUNCIL,http://opendatacommunities.org/id/unitary-authority/warrington,ET0,Time Square MSCP,44321,Car Park Attendants,530250,06/09/2019,5100403942,18515.81,NSL Services Group,113509
WARRINGTON BOROUGH COUNCIL,http://opendatacommunities.org/id/unitary-authority/warrington,ET0,Surface Car Parks,44322,Car Park Attendants,530250,06/09/2019,5100403942,6498.27,NSL Services Group,113509
WARRINGTON BOROUGH COUNCIL,http://opendatacommunities.org/id/unitary-authority/warrington,ET0,On Street Car Parking,44323,Car Park Attendants,530250,06/09/2019,5100403942,27944.35,NSL Services Group,113509
WARRINGTON BOROUGH COUNCIL,http://opendatacommunities.org/id/unitary-authority/warrington,ET0,The Forge Car Park Stockton Heath,44324,Car Park Attendants,530250,06/09/2019,5100403942,1767.19,NSL Services Group,113509
WARRINGTON BOROUGH COUNCIL,http://opendatacommunities.org/id/unitary-authority/warrington,ET0,Walton Estate,41430,Car Park Attendants,530250,06/09/2019,5100403942,1348.23,NSL Services Group,113509
WARRINGTON BOROUGH COUNCIL,http://opendatacommunities.org/id/unitary-authority/warrington,ET0,On Street Car Parking,44323,Events on the Highway,531350,06/09/2019,5100403942,14168.04,NSL Services Group,113509
WARRINGTON BOROUGH COUNCIL,http://opendatacommunities.org/id/unitary-authority/warrington,ENO,Highways LTP,82004,Bridges - Structural,532800,06/09/2019,5100403943,57053.05,Tarmac,100489
WARRINGTON BOROUGH COUNCIL,http://opendatacommunities.org/id/unitary-authority/warrington,ENO,Highways LTP,82004,Bridges - Structural,532800,06/09/2019,5100403944,81889.12,Tarmac,100489
WARRINGTON BOROUGH COUNCIL,http://opendatacommunities.org/id/unitary-authority/warrington,ET0,Facilities Management,41422,Materials,400500,06/09/2019,5100403964,1367.55,G B Sport & Leisure,102479
WARRINGTON BOROUGH COUNCIL,http://opendatacommunities.org/id/unitary-authority/warrington,ENO,Highways LTP,82004,Environmental Works,531050,06/09/2019,5100403966,26173.82,Network Surfacing Ltd,113235
WARRINGTON BOROUGH COUNCIL,http://opendatacommunities.org/id/unitary-authority/warrington,ET0,Transport Holding Account,41311,Veh Maint. Materials,300000,10/09/2019,5100404039,672.21,F R Sharrock Ltd,105122
WARRINGTON BOROUGH COUNCIL,http://opendatacommunities.org/id/unitary-authority/warrington,ET0,Local Bus Contracts,44430,Payments To Operator,530150,09/09/2019,5100404099,2215,Warrington Borough Transport Ltd,105226
WARRINGTON BOROUGH COUNCIL,http://opendatacommunities.org/id/unitary-authority/warrington,ET0,Local Bus Contracts,44430,Payments To Operator,530150,09/09/2019,5100404100,732.48,Warrington Borough Transport Ltd,105226
WARRINGTON BOROUGH COUNCIL,http://opendatacommunities.org/id/unitary-authority/warrington,ET0,Local Bus Contracts,44430,Payments To Operator,530150,09/09/2019,5100404101,1512.5,Warrington Borough Transport Ltd,105226
WARRINGTON BOROUGH COUNCIL,http://opendatacommunities.org/id/unitary-authority/warrington,ET0,Local Bus Contracts,44430,Payments To Operator,530150,09/09/2019,5100404102,2500,Warrington Borough Transport Ltd,105226
WARRINGTON BOROUGH COUNCIL,http://opendatacommunities.org/id/unitary-authority/warrington,ET0,Local Bus Contracts,44430,Payments To Operator,530150,09/09/2019,5100404103,1887.67,Warrington Borough Transport Ltd,105226
WARRINGTON BOROUGH COUNCIL,http://opendatacommunities.org/id/unitary-authority/warrington,ET0,Local Bus Contracts,44430,Payments To Operator,530150,09/09/2019,5100404105,3333.33,Warrington Borough Transport Ltd,105226
WARRINGTON BOROUGH COUNCIL,http://opendatacommunities.org/id/unitary-authority/warrington,ET0,Local Bus Contracts,44430,Payments To Operator,530150,09/09/2019,5100404106,4810,Warrington Borough Transport Ltd,105226
WARRINGTON BOROUGH COUNCIL,http://opendatacommunities.org/id/unitary-authority/warrington,ET0,Local Bus Contracts,44430,Payments To Operator,530150,09/09/2019,5100404107,1697.41,Warrington Borough Transport Ltd,105226
WARRINGTON BOROUGH COUNCIL,http://opendatacommunities.org/id/unitary-authority/warrington,ET0,Local Bus Contracts,44430,Payments To Operator,530150,09/09/2019,5100404108,883.33,Warrington Borough Transport Ltd,105226
WARRINGTON BOROUGH COUNCIL,http://opendatacommunities.org/id/unitary-authority/warrington,FWB,Transport,54950,Transport-Snad Cot,300600,09/09/2019,5100404109,560,Arrivals Star,101879
WARRINGTON BOROUGH COUNCIL,http://opendatacommunities.org/id/unitary-authority/warrington,FWB,DSG Independent School Fees,32011,Fees (Including Agents Fees),441450,09/09/2019,5100404110,2883.33,Belmont School Limited,400047
WARRINGTON BOROUGH COUNCIL,http://opendatacommunities.org/id/unitary-authority/warrington,FWB,DSG Independent School Fees,32011,Fees (Including Agents Fees),441450,09/09/2019,5100404111,2883.33,Belmont School Limited,400047
WARRINGTON BOROUGH COUNCIL,http://opendatacommunities.org/id/unitary-authority/warrington,FWB,DSG Independent School Fees,32011,Fees (Including Agents Fees),441450,09/09/2019,5100404112,2825.83,Belmont School Limited,400047
WARRINGTON BOROUGH COUNCIL,http://opendatacommunities.org/id/unitary-authority/warrington,FWB,DSG Independent School Fees,32011,Fees (Including Agents Fees),441450,09/09/2019,5100404113,2883.33,Belmont School Limited,400047
WARRINGTON BOROUGH COUNCIL,http://opendatacommunities.org/id/unitary-authority/warrington,FWB,DSG Independent School Fees,32011,Fees (Including Agents Fees),441450,09/09/2019,5100404114,2970,Belmont School Limited,400047
WARRINGTON BOROUGH COUNCIL,http://opendatacommunities.org/id/unitary-authority/warrington,FWB,DSG Independent School Fees,32011,Fees (Including Agents Fees),441450,09/09/2019,5100404115,2883.33,Belmont School Limited,400047
WARRINGTON BOROUGH COUNCIL,http://opendatacommunities.org/id/unitary-authority/warrington,FWB,DSG Independent School Fees,32011,Fees (Including Agents Fees),441450,09/09/2019,5100404116,2844.17,Belmont School Limited,400047
WARRINGTON BOROUGH COUNCIL,http://opendatacommunities.org/id/unitary-authority/warrington,FWB,DSG Independent School Fees,32011,Fees (Including Agents Fees),441450,09/09/2019,5100404117,2844.17,Belmont School Limited,400047
WARRINGTON BOROUGH COUNCIL,http://opendatacommunities.org/id/unitary-authority/warrington,FWB,DSG Independent School Fees,32011,Fees (Including Agents Fees),441450,09/09/2019,5100404118,2883.33,Belmont School Limited,400047
WARRINGTON BOROUGH COUNCIL,http://opendatacommunities.org/id/unitary-authority/warrington,FWB,DSG Independent School Fees,32011,Fees (Including Agents Fees),441450,09/09/2019,5100404119,2883.33,Belmont School Limited,400047
WARRINGTON BOROUGH COUNCIL,http://opendatacommunities.org/id/unitary-authority/warrington,FWB,Equipment Store,54930,Annual Maintenance,442100,10/09/2019,5100404155,774.3,ThyssenKrupp Encasa Ltd,105382
WARRINGTON BOROUGH COUNCIL,http://opendatacommunities.org/id/unitary-authority/warrington,ENO,Priority Infrastructure,82009,Consult.& Prof. Serv,440000,10/09/2019,5100404168,13107.16,Aecom Limited,101037
WARRINGTON BOROUGH COUNCIL,http://opendatacommunities.org/id/unitary-authority/warrington,ENO,Priority Infrastructure,82009,Consult.& Prof. Serv,440000,10/09/2019,5100404170,1951.46,Aecom Ltd,106088
WARRINGTON BOROUGH COUNCIL,http://opendatacommunities.org/id/unitary-authority/warrington,ET0,PW&F Management Operations,41427,Kennel Fees,440550,10/09/2019,5100404175,516,Animal Wardens Ltd,103042
WARRINGTON BOROUGH COUNCIL,http://opendatacommunities.org/id/unitary-authority/warrington,FWB,Housing Strategy,43620,Equipment Purchase & Contract,400000,10/09/2019,5100404181,1800,Complete Home Energy Systems,111861
WARRINGTON BOROUGH COUNCIL,http://opendatacommunities.org/id/unitary-authority/warrington,FWB,Housing Strategy,43620,Equipment Purchase & Contract,400000,10/09/2019,5100404182,1800,Complete Home Energy Systems,111861
WARRINGTON BOROUGH COUNCIL,http://opendatacommunities.org/id/unitary-authority/warrington,FWB,Housing Strategy,43620,Equipment Purchase & Contract,400000,10/09/2019,5100404183,1800,Complete Home Energy Systems,111861
WARRINGTON BOROUGH COUNCIL,http://opendatacommunities.org/id/unitary-authority/warrington,FWB,Housing Strategy,43620,Equipment Purchase & Contract,400000,10/09/2019,5100404184,1800,Complete Home Energy Systems,111861
WARRINGTON BOROUGH COUNCIL,http://opendatacommunities.org/id/unitary-authority/warrington,FWB,Housing Strategy,43620,Equipment Purchase & Contract,400000,10/09/2019,5100404185,1800,Complete Home Energy Systems,111861
WARRINGTON BOROUGH COUNCIL,http://opendatacommunities.org/id/unitary-authority/warrington,ET0,Waste Recycling,41820,CRC Contract,530450,10/09/2019,5100404194,4081.59,Environmental Waste Controls Ltd,102474
WARRINGTON BOROUGH COUNCIL,http://opendatacommunities.org/id/unitary-authority/warrington,ET0,Waste Recycling,41820,CRC Contract,530450,10/09/2019,5100404199,2084.16,Environmental Waste Controls Ltd,102474
WARRINGTON BOROUGH COUNCIL,http://opendatacommunities.org/id/unitary-authority/warrington,ET0,Waste Recycling,41820,CRC Contract,530450,10/09/2019,5100404200,4255,Environmental Waste Controls Ltd,102474
WARRINGTON BOROUGH COUNCIL,http://opendatacommunities.org/id/unitary-authority/warrington,ET0,Waste Recycling,41820,CRC Contract,530450,10/09/2019,5100404202,1094.08,Environmental Waste Controls Ltd,102474
WARRINGTON BOROUGH COUNCIL,http://opendatacommunities.org/id/unitary-authority/warrington,ET0,Waste Recycling,41820,CRC Contract,530450,10/09/2019,5100404203,3820.44,Environmental Waste Controls Ltd,102474
WARRINGTON BOROUGH COUNCIL,http://opendatacommunities.org/id/unitary-authority/warrington,ET0,Waste Recycling,41820,CRC Contract,530450,10/09/2019,5100404204,1059.48,Environmental Waste Controls Ltd,102474
WARRINGTON BOROUGH COUNCIL,http://opendatacommunities.org/id/unitary-authority/warrington,ET0,Waste Recycling,41820,CRC Contract,530450,10/09/2019,5100404205,790.56,Environmental Waste Controls Ltd,102474
WARRINGTON BOROUGH COUNCIL,http://opendatacommunities.org/id/unitary-authority/warrington,ET0,Waste Recycling,41820,CRC Contract,530450,10/09/2019,5100404206,9005.88,Environmental Waste Controls Ltd,102474
WARRINGTON BOROUGH COUNCIL,http://opendatacommunities.org/id/unitary-authority/warrington,ET0,Waste Recycling,41820,CRC Contract,530450,10/09/2019,5100404208,10184.4,Environmental Waste Controls Ltd,102474
WARRINGTON BOROUGH COUNCIL,http://opendatacommunities.org/id/unitary-authority/warrington,FWB,DSG Inter Authority Recoupment,32009,Fees (Including Agents Fees),441450,10/09/2019,5100404223,4535,Valley School,400541
WARRINGTON BOROUGH COUNCIL,http://opendatacommunities.org/id/unitary-authority/warrington,FWB,DSG Independent School Fees,32011,Fees (Including Agents Fees),441450,10/09/2019,5100404225,29378,Wargrave House School,400175
WARRINGTON BOROUGH COUNCIL,http://opendatacommunities.org/id/unitary-authority/warrington,FWB,DSG Independent School Fees,32011,Fees (Including Agents Fees),441450,10/09/2019,5100404225,2921.07,Wargrave House School,400175
WARRINGTON BOROUGH COUNCIL,http://opendatacommunities.org/id/unitary-authority/warrington,FWB,DSG Inter Authority Recoupment,32009,Fees (Including Agents Fees),441450,10/09/2019,5100404226,20303,Wigan Council,410018
WARRINGTON BOROUGH COUNCIL,http://opendatacommunities.org/id/unitary-authority/warrington,FWB,Educational Health & Care,32203,Eotas Pupil Funding,490350,10/09/2019,5100404235,1550,Nisai Virtual Academy Ltd,113981
WARRINGTON BOROUGH COUNCIL,http://opendatacommunities.org/id/unitary-authority/warrington,ENO,Priority Infrastructure,82009,Consult.& Prof. Serv,440000,10/09/2019,5100404237,4245.05,TLT Solicitors,115669
WARRINGTON BOROUGH COUNCIL,http://opendatacommunities.org/id/unitary-authority/warrington,ENO,Priority Infrastructure,82009,Consult.& Prof. Serv,440000,10/09/2019,5100404239,700,TLT Solicitors,115669
WARRINGTON BOROUGH COUNCIL,http://opendatacommunities.org/id/unitary-authority/warrington,ET0,Waste Recycling,41820,CRC Contract,530450,10/09/2019,5100404245,15260.71,Environmental Waste Controls Ltd,102474
WARRINGTON BOROUGH COUNCIL,http://opendatacommunities.org/id/unitary-authority/warrington,FWB,CIN Team 3,31003,Agency Supply,180000,10/09/2019,5100404246,1428.9,Network Ventures Ltd,110554
WARRINGTON BOROUGH COUNCIL,http://opendatacommunities.org/id/unitary-authority/warrington,FWB,Inclusion,32207,Fees (Including Agents Fees),441450,10/09/2019,5100404251,16950,University of Sheffield,113747
WARRINGTON BOROUGH COUNCIL,http://opendatacommunities.org/id/unitary-authority/warrington,ET0,PW&F Management Operations,41427,Kennel Fees,440550,10/09/2019,5100404268,833.33,Manchester & District Home For Lost,102062
WARRINGTON BOROUGH COUNCIL,http://opendatacommunities.org/id/unitary-authority/warrington,RSC,IT - Contracts,23600,Computer Software - Maintenance,450850,10/09/2019,5100404273,1419,Promodag,107351
WARRINGTON BOROUGH COUNCIL,http://opendatacommunities.org/id/unitary-authority/warrington,FWB,DSG Independent School Fees,32011,Fees (Including Agents Fees),441450,10/09/2019,5100404282,4798.58,Pontville School,109772
WARRINGTON BOROUGH COUNCIL,http://opendatacommunities.org/id/unitary-authority/warrington,FWB,DSG Independent School Fees,32011,Fees (Including Agents Fees),441450,10/09/2019,5100404283,6007.17,Pontville School,109772
WARRINGTON BOROUGH COUNCIL,http://opendatacommunities.org/id/unitary-authority/warrington,FWB,DSG Independent School Fees,32011,Fees (Including Agents Fees),441450,10/09/2019,5100404284,6007.17,Pontville School,109772
WARRINGTON BOROUGH COUNCIL,http://opendatacommunities.org/id/unitary-authority/warrington,FWB,DSG Inter Authority Recoupment,32009,Fees (Including Agents Fees),441450,10/09/2019,5100404285,7617,Cheshire East Council,410116
WARRINGTON BOROUGH COUNCIL,http://opendatacommunities.org/id/unitary-authority/warrington,ENO,Open Spaces,82006,Materials,400500,11/09/2019,5100404331,76940.85,Wicksteed Leisure Ltd,105436
WARRINGTON BOROUGH COUNCIL,http://opendatacommunities.org/id/unitary-authority/warrington,ENP,Environment & Regeneration,82000,Building Work,200850,11/09/2019,5100404332,1512415,Vinci Construction UK Ltd,108760
WARRINGTON BOROUGH COUNCIL,http://opendatacommunities.org/id/unitary-authority/warrington,ENO,Highways S106,82003,Environmental Works,531050,11/09/2019,5100404333,81678.69,Network Surfacing Ltd,113235
WARRINGTON BOROUGH COUNCIL,http://opendatacommunities.org/id/unitary-authority/warrington,CYP,Secondary,81002,Maintenance Work - Sub Contractors,301150,11/09/2019,5100404334,181278.51,Great Sankey High Academy School,400206
WARRINGTON BOROUGH COUNCIL,http://opendatacommunities.org/id/unitary-authority/warrington,CYP,Secondary,81002,Maintenance Work - Sub Contractors,301150,11/09/2019,5100404335,234142.13,Great Sankey High Academy School,400206
WARRINGTON BOROUGH COUNCIL,http://opendatacommunities.org/id/unitary-authority/warrington,ET0,Land Drainage,44120,Annual Maintenance,442100,11/09/2019,5100404341,3495,Tarmac,100489
WARRINGTON BOROUGH COUNCIL,http://opendatacommunities.org/id/unitary-authority/warrington,DG0,Contingency,45227,Maintenance of Plant & Machinery,250050,11/09/2019,5100404347,23857.63,Mears Limited,114197
WARRINGTON BOROUGH COUNCIL,http://opendatacommunities.org/id/unitary-authority/warrington,DG0,Contingency,45227,Maintenance of Plant & Machinery,250050,11/09/2019,5100404347,5593.14,Mears Limited,114197
WARRINGTON BOROUGH COUNCIL,http://opendatacommunities.org/id/unitary-authority/warrington,FWB,Effective Practice,33300,Consult.& Prof. Serv,440000,11/09/2019,5100404349,962.25,Child Action North West,109412
WARRINGTON BOROUGH COUNCIL,http://opendatacommunities.org/id/unitary-authority/warrington,FWB,Appropriate Adults Project,33314,Consult.& Prof. Serv,440000,11/09/2019,5100404350,811.44,Child Action North West,109412
WARRINGTON BOROUGH COUNCIL,http://opendatacommunities.org/id/unitary-authority/warrington,ET0,Transport Holding Account,41311,Vehicle Hire Charges,320000,11/09/2019,5100404351,1188,Peter Douglass Platforms,104676
WARRINGTON BOROUGH COUNCIL,http://opendatacommunities.org/id/unitary-authority/warrington,ET0,Transport Holding Account,41311,Vehicle Hire Charges,320000,11/09/2019,5100404352,1188,Peter Douglass Platforms,104676
WARRINGTON BOROUGH COUNCIL,http://opendatacommunities.org/id/unitary-authority/warrington,ET0,Transport Holding Account,41311,Vehicle Hire Charges,320000,11/09/2019,5100404353,1188,Peter Douglass Platforms,104676
WARRINGTON BOROUGH COUNCIL,http://opendatacommunities.org/id/unitary-authority/warrington,ET0,Transport Holding Account,41311,Oil - Gas,301250,11/09/2019,5100404356,1701.9,GB Oils Ltd (Martindale Fuels),103439
WARRINGTON BOROUGH COUNCIL,http://opendatacommunities.org/id/unitary-authority/warrington,FWB,DSG Post-16 Special Educational Needs,32309,Materials,400500,11/09/2019,5100404363,1445.84,Great Sankey High Academy School,400206
WARRINGTON BOROUGH COUNCIL,http://opendatacommunities.org/id/unitary-authority/warrington,ET0,Transport Holding Account,41311,Accidental Damage - Sub Contractors,301200,11/09/2019,5100404370,2751.07,Bentleys Motors Warrington Ltd,104511
WARRINGTON BOROUGH COUNCIL,http://opendatacommunities.org/id/unitary-authority/warrington,ET0,Crematorium,41411,Consult.& Prof. Serv,440000,11/09/2019,5100404391,2538,Dr David Robertson,100073
WARRINGTON BOROUGH COUNCIL,http://opendatacommunities.org/id/unitary-authority/warrington,FWB,Catering Crew,31536,Fees (Including Agents Fees),441450,12/09/2019,5100404393,2318.57,Youth Focus,440102
WARRINGTON BOROUGH COUNCIL,http://opendatacommunities.org/id/unitary-authority/warrington,COR,Markets,43711,Diverted Waste,530550,12/09/2019,5100404447,1561.29,Fresco Environmental Limited,114525
WARRINGTON BOROUGH COUNCIL,http://opendatacommunities.org/id/unitary-authority/warrington,FWB,Child Disability,32212,Equipment Purchase & Contract,400000,12/09/2019,5100404451,562.5,Healthcare Matters,110751
WARRINGTON BOROUGH COUNCIL,http://opendatacommunities.org/id/unitary-authority/warrington,FWB,Ross Close,31102,Fees (Including Agents Fees),441450,13/09/2019,5100404453,2578,Ofsted,102038
WARRINGTON BOROUGH COUNCIL,http://opendatacommunities.org/id/unitary-authority/warrington,RSC,One - Off ICT Costs,23200,Computer Software - Maintenance,450850,13/09/2019,5100404459,1400,Xn Leisure Systems Ltd,102132
WARRINGTON BOROUGH COUNCIL,http://opendatacommunities.org/id/unitary-authority/warrington,FWB,Children with Disabilities,31005,Transport SLA,300400,13/09/2019,5100404491,1400,Warrington Cars,113774
WARRINGTON BOROUGH COUNCIL,http://opendatacommunities.org/id/unitary-authority/warrington,FWB,Transport,54950,Transport-Snad Cot,300600,13/09/2019,5100404492,910,Warrington Cars,113774
WARRINGTON BOROUGH COUNCIL,http://opendatacommunities.org/id/unitary-authority/warrington,RSC,Professional Development Centre,21000,Materials,400500,19/09/2019,5100404502,557,Qualsafe,104058
WARRINGTON BOROUGH COUNCIL,http://opendatacommunities.org/id/unitary-authority/warrington,RSC,Registrars Services,11300,Public Survey Costs,440500,13/09/2019,5100404514,1025,Labc,100506
WARRINGTON BOROUGH COUNCIL,http://opendatacommunities.org/id/unitary-authority/warrington,ET0,Construction Stores Overhead Account,41320,Equipment Purchase & Contract,400000,14/09/2019,5100404562,740,Smith Bros (Caer Conan) Wh'Sale Ltd,105136
WARRINGTON BOROUGH COUNCIL,http://opendatacommunities.org/id/unitary-authority/warrington,RSC,Business Intelligence,12300,Public Survey Costs,440500,14/09/2019,5100404581,2500,SmartSurvey Ltd,116170
WARRINGTON BOROUGH COUNCIL,http://opendatacommunities.org/id/unitary-authority/warrington,FWB,Great Sankey Children's Centre,31512,Bulky Waste Collections,442600,14/09/2019,5100404582,552.8,Phs Group Ltd,105024
WARRINGTON BOROUGH COUNCIL,http://opendatacommunities.org/id/unitary-authority/warrington,FWB,Orchard Children's Centre,31531,Bulky Waste Collections,442600,14/09/2019,5100404584,520.4,Phs Group Ltd,105024
WARRINGTON BOROUGH COUNCIL,http://opendatacommunities.org/id/unitary-authority/warrington,COR,Refugees,60300,Adults Books,400300,14/09/2019,5100404601,720,Cheshire Language Academy,112359
WARRINGTON BOROUGH COUNCIL,http://opendatacommunities.org/id/unitary-authority/warrington,COR,General Contingencies,61000,Stationery,430150,14/09/2019,5100404604,4965,JEF Scaffolding,111480
WARRINGTON BOROUGH COUNCIL,http://opendatacommunities.org/id/unitary-authority/warrington,FWB,Homelessness,43650,Emergency Accommodation Allowance,550500,14/09/2019,5100404624,696.67,The Patten Arms Hotel,115465
WARRINGTON BOROUGH COUNCIL,http://opendatacommunities.org/id/unitary-authority/warrington,RSC,One - Off ICT Costs,23200,Computer Software - Maintenance,450850,16/09/2019,5100404664,1400,Xn Leisure Systems Ltd,102132
WARRINGTON BOROUGH COUNCIL,http://opendatacommunities.org/id/unitary-authority/warrington,FWB,Transport,54950,Transport-Snad Cot,300600,16/09/2019,5100404703,1572,Redacted for personal data,112712
WARRINGTON BOROUGH COUNCIL,http://opendatacommunities.org/id/unitary-authority/warrington,FWB,Accent Music Hub,32220,"Campaigns,  Projects and Events",491950,16/09/2019,5100404714,4850.4,Culture Warrington,100957
WARRINGTON BOROUGH COUNCIL,http://opendatacommunities.org/id/unitary-authority/warrington,FWB,Accent Music Hub,32220,"Campaigns,  Projects and Events",491950,16/09/2019,5100404714,1138,Culture Warrington,100957
WARRINGTON BOROUGH COUNCIL,http://opendatacommunities.org/id/unitary-authority/warrington,FWB,Accent Music Hub,32220,"Campaigns,  Projects and Events",491950,16/09/2019,5100404715,569,Culture Warrington,100957
WARRINGTON BOROUGH COUNCIL,http://opendatacommunities.org/id/unitary-authority/warrington,FWB,Equipment Store,54930,Annual Maintenance,442100,17/09/2019,5100404752,1228.62,Prism Medical UK,108616
WARRINGTON BOROUGH COUNCIL,http://opendatacommunities.org/id/unitary-authority/warrington,ENO,Building Maintenance Environment & Regen,82001,Maintenance of Plant & Machinery,250050,17/09/2019,5100404753,47858.53,Hall Conservation,116514
WARRINGTON BOROUGH COUNCIL,http://opendatacommunities.org/id/unitary-authority/warrington,ENO,Priority Infrastructure,82009,Consult.& Prof. Serv,440000,17/09/2019,5100404755,7747.65,Balfour Beatty Civil Engineering Li,114442
WARRINGTON BOROUGH COUNCIL,http://opendatacommunities.org/id/unitary-authority/warrington,ENO,Priority Infrastructure,82009,Consult.& Prof. Serv,440000,17/09/2019,5100404756,17995.08,Balfour Beatty Civil Engineering Li,114442
WARRINGTON BOROUGH COUNCIL,http://opendatacommunities.org/id/unitary-authority/warrington,FWB,Transport,54950,Transport-Snad Cot,300600,17/09/2019,5100404757,583,Direct Taxis,101873
WARRINGTON BOROUGH COUNCIL,http://opendatacommunities.org/id/unitary-authority/warrington,FWB,Transport,54950,Transport-Snad Cot,300600,17/09/2019,5100404758,1425,Direct Taxis,101873
WARRINGTON BOROUGH COUNCIL,http://opendatacommunities.org/id/unitary-authority/warrington,FWB,Transport,54950,Transport-Snad Cot,300600,17/09/2019,5100404759,938,Direct Taxis,101873
WARRINGTON BOROUGH COUNCIL,http://opendatacommunities.org/id/unitary-authority/warrington,FWB,Transport,54950,Transport-Snad Cot,300600,17/09/2019,5100404762,800,Lymmited Taxis,117229
WARRINGTON BOROUGH COUNCIL,http://opendatacommunities.org/id/unitary-authority/warrington,ENO,Priority Infrastructure,82009,Environmental Works,531050,17/09/2019,5100404763,816183.07,Balfour Beatty Civil Engineering Li,114442
WARRINGTON BOROUGH COUNCIL,http://opendatacommunities.org/id/unitary-authority/warrington,ENO,Highways Other,82005,Fct Repairs,532600,17/09/2019,5100404764,180648.6,Balfour Beatty Civil Engineering Li,114442
WARRINGTON BOROUGH COUNCIL,http://opendatacommunities.org/id/unitary-authority/warrington,ENO,Highways Other,82005,Environmental Works,531050,17/09/2019,5100404765,894137.27,Balfour Beatty Civil Engineering Li,114442
WARRINGTON BOROUGH COUNCIL,http://opendatacommunities.org/id/unitary-authority/warrington,ENO,Highways Other,82005,Environmental Works,531050,17/09/2019,5100404766,853528.03,Balfour Beatty Civil Engineering Li,114442
WARRINGTON BOROUGH COUNCIL,http://opendatacommunities.org/id/unitary-authority/warrington,ET0,Bus Interchange,44460,Security Systems,250000,17/09/2019,5100404767,6440.88,Step up Security Ltd,116851
WARRINGTON BOROUGH COUNCIL,http://opendatacommunities.org/id/unitary-authority/warrington,FWB,Transport,54950,Transport-Snad Cot,300600,17/09/2019,5100404769,1525,Direct Taxis,101873
WARRINGTON BOROUGH COUNCIL,http://opendatacommunities.org/id/unitary-authority/warrington,FWB,Transport,54950,Transport-Snad Cot,300600,18/09/2019,5100404797,1350,Redacted for personal data,104639
WARRINGTON BOROUGH COUNCIL,http://opendatacommunities.org/id/unitary-authority/warrington,FWB,Permanence staff teams,31022,Fees (Including Agents Fees),441450,18/09/2019,5100404805,1482,Exclusive Secure Care Services Ltd,117299
WARRINGTON BOROUGH COUNCIL,http://opendatacommunities.org/id/unitary-authority/warrington,FWB,Catering Crew,31536,Resaleables,400600,19/09/2019,5100404851,580.32,Woodward Foodservice Ltd,101749
WARRINGTON BOROUGH COUNCIL,http://opendatacommunities.org/id/unitary-authority/warrington,ENO,Highways Other,82005,Building Work,200850,19/09/2019,5100404854,1150,Blue Arrow Traffic Management Ltd,109292
WARRINGTON BOROUGH COUNCIL,http://opendatacommunities.org/id/unitary-authority/warrington,FWB,Trading Standards North West,41564,"Campaigns,  Projects and Events",491950,19/09/2019,5100404857,4377.23,Lancashire County Council,410062
WARRINGTON BOROUGH COUNCIL,http://opendatacommunities.org/id/unitary-authority/warrington,ENP,Environment & Regeneration,82000,Consult.& Prof. Serv,440000,19/09/2019,5100404860,105869.05,Muse Developments Ltd,113059
WARRINGTON BOROUGH COUNCIL,http://opendatacommunities.org/id/unitary-authority/warrington,ET0,Development Control,43430,Consult.& Prof. Serv,440000,19/09/2019,5100404861,1075,Park Avenue Recruitment Limited,116840
WARRINGTON BOROUGH COUNCIL,http://opendatacommunities.org/id/unitary-authority/warrington,ET0,Development Control,43430,Consult.& Prof. Serv,440000,19/09/2019,5100404862,1250,Park Avenue Recruitment Limited,116840
WARRINGTON BOROUGH COUNCIL,http://opendatacommunities.org/id/unitary-authority/warrington,ENO,Highways LTP,82004,Unlit Signs,531200,19/09/2019,5100404871,19975,Tarmac,100489
WARRINGTON BOROUGH COUNCIL,http://opendatacommunities.org/id/unitary-authority/warrington,ENO,Highways Other,82005,Carriageway-Resurfacing,532250,19/09/2019,5100404872,117599.21,Tarmac,100489
WARRINGTON BOROUGH COUNCIL,http://opendatacommunities.org/id/unitary-authority/warrington,ENO,Highways Other,82005,Carriageway-Resurfacing,532250,19/09/2019,5100404873,43665.58,Tarmac,100489
WARRINGTON BOROUGH COUNCIL,http://opendatacommunities.org/id/unitary-authority/warrington,FWB,Education Leadership & Quality,32100,Agency Supply Teaching Assistants,180100,19/09/2019,5100404883,945,Bruche Primary (Academy),400386
WARRINGTON BOROUGH COUNCIL,http://opendatacommunities.org/id/unitary-authority/warrington,FWB,Leaving Care,31101,Fees (Including Agents Fees),441450,19/09/2019,5100404885,1934,Catch 22,108973
WARRINGTON BOROUGH COUNCIL,http://opendatacommunities.org/id/unitary-authority/warrington,FWB,Equipment Store,54930,Equipment Purchase & Contract,400000,20/09/2019,5100404934,939.24,Performance Health,105137
WARRINGTON BOROUGH COUNCIL,http://opendatacommunities.org/id/unitary-authority/warrington,FWB,CIN Team 3,31003,Agency Supply,180000,20/09/2019,5100404936,1762.31,Network Ventures Ltd,110554
WARRINGTON BOROUGH COUNCIL,http://opendatacommunities.org/id/unitary-authority/warrington,FWB,DSG Post-16 Special Educational Needs,32309,Materials,400500,20/09/2019,5100404937,3155.14,The Royal School For The Blind,400046
WARRINGTON BOROUGH COUNCIL,http://opendatacommunities.org/id/unitary-authority/warrington,FWB,DSG Post-16 Special Educational Needs,32309,Materials,400500,20/09/2019,5100404938,18400,Halton Borough Council,410008
WARRINGTON BOROUGH COUNCIL,http://opendatacommunities.org/id/unitary-authority/warrington,FWB,DSG Post-16 Special Educational Needs,32309,Materials,400500,20/09/2019,5100404939,10000,The David Lewis Centre,104879
WARRINGTON BOROUGH COUNCIL,http://opendatacommunities.org/id/unitary-authority/warrington,FWB,DSG Post-16 Special Educational Needs,32309,Materials,400500,20/09/2019,5100404940,2000,The David Lewis Centre,104879
WARRINGTON BOROUGH COUNCIL,http://opendatacommunities.org/id/unitary-authority/warrington,DG0,Contingency,45227,Maintenance of Plant & Machinery,250050,20/09/2019,5100404941,42970.56,Mears Limited,114197
WARRINGTON BOROUGH COUNCIL,http://opendatacommunities.org/id/unitary-authority/warrington,DG0,Contingency,45227,Maintenance of Plant & Machinery,250050,20/09/2019,5100404941,6754.15,Mears Limited,114197
WARRINGTON BOROUGH COUNCIL,http://opendatacommunities.org/id/unitary-authority/warrington,ENO,Priority Infrastructure,82009,Environmental Works,531050,20/09/2019,5100404946,3720,Network Surfacing Ltd,113235
WARRINGTON BOROUGH COUNCIL,http://opendatacommunities.org/id/unitary-authority/warrington,ET0,Transport Holding Account,41311,Veh Maint. Materials,300000,20/09/2019,5100404964,590,North West Truck Services Ltd,104980
WARRINGTON BOROUGH COUNCIL,http://opendatacommunities.org/id/unitary-authority/warrington,FWB,Care Purchase Budget,54490,Rent Of Premises,220000,20/09/2019,5100404990,1598.4,Arena Housing,102199
WARRINGTON BOROUGH COUNCIL,http://opendatacommunities.org/id/unitary-authority/warrington,FWB,Care Purchase Budget,54490,Rent Of Premises,220000,20/09/2019,5100404992,1278.72,Arena Housing,102199
WARRINGTON BOROUGH COUNCIL,http://opendatacommunities.org/id/unitary-authority/warrington,FWB,DSG Independent School Fees,32011,Fees (Including Agents Fees),441450,20/09/2019,5100404998,3141.44,The Royal School For The Blind,400046
WARRINGTON BOROUGH COUNCIL,http://opendatacommunities.org/id/unitary-authority/warrington,DG0,Contingency,45227,Maintenance of Plant & Machinery,250050,20/09/2019,5100404999,821.7,Mears Limited,114197
WARRINGTON BOROUGH COUNCIL,http://opendatacommunities.org/id/unitary-authority/warrington,ET0,Or Sm Roads,44250,Materials,400500,20/09/2019,5100405005,2800,Lite Ltd,109377
WARRINGTON BOROUGH COUNCIL,http://opendatacommunities.org/id/unitary-authority/warrington,FWB,Neighbourhood Enga,51305,"Campaigns,  Projects and Events",491950,20/09/2019,5100405007,1179.98,Nisbets,100254
WARRINGTON BOROUGH COUNCIL,http://opendatacommunities.org/id/unitary-authority/warrington,FWB,Neighbourhood Enga,51305,"Campaigns,  Projects and Events",491950,20/09/2019,5100405007,529.99,Nisbets,100254
WARRINGTON BOROUGH COUNCIL,http://opendatacommunities.org/id/unitary-authority/warrington,FWB,Neighbourhood Enga,51305,"Campaigns,  Projects and Events",491950,20/09/2019,5100405007,529.99,Nisbets,100254
WARRINGTON BOROUGH COUNCIL,http://opendatacommunities.org/id/unitary-authority/warrington,ET0,Transport Holding Account,41311,Veh Maint. Materials,300000,20/09/2019,5100405010,1021.15,Walton Summit Truck Centre Ltd,112806
WARRINGTON BOROUGH COUNCIL,http://opendatacommunities.org/id/unitary-authority/warrington,ENO,Priority Infrastructure,82009,Environmental Works,531050,20/09/2019,5100405013,22056.21,United Utilities,101629
WARRINGTON BOROUGH COUNCIL,http://opendatacommunities.org/id/unitary-authority/warrington,COR,Concessionary Travel,60000,Travelling Allowance,330000,20/09/2019,5100405014,634.66,Cheshire West And Chester,103357
WARRINGTON BOROUGH COUNCIL,http://opendatacommunities.org/id/unitary-authority/warrington,ET0,Development Control,43430,Consult.& Prof. Serv,440000,20/09/2019,5100405024,5062,Tameside M B,440155
WARRINGTON BOROUGH COUNCIL,http://opendatacommunities.org/id/unitary-authority/warrington,FWB,Contracts - SM Commissioning Team 1,55910,Public Health Contract Payments,540000,20/09/2019,5100405036,770.31,Causeway Medical Centre,109278
WARRINGTON BOROUGH COUNCIL,http://opendatacommunities.org/id/unitary-authority/warrington,FWB,Contracts - SM Commissioning Team 1,55910,Public Health Contract Payments,540000,20/09/2019,5100405036,600,Causeway Medical Centre,109278
WARRINGTON BOROUGH COUNCIL,http://opendatacommunities.org/id/unitary-authority/warrington,ET0,Walton Estate,41430,Events Costs,490000,20/09/2019,5100405056,600,Redacted for personal data,106464
WARRINGTON BOROUGH COUNCIL,http://opendatacommunities.org/id/unitary-authority/warrington,ET0,Walton Estate,41430,Events Costs,490000,20/09/2019,5100405058,4428.4,Heartbreak,101743
WARRINGTON BOROUGH COUNCIL,http://opendatacommunities.org/id/unitary-authority/warrington,ENO,Building Maintenance Environment & Regen,82001,Maintenance of Plant & Machinery,250050,20/09/2019,5100405059,2769.5,Hall Conservation,116514
WARRINGTON BOROUGH COUNCIL,http://opendatacommunities.org/id/unitary-authority/warrington,COR,Redevelopment Sites,43580,Security Systems,250000,20/09/2019,5100405061,5751.18,South East Guardians (SEG) Lttd,116189
WARRINGTON BOROUGH COUNCIL,http://opendatacommunities.org/id/unitary-authority/warrington,ET0,Waste Recycling,41820,CRC Contract,530450,20/09/2019,5100405064,15260.71,Environmental Waste Controls Ltd,102474
WARRINGTON BOROUGH COUNCIL,http://opendatacommunities.org/id/unitary-authority/warrington,FWB,Education Leadership & Quality,32100,Agency Supply Teaching Assistants,180100,20/09/2019,5100405075,1360,Penketh South Community Primary Aca,400498
WARRINGTON BOROUGH COUNCIL,http://opendatacommunities.org/id/unitary-authority/warrington,FWB,Education Leadership & Quality,32100,Agency Supply Teaching Assistants,180100,20/09/2019,5100405076,2550,Evelyn Street Primary (Academy),400387
WARRINGTON BOROUGH COUNCIL,http://opendatacommunities.org/id/unitary-authority/warrington,FWB,Collaborative Training Group,33301,Training,190150,20/09/2019,5100405088,548,Bridge Chapel Centre,113048
WARRINGTON BOROUGH COUNCIL,http://opendatacommunities.org/id/unitary-authority/warrington,ET0,Transport Holding Account,41311,Veh Maint. Materials,300000,20/09/2019,5100405091,504,Probrush,103996
WARRINGTON BOROUGH COUNCIL,http://opendatacommunities.org/id/unitary-authority/warrington,FWB,Telecare / Sensory,54560,Equipment Purchase & Contract,400000,20/09/2019,5100405097,549.9,Sarabec Limited,100441
WARRINGTON BOROUGH COUNCIL,http://opendatacommunities.org/id/unitary-authority/warrington,FWB,Prison Substance Misuse Services,53840,Drug Action,443600,20/09/2019,5100405102,1046.61,MOJ Shared Service Centre,102024
WARRINGTON BOROUGH COUNCIL,http://opendatacommunities.org/id/unitary-authority/warrington,ET0,School Brow Depot,41330,Hazardous Waste,530600,20/09/2019,5100405106,850,Albion Environmental Ltd,103153
WARRINGTON BOROUGH COUNCIL,http://opendatacommunities.org/id/unitary-authority/warrington,ET0,School Brow Depot,41330,Hazardous Waste,530600,20/09/2019,5100405107,850,Albion Environmental Ltd,103153
WARRINGTON BOROUGH COUNCIL,http://opendatacommunities.org/id/unitary-authority/warrington,ET0,Transport Holding Account,41311,Diesel,300100,20/09/2019,5100405128,20635.19,GB Oils Ltd (Martindale Fuels),103439
WARRINGTON BOROUGH COUNCIL,http://opendatacommunities.org/id/unitary-authority/warrington,FWB,ASC Stationery,54100,Accommodation Allowance,550650,20/09/2019,5100405135,1161.21,The Patten Arms Hotel,115465
WARRINGTON BOROUGH COUNCIL,http://opendatacommunities.org/id/unitary-authority/warrington,FWB,Housing Strategy,43620,Equipment Purchase & Contract,400000,21/09/2019,5100405169,1800,Complete Home Energy Systems,111861
WARRINGTON BOROUGH COUNCIL,http://opendatacommunities.org/id/unitary-authority/warrington,FWB,Housing Strategy,43620,Equipment Purchase & Contract,400000,21/09/2019,5100405171,1800,Complete Home Energy Systems,111861
WARRINGTON BOROUGH COUNCIL,http://opendatacommunities.org/id/unitary-authority/warrington,FWB,Housing Strategy,43620,Equipment Purchase & Contract,400000,21/09/2019,5100405172,1800,Complete Home Energy Systems,111861
WARRINGTON BOROUGH COUNCIL,http://opendatacommunities.org/id/unitary-authority/warrington,ET0,Construction Stores Overhead Account,41320,Uniforms,420000,21/09/2019,5100405177,1666.7,Parker Merchanting Ltd,105007
WARRINGTON BOROUGH COUNCIL,http://opendatacommunities.org/id/unitary-authority/warrington,ENO,Priority Infrastructure,82009,Consult.& Prof. Serv,440000,21/09/2019,5100405202,4009.9,Redacted for personal data,100591
WARRINGTON BOROUGH COUNCIL,http://opendatacommunities.org/id/unitary-authority/warrington,ET0,Transport Holding Account,41311,Veh Maint. Materials,300000,21/09/2019,5100405206,526.89,Whale Tankers Ltd,105247
WARRINGTON BOROUGH COUNCIL,http://opendatacommunities.org/id/unitary-authority/warrington,ET0,Transport Holding Account,41311,Petrol,300050,21/09/2019,5100405208,2019.21,GB Oils Ltd (Martindale Fuels),103439
WARRINGTON BOROUGH COUNCIL,http://opendatacommunities.org/id/unitary-authority/warrington,ENO,Priority Infrastructure,82009,Fct Repairs,532600,21/09/2019,5100405211,1318,Elite Digital Systems Limited,114251
WARRINGTON BOROUGH COUNCIL,http://opendatacommunities.org/id/unitary-authority/warrington,ET0,Transport Holding Account,41311,Vehicle Hire Charges,320000,21/09/2019,5100405212,609,F R Sharrock Ltd,105122
WARRINGTON BOROUGH COUNCIL,http://opendatacommunities.org/id/unitary-authority/warrington,ET0,Waste Recycling,41820,Green Waste Treatment,530800,21/09/2019,5100405225,29968.85,White Moss Horticulture Ltd,104283
WARRINGTON BOROUGH COUNCIL,http://opendatacommunities.org/id/unitary-authority/warrington,ET0,Waste Disposal,41830,Diverted Waste,530550,21/09/2019,5100405226,922.58,White Moss Horticulture Ltd,104283
WARRINGTON BOROUGH COUNCIL,http://opendatacommunities.org/id/unitary-authority/warrington,ET0,Waste Disposal,41830,Diverted Waste,530550,21/09/2019,5100405228,665,White Moss Horticulture Ltd,104283
WARRINGTON BOROUGH COUNCIL,http://opendatacommunities.org/id/unitary-authority/warrington,COR,Concessionary Travel,60000,Travelling Allowance,330000,23/09/2019,5100405295,237118.04,Cheshire West And Chester,103357
WARRINGTON BOROUGH COUNCIL,http://opendatacommunities.org/id/unitary-authority/warrington,ENO,Highways Other,82005,Carriageway-Resurfacing,532250,23/09/2019,5100405299,5202.17,Dowhigh Ltd,105350
WARRINGTON BOROUGH COUNCIL,http://opendatacommunities.org/id/unitary-authority/warrington,FWB,Equipment Store,54930,Equipment Purchase & Contract,400000,23/09/2019,5100405323,538.1,Drive DeVilbiss Healthcare Ltd,101899
WARRINGTON BOROUGH COUNCIL,http://opendatacommunities.org/id/unitary-authority/warrington,FWB,Equipment Store,54930,Equipment Purchase & Contract,400000,23/09/2019,5100405328,2698,Newlyn Healthcare Ltd,101429
WARRINGTON BOROUGH COUNCIL,http://opendatacommunities.org/id/unitary-authority/warrington,COR,Hatters Row,43710,Security Systems,250000,25/09/2019,5100405329,3983.45,Uniqwin UK,105210
WARRINGTON BOROUGH COUNCIL,http://opendatacommunities.org/id/unitary-authority/warrington,PIO,People & Improvement Other,85002,Lifts from Stock,400850,23/09/2019,5100405334,756.08,Prism Medical UK,108616
WARRINGTON BOROUGH COUNCIL,http://opendatacommunities.org/id/unitary-authority/warrington,FWB,CIN Team 3,31003,Agency Supply,180000,23/09/2019,5100405338,1762.31,Network Ventures Ltd,110554
WARRINGTON BOROUGH COUNCIL,http://opendatacommunities.org/id/unitary-authority/warrington,ET0,Transport Holding Account,41311,Veh Maint. Materials,300000,23/09/2019,5100405339,4937.25,Turner Groundscare,105201
WARRINGTON BOROUGH COUNCIL,http://opendatacommunities.org/id/unitary-authority/warrington,ET0,Transport Holding Account,41311,Vehicle Hire Charges,320000,23/09/2019,5100405340,4144.56,Burnt Tree Group Limited,100597
WARRINGTON BOROUGH COUNCIL,http://opendatacommunities.org/id/unitary-authority/warrington,ET0,Transport Holding Account,41311,Vehicle Hire Charges,320000,23/09/2019,5100405341,1150.33,Burnt Tree Group Limited,100597
WARRINGTON BOROUGH COUNCIL,http://opendatacommunities.org/id/unitary-authority/warrington,ET0,Walton Estate,41430,Events Costs,490000,23/09/2019,5100405351,2200,Cestrain Loos Ltd,110852
WARRINGTON BOROUGH COUNCIL,http://opendatacommunities.org/id/unitary-authority/warrington,ET0,Waste Recycling,41820,CRC Contract,530450,23/09/2019,5100405360,4053,Environmental Waste Controls Ltd,102474
WARRINGTON BOROUGH COUNCIL,http://opendatacommunities.org/id/unitary-authority/warrington,ET0,Waste Recycling,41820,CRC Contract,530450,23/09/2019,5100405361,4053,Environmental Waste Controls Ltd,102474
WARRINGTON BOROUGH COUNCIL,http://opendatacommunities.org/id/unitary-authority/warrington,FWB,Virtual School,31112,Looked after children in Warrington,301000,23/09/2019,5100405367,2275,Kings Leadership Academy,400191
WARRINGTON BOROUGH COUNCIL,http://opendatacommunities.org/id/unitary-authority/warrington,ENO,Highways Other,82005,Fct Repairs,532600,24/09/2019,5100405419,180648.6,Balfour Beatty Civil Engineering Li,114442
WARRINGTON BOROUGH COUNCIL,http://opendatacommunities.org/id/unitary-authority/warrington,ENO,Highways Other,82005,Building Work,200850,25/09/2019,5100405453,778984.53,Balfour Beatty Civil Engineering Li,114442
WARRINGTON BOROUGH COUNCIL,http://opendatacommunities.org/id/unitary-authority/warrington,CYP,Secondary,81002,Maintenance Work - Sub Contractors,301150,25/09/2019,5100405454,419217.48,Great Sankey High Academy School,400206
WARRINGTON BOROUGH COUNCIL,http://opendatacommunities.org/id/unitary-authority/warrington,FWB,DSG Independent School Fees,32011,Fees (Including Agents Fees),441450,26/09/2019,5100405485,725,The School of Military Ltd,116966
WARRINGTON BOROUGH COUNCIL,http://opendatacommunities.org/id/unitary-authority/warrington,FWB,DSG Independent School Fees,32011,Fees (Including Agents Fees),441450,26/09/2019,5100405486,870,The School of Military Ltd,116966
WARRINGTON BOROUGH COUNCIL,http://opendatacommunities.org/id/unitary-authority/warrington,ET0,Trees & Woodland Services,41421,Training,190150,26/09/2019,5100405493,1050,Arboricultural Association,116373
WARRINGTON BOROUGH COUNCIL,http://opendatacommunities.org/id/unitary-authority/warrington,PIO,People & Improvement Other,85002,Consult.& Prof. Serv,440000,26/09/2019,5100405503,10639.38,Bam Construction Ltd,105324
WARRINGTON BOROUGH COUNCIL,http://opendatacommunities.org/id/unitary-authority/warrington,FWB,OT/Equip - Childrens,54315,Equipment Purchase & Contract,400000,26/09/2019,5100405504,1044,Jenx,104831
WARRINGTON BOROUGH COUNCIL,http://opendatacommunities.org/id/unitary-authority/warrington,ET0,PW&F Management Operations,41427,Kennel Fees,440550,26/09/2019,5100405534,833.33,Manchester & District Home For Lost,102062
WARRINGTON BOROUGH COUNCIL,http://opendatacommunities.org/id/unitary-authority/warrington,ET0,Waste Recycling,41820,CRC Contract,530450,26/09/2019,5100405541,8706.42,Environmental Waste Controls Ltd,102474
WARRINGTON BOROUGH COUNCIL,http://opendatacommunities.org/id/unitary-authority/warrington,FWB,DSG Post-16 Special Educational Needs,32309,Materials,400500,26/09/2019,5100405557,5338,Wigan And Leigh College,101597
WARRINGTON BOROUGH COUNCIL,http://opendatacommunities.org/id/unitary-authority/warrington,COR,Markets,43711,"Campaigns,  Projects and Events",491950,26/09/2019,5100405563,921,Mjd Event & Production Services,102030
WARRINGTON BOROUGH COUNCIL,http://opendatacommunities.org/id/unitary-authority/warrington,FWB,CIN Team 3,31003,Agency Supply,180000,26/09/2019,5100405566,1762.31,Network Ventures Ltd,110554
WARRINGTON BOROUGH COUNCIL,http://opendatacommunities.org/id/unitary-authority/warrington,PIO,People & Improvement Other,85002,Lifts from Stock,400850,26/09/2019,5100405567,1935,ThyssenKrupp Encasa Ltd,105382
WARRINGTON BOROUGH COUNCIL,http://opendatacommunities.org/id/unitary-authority/warrington,FWB,DSG - Medical Needs,32002,Eotas Pupil Funding,490350,27/09/2019,5100405610,750,The School of Military Ltd,116966
WARRINGTON BOROUGH COUNCIL,http://opendatacommunities.org/id/unitary-authority/warrington,FWB,DSG - Medical Needs,32002,Eotas Pupil Funding,490350,27/09/2019,5100405611,900,The School of Military Ltd,116966
WARRINGTON BOROUGH COUNCIL,http://opendatacommunities.org/id/unitary-authority/warrington,ET0,Vehicle & Plant Acq.,41312,Vehicle & Plant Purchase,301350,27/09/2019,5100405615,910,Dick Leigh Chainsaw Specialist,104876
WARRINGTON BOROUGH COUNCIL,http://opendatacommunities.org/id/unitary-authority/warrington,ET0,Construction Stores Overhead Account,41320,Materials,400500,27/09/2019,5100405619,1222,Instarmac Ltd,104820
WARRINGTON BOROUGH COUNCIL,http://opendatacommunities.org/id/unitary-authority/warrington,FWB,DSG Post-16 Special Educational Needs,32309,Materials,400500,27/09/2019,5100405623,3155.14,The Royal School For The Blind,400046
WARRINGTON BOROUGH COUNCIL,http://opendatacommunities.org/id/unitary-authority/warrington,FWB,DSG Post-16 Special Educational Needs,32309,Materials,400500,27/09/2019,5100405624,2027.06,The Royal School For The Blind,400046
WARRINGTON BOROUGH COUNCIL,http://opendatacommunities.org/id/unitary-authority/warrington,FWB,DSG Post-16 Special Educational Needs,32309,Materials,400500,27/09/2019,5100405628,4561.92,Pontville School,109772
WARRINGTON BOROUGH COUNCIL,http://opendatacommunities.org/id/unitary-authority/warrington,FWB,DSG Post-16 Special Educational Needs,32309,Materials,400500,27/09/2019,5100405630,5182.17,The Royal School For The Blind,400046
WARRINGTON BOROUGH COUNCIL,http://opendatacommunities.org/id/unitary-authority/warrington,FWB,DSG Post-16 Special Educational Needs,32309,Materials,400500,27/09/2019,5100405633,28988.4,Oliver House Priory,107946
WARRINGTON BOROUGH COUNCIL,http://opendatacommunities.org/id/unitary-authority/warrington,FWB,DSG Post-16 Special Educational Needs,32309,Materials,400500,27/09/2019,5100405634,22783.37,Oliver House Priory,107946
WARRINGTON BOROUGH COUNCIL,http://opendatacommunities.org/id/unitary-authority/warrington,COR,Hatters Row,43710,Security Systems,250000,27/09/2019,5100405656,4016.1,Uniqwin UK,105210
WARRINGTON BOROUGH COUNCIL,http://opendatacommunities.org/id/unitary-authority/warrington,FWB,Housing Strategy,43620,Equipment Purchase & Contract,400000,27/09/2019,5100405659,1800,Complete Home Energy Systems,111861
WARRINGTON BOROUGH COUNCIL,http://opendatacommunities.org/id/unitary-authority/warrington,ENO,Highways Other,82005,Consult.& Prof. Serv,440000,27/09/2019,5100405664,980,Aecom Limited,101037
WARRINGTON BOROUGH COUNCIL,http://opendatacommunities.org/id/unitary-authority/warrington,ENO,Highways Other,82005,Consult.& Prof. Serv,440000,27/09/2019,5100405665,2194.31,Aecom Limited,101037
WARRINGTON BOROUGH COUNCIL,http://opendatacommunities.org/id/unitary-authority/warrington,FWB,DSG Post-16 Special Educational Needs,32309,Materials,400500,27/09/2019,5100405691,48564.96,The David Lewis Centre,104879
WARRINGTON BOROUGH COUNCIL,http://opendatacommunities.org/id/unitary-authority/warrington,PIO,People & Improvement Other,85002,Lifts from Stock,400850,27/09/2019,5100405692,1403.83,Prism Medical UK,108616
WARRINGTON BOROUGH COUNCIL,http://opendatacommunities.org/id/unitary-authority/warrington,FWB,Building Safer Communities,16000,Payment of Grants,470050,27/09/2019,5100405717,8200,Police and Crime Commissioner Chesh,104596
WARRINGTON BOROUGH COUNCIL,http://opendatacommunities.org/id/unitary-authority/warrington,ET0,Transport Holding Account,41311,Diesel,300100,27/09/2019,5100405718,19009.51,GB Oils Ltd (Martindale Fuels),103439
WARRINGTON BOROUGH COUNCIL,http://opendatacommunities.org/id/unitary-authority/warrington,FWB,Padgate House,54760,Equipment Purchase & Contract,400000,27/09/2019,5100405733,752.71,Arjo Ltd,105319
WARRINGTON BOROUGH COUNCIL,http://opendatacommunities.org/id/unitary-authority/warrington,ET0,Crematorium,41411,Materials,400500,27/09/2019,5100405736,1100,IFZW Maintenance Ltd,110971
WARRINGTON BOROUGH COUNCIL,http://opendatacommunities.org/id/unitary-authority/warrington,ENO,Housing Projects,82008,Minor Adaptations<750,400700,27/09/2019,5100405758,26316,Acorn Building Projects Ltd,105557
WARRINGTON BOROUGH COUNCIL,http://opendatacommunities.org/id/unitary-authority/warrington,FWB,Homelessness,43650,Emergency Accommodation Allowance,550500,27/09/2019,5100405760,675,The Patten Arms Hotel,115465
WARRINGTON BOROUGH COUNCIL,http://opendatacommunities.org/id/unitary-authority/warrington,ENO,Housing Projects,82008,Minor Adaptations<750,400700,27/09/2019,5100405762,21921.25,J ince & Sons,115524
WARRINGTON BOROUGH COUNCIL,http://opendatacommunities.org/id/unitary-authority/warrington,ENO,Housing Projects,82008,Minor Adaptations<750,400700,27/09/2019,5100405763,4878.75,J ince & Sons,115524
WARRINGTON BOROUGH COUNCIL,http://opendatacommunities.org/id/unitary-authority/warrington,ET0,Transport Holding Account,41311,Oil - Gas,301250,27/09/2019,5100405766,1679.96,GB Oils Ltd (Martindale Fuels),103439
WARRINGTON BOROUGH COUNCIL,http://opendatacommunities.org/id/unitary-authority/warrington,FWB,CIN Team 3,31003,Agency Supply,180000,27/09/2019,5100405772,1762.31,Network Ventures Ltd,110554
WARRINGTON BOROUGH COUNCIL,http://opendatacommunities.org/id/unitary-authority/warrington,DG0,Former GGHT Garage Sites,41847,Specific Work,200200,27/09/2019,5100405777,1200,B & K Landscapes,105448
WARRINGTON BOROUGH COUNCIL,http://opendatacommunities.org/id/unitary-authority/warrington,COR,Other Commercial Prop.,43560,Maintenance Work - Sub Contractors,301150,27/09/2019,5100405778,875,B & K Landscapes,105448
WARRINGTON BOROUGH COUNCIL,http://opendatacommunities.org/id/unitary-authority/warrington,RSC,Printing & Graphics,23040,External Printing,430100,27/09/2019,5100405795,890,Hcc Promotions Ltd,103915
WARRINGTON BOROUGH COUNCIL,http://opendatacommunities.org/id/unitary-authority/warrington,FWB,Education Leadership & Quality,32100,Training,190150,27/09/2019,5100405802,7312.5,RMA Governor Support,113641
WARRINGTON BOROUGH COUNCIL,http://opendatacommunities.org/id/unitary-authority/warrington,FWB,ASC Stationery,54100,Accommodation Allowance,550650,27/09/2019,5100405810,1161.21,The Patten Arms Hotel,115465
WARRINGTON BOROUGH COUNCIL,http://opendatacommunities.org/id/unitary-authority/warrington,RSC,Printing & Graphics,23040,Materials,400500,27/09/2019,5100405846,1529.5,Neopost Finance Ltd Supplies/Top up,100694
WARRINGTON BOROUGH COUNCIL,http://opendatacommunities.org/id/unitary-authority/warrington,ET0,Bus Interchange,44460,Annual Maintenance,442100,27/09/2019,5100405873,903.5,Evolution Automatic Doors Ltd,103562
WARRINGTON BOROUGH COUNCIL,http://opendatacommunities.org/id/unitary-authority/warrington,FWB,Supporting People Grant Payments,53260,Sheltd/Xtra Care Hsing and Comm Alarms,535050,29/09/2019,5100405940,636.12,Anchor Ha,100886
WARRINGTON BOROUGH COUNCIL,http://opendatacommunities.org/id/unitary-authority/warrington,FWB,Supporting People Grant Payments,53260,Sheltd/Xtra Care Hsing and Comm Alarms,535050,29/09/2019,5100405947,1998.44,Warrington Housing Rent,103168
WARRINGTON BOROUGH COUNCIL,http://opendatacommunities.org/id/unitary-authority/warrington,FWB,Supporting People Grant Payments,53260,Sheltd/Xtra Care Hsing and Comm Alarms,535050,29/09/2019,5100405948,966.96,Warrington Housing Rent,103168
WARRINGTON BOROUGH COUNCIL,http://opendatacommunities.org/id/unitary-authority/warrington,FWB,Supporting People Grant Payments,53260,People with Mental Health Problems,535200,29/09/2019,5100405950,12084.66,Warrington Community Living,105229
WARRINGTON BOROUGH COUNCIL,http://opendatacommunities.org/id/unitary-authority/warrington,FWB,Supporting People Grant Payments,53260,Sheltd/Xtra Care Hsing and Comm Alarms,535050,29/09/2019,5100405951,10624.32,Warrington Community Living,105229
WARRINGTON BOROUGH COUNCIL,http://opendatacommunities.org/id/unitary-authority/warrington,FWB,Supporting People Grant Payments,53260,People with Mental Health Problems,535200,29/09/2019,5100405952,2977.54,Carr Gomm,106573
WARRINGTON BOROUGH COUNCIL,http://opendatacommunities.org/id/unitary-authority/warrington,FWB,DSG Early Years PVI Settings,32417,Private & Voluntary 3 Year Olds,470100,27/09/2019,1900472186,1115.62,A & J Tots to Teens Childcare,113264
WARRINGTON BOROUGH COUNCIL,http://opendatacommunities.org/id/unitary-authority/warrington,FWB,Care Purchase Central Team,54050,CP-Nursing Care-External,441200,16/09/2019,1900469513,4136,Abbey Lawns Care Home Ltd,101816
WARRINGTON BOROUGH COUNCIL,http://opendatacommunities.org/id/unitary-authority/warrington,FWB,DSG 2 Year Old Fund,31601,Payment of Grants,470050,01/09/2019,1900464042,14962.5,Abc 123 Day Nursery Ltd,400152
WARRINGTON BOROUGH COUNCIL,http://opendatacommunities.org/id/unitary-authority/warrington,FWB,DSG Early Years PVI Settings,32417,Private & Voluntary 3 Year Olds,470100,01/09/2019,1900464114,22089.37,Abc 123 Day Nursery Ltd,400152
WARRINGTON BOROUGH COUNCIL,http://opendatacommunities.org/id/unitary-authority/warrington,FWB,DSG Early Years PVI Settings,32417,Private & Voluntary 3 Year Olds,470100,01/09/2019,1900464116,3941.87,Abc Pre-School Limited,400009
WARRINGTON BOROUGH COUNCIL,http://opendatacommunities.org/id/unitary-authority/warrington,FWB,DSG Early Years PVI Settings,32417,Private & Voluntary 3 Year Olds,470100,27/09/2019,1900472134,3941.87,Abc Pre-School Limited,400009
WARRINGTON BOROUGH COUNCIL,http://opendatacommunities.org/id/unitary-authority/warrington,FWB,DSG Early Years PVI Settings,32417,Private & Voluntary 3 Year Olds,470100,28/06/2019,1900444740,1015.75,Abc Pre-School Limited,400009
WARRINGTON BOROUGH COUNCIL,http://opendatacommunities.org/id/unitary-authority/warrington,FWB,Care Purchase Central Team,54050,CP-LongStayExternal,441150,16/09/2019,1900469788,12320,Accomplish Group Specialist care Lt,116899
WARRINGTON BOROUGH COUNCIL,http://opendatacommunities.org/id/unitary-authority/warrington,FWB,Children with Disabilities,31005,Specific Work,200200,02/09/2019,1900464269,12000,Acorn Building Projects Ltd,105557
WARRINGTON BOROUGH COUNCIL,http://opendatacommunities.org/id/unitary-authority/warrington,ENO,Housing Projects,82008,Disabled Persons Grant 1996,554000,23/09/2019,1900471491,8616,Acorn Building Projects Ltd,105557
WARRINGTON BOROUGH COUNCIL,http://opendatacommunities.org/id/unitary-authority/warrington,RSC,Accountancy and Financial Planning,10100,Computer Software - Maintenance,450850,03/09/2019,1900465360,3264.5,Advanced Business Solutions,113651
WARRINGTON BOROUGH COUNCIL,http://opendatacommunities.org/id/unitary-authority/warrington,FWB,DSG 2 Year Old Fund,31601,Payment of Grants,470050,01/09/2019,1900464043,4200,Alderman Bolton (WPAT),400511
WARRINGTON BOROUGH COUNCIL,http://opendatacommunities.org/id/unitary-authority/warrington,FWB,DSG 2 Year Old Fund,31601,Payment of Grants,470050,27/09/2019,1900472067,4200,Alderman Bolton (WPAT),400511
WARRINGTON BOROUGH COUNCIL,http://opendatacommunities.org/id/unitary-authority/warrington,FWB,DSG Early Years PVI Settings,32417,Private & Voluntary 3 Year Olds,470100,01/09/2019,1900464117,8478.75,Alderman Bolton (WPAT),400511
WARRINGTON BOROUGH COUNCIL,http://opendatacommunities.org/id/unitary-authority/warrington,FWB,DSG Early Years PVI Settings,32417,Private & Voluntary 3 Year Olds,470100,27/09/2019,1900472135,8478.75,Alderman Bolton (WPAT),400511
WARRINGTON BOROUGH COUNCIL,http://opendatacommunities.org/id/unitary-authority/warrington,FWB,Care Purchase South Team,54070,CP-Nursing Care-External,441200,16/09/2019,1900469922,13056,Alexandra Care Home,100708
WARRINGTON BOROUGH COUNCIL,http://opendatacommunities.org/id/unitary-authority/warrington,FWB,Care Purchase West Team,54080,CP-Nursing Care-External,441200,16/09/2019,1900470003,13056,Alexandra Care Home,100708
WARRINGTON BOROUGH COUNCIL,http://opendatacommunities.org/id/unitary-authority/warrington,FWB,Fostering Placements,30003,Fostering Accommodation,441050,10/09/2019,1900466672,3022.88,Alpha Plus Fostering Ltd,109098
WARRINGTON BOROUGH COUNCIL,http://opendatacommunities.org/id/unitary-authority/warrington,FWB,Fostering Placements,30003,Fostering Accommodation,441050,10/09/2019,1900466647,2871.68,Alpha Plus Fostering Ltd,109098
WARRINGTON BOROUGH COUNCIL,http://opendatacommunities.org/id/unitary-authority/warrington,FWB,Fostering Placements,30003,Fostering Accommodation,441050,10/09/2019,1900466648,2831.08,Alpha Plus Fostering Ltd,109098
WARRINGTON BOROUGH COUNCIL,http://opendatacommunities.org/id/unitary-authority/warrington,FWB,Children with Disabilities,31005,Looked after children in Warrington,301000,02/09/2019,1900464270,513,AlphaBiolabs,109403
WARRINGTON BOROUGH COUNCIL,http://opendatacommunities.org/id/unitary-authority/warrington,FWB,Leaving Care Placements,31109,CP-LongStayExternal,441150,05/09/2019,1900466094,5991.96,Alternative Approach LTD,117300
WARRINGTON BOROUGH COUNCIL,http://opendatacommunities.org/id/unitary-authority/warrington,FWB,Leaving Care Placements,31109,CP-LongStayExternal,441150,05/09/2019,1900466093,3342.42,Alternative Approach LTD,117300
WARRINGTON BOROUGH COUNCIL,http://opendatacommunities.org/id/unitary-authority/warrington,FWB,Leaving Care Placements,31109,CP-LongStayExternal,441150,19/09/2019,1900470674,2099.72,Alternative Approach LTD,117300
WARRINGTON BOROUGH COUNCIL,http://opendatacommunities.org/id/unitary-authority/warrington,FWB,Care Purchase South Team,54070,CP-Domicil.External,440950,16/09/2019,1900470011,2003.4,Alternative Futures Group,104468
WARRINGTON BOROUGH COUNCIL,http://opendatacommunities.org/id/unitary-authority/warrington,FWB,Care Purchase South Team,54070,CP-Domicil.External,440950,04/09/2019,1900465403,2003.4,Alternative Futures Group,104468
WARRINGTON BOROUGH COUNCIL,http://opendatacommunities.org/id/unitary-authority/warrington,FWB,Care Purchase South Team,54070,Supported Accommodation,440975,16/09/2019,1900470011,5943,Alternative Futures Group,104468
WARRINGTON BOROUGH COUNCIL,http://opendatacommunities.org/id/unitary-authority/warrington,FWB,Care Purchase South Team,54070,Supported Accommodation,440975,04/09/2019,1900465403,5943,Alternative Futures Group,104468
WARRINGTON BOROUGH COUNCIL,http://opendatacommunities.org/id/unitary-authority/warrington,FWB,Care Purchase West Team,54080,Supported Accommodation,440975,16/09/2019,1900469449,4534.33,Alternative Futures Group,104468
WARRINGTON BOROUGH COUNCIL,http://opendatacommunities.org/id/unitary-authority/warrington,FWB,Care Purchase South Team,54070,Supported Accommodation,440975,04/09/2019,1900465404,3973.22,Alternative Futures Group,104468
WARRINGTON BOROUGH COUNCIL,http://opendatacommunities.org/id/unitary-authority/warrington,FWB,Care Purchase South Team,54070,Supported Accommodation,440975,16/09/2019,1900470016,3973.22,Alternative Futures Group,104468
WARRINGTON BOROUGH COUNCIL,http://opendatacommunities.org/id/unitary-authority/warrington,FWB,Care Purchase South Team,54070,Supported Accommodation,440975,04/09/2019,1900465411,3973.22,Alternative Futures Group,104468
WARRINGTON BOROUGH COUNCIL,http://opendatacommunities.org/id/unitary-authority/warrington,FWB,Care Purchase East Team,54060,Supported Accommodation,440975,16/09/2019,1900470009,3973.2,Alternative Futures Group,104468
WARRINGTON BOROUGH COUNCIL,http://opendatacommunities.org/id/unitary-authority/warrington,FWB,Care Purchase East Team,54060,Supported Accommodation,440975,04/09/2019,1900465412,3973.2,Alternative Futures Group,104468
WARRINGTON BOROUGH COUNCIL,http://opendatacommunities.org/id/unitary-authority/warrington,FWB,Care Purchase West Team,54080,Supported Accommodation,440975,04/09/2019,1900465402,3968.33,Alternative Futures Group,104468
WARRINGTON BOROUGH COUNCIL,http://opendatacommunities.org/id/unitary-authority/warrington,FWB,Care Purchase West Team,54080,Supported Accommodation,440975,16/09/2019,1900470013,3968.33,Alternative Futures Group,104468
WARRINGTON BOROUGH COUNCIL,http://opendatacommunities.org/id/unitary-authority/warrington,FWB,Care Purchase West Team,54080,Supported Accommodation,440975,16/09/2019,1900470012,3968.33,Alternative Futures Group,104468
WARRINGTON BOROUGH COUNCIL,http://opendatacommunities.org/id/unitary-authority/warrington,FWB,Care Purchase West Team,54080,Supported Accommodation,440975,04/09/2019,1900465406,3968.33,Alternative Futures Group,104468
WARRINGTON BOROUGH COUNCIL,http://opendatacommunities.org/id/unitary-authority/warrington,FWB,Care Purchase South Team,54070,Supported Accommodation,440975,26/09/2019,1900472058,659.2,Alternative Futures Group,104468
WARRINGTON BOROUGH COUNCIL,http://opendatacommunities.org/id/unitary-authority/warrington,FWB,Care Purchase South Team,54070,Supported Accommodation,440975,16/09/2019,1900470014,509.4,Alternative Futures Group,104468
WARRINGTON BOROUGH COUNCIL,http://opendatacommunities.org/id/unitary-authority/warrington,FWB,Care Purchase South Team,54070,Supported Accommodation,440975,04/09/2019,1900465413,509.4,Alternative Futures Group,104468
WARRINGTON BOROUGH COUNCIL,http://opendatacommunities.org/id/unitary-authority/warrington,FWB,SLA - Grant Account,53920,Payment of Grants,470050,27/09/2019,1900472281,9388.75,Alzheimers Society,106508
WARRINGTON BOROUGH COUNCIL,http://opendatacommunities.org/id/unitary-authority/warrington,FWB,Care Purchase West Team,54080,CP-LongStayExternal,441150,16/09/2019,1900469525,6210,Ambito Care and Education,105109
WARRINGTON BOROUGH COUNCIL,http://opendatacommunities.org/id/unitary-authority/warrington,FWB,Care Purchase West Team,54080,CP-LongStayExternal,441150,16/09/2019,1900469811,2020.76,Anchor Carehomes Ltd,116809
WARRINGTON BOROUGH COUNCIL,http://opendatacommunities.org/id/unitary-authority/warrington,FWB,DSG Early Years PVI Settings,32417,Private & Voluntary 3 Year Olds,470100,01/09/2019,1900464122,892.5,Appleton Thorn Pre School,400111
WARRINGTON BOROUGH COUNCIL,http://opendatacommunities.org/id/unitary-authority/warrington,FWB,DSG Early Years PVI Settings,32417,Private & Voluntary 3 Year Olds,470100,27/09/2019,1900472141,892.5,Appleton Thorn Pre School,400111
WARRINGTON BOROUGH COUNCIL,http://opendatacommunities.org/id/unitary-authority/warrington,FWB,Children with Disabilities,31005,Sect 17 (Child Act),490950,07/09/2019,1900466419,1243.58,Arena Housing,102199
WARRINGTON BOROUGH COUNCIL,http://opendatacommunities.org/id/unitary-authority/warrington,FWB,Care Purchase Central Team,54050,CP Residential EMI,441110,16/09/2019,1900469731,2260,Ashberry Healthcare,101061
WARRINGTON BOROUGH COUNCIL,http://opendatacommunities.org/id/unitary-authority/warrington,FWB,Care Purchase Central Team,54050,CP Residential EMI,441110,16/09/2019,1900469508,2260,Ashberry Healthcare,101061
WARRINGTON BOROUGH COUNCIL,http://opendatacommunities.org/id/unitary-authority/warrington,FWB,Care Purchase Central Team,54050,CP Residential EMI,441110,16/09/2019,1900469940,2260,Ashberry Healthcare,101061
WARRINGTON BOROUGH COUNCIL,http://opendatacommunities.org/id/unitary-authority/warrington,FWB,Care Purchase Central Team,54050,CP Residential EMI,441110,16/09/2019,1900469945,2260,Ashberry Healthcare,101061
WARRINGTON BOROUGH COUNCIL,http://opendatacommunities.org/id/unitary-authority/warrington,FWB,Care Purchase East Team,54060,CP Residential EMI,441110,16/09/2019,1900469571,2260,Ashberry Healthcare,101061
WARRINGTON BOROUGH COUNCIL,http://opendatacommunities.org/id/unitary-authority/warrington,FWB,Care Purchase West Team,54080,CP Residential EMI,441110,16/09/2019,1900469596,2260,Ashberry Healthcare,101061
WARRINGTON BOROUGH COUNCIL,http://opendatacommunities.org/id/unitary-authority/warrington,FWB,Care Purchase West Team,54080,CP Residential EMI,441110,16/09/2019,1900469622,2260,Ashberry Healthcare,101061
WARRINGTON BOROUGH COUNCIL,http://opendatacommunities.org/id/unitary-authority/warrington,FWB,Care Purchase West Team,54080,CP Residential EMI,441110,16/09/2019,1900469970,2260,Ashberry Healthcare,101061
WARRINGTON BOROUGH COUNCIL,http://opendatacommunities.org/id/unitary-authority/warrington,FWB,Care Purchase West Team,54080,CP Residential EMI,441110,16/09/2019,1900469850,2260,Ashberry Healthcare,101061
WARRINGTON BOROUGH COUNCIL,http://opendatacommunities.org/id/unitary-authority/warrington,FWB,Care Purchase West Team,54080,CP Residential EMI,441110,16/09/2019,1900469643,2260,Ashberry Healthcare,101061
WARRINGTON BOROUGH COUNCIL,http://opendatacommunities.org/id/unitary-authority/warrington,FWB,Care Purchase West Team,54080,CP Residential EMI,441110,16/09/2019,1900469650,2260,Ashberry Healthcare,101061
WARRINGTON BOROUGH COUNCIL,http://opendatacommunities.org/id/unitary-authority/warrington,FWB,Care Purchase West Team,54080,CP Residential EMI,441110,16/09/2019,1900469716,2260,Ashberry Healthcare,101061
WARRINGTON BOROUGH COUNCIL,http://opendatacommunities.org/id/unitary-authority/warrington,FWB,Care Purchase West Team,54080,CP Residential EMI,441110,16/09/2019,1900469981,2260,Ashberry Healthcare,101061
WARRINGTON BOROUGH COUNCIL,http://opendatacommunities.org/id/unitary-authority/warrington,FWB,Care Purchase West Team,54080,CP Residential EMI,441110,16/09/2019,1900469835,2260,Ashberry Healthcare,101061
WARRINGTON BOROUGH COUNCIL,http://opendatacommunities.org/id/unitary-authority/warrington,FWB,Care Purchase West Team,54080,CP Residential EMI,441110,16/09/2019,1900469844,2260,Ashberry Healthcare,101061
WARRINGTON BOROUGH COUNCIL,http://opendatacommunities.org/id/unitary-authority/warrington,FWB,Care Purchase West Team,54080,CP Residential EMI,441110,16/09/2019,1900469982,2260,Ashberry Healthcare,101061
WARRINGTON BOROUGH COUNCIL,http://opendatacommunities.org/id/unitary-authority/warrington,FWB,Care Purchase West Team,54080,CP Residential EMI,441110,16/09/2019,1900469473,2260,Ashberry Healthcare,101061
WARRINGTON BOROUGH COUNCIL,http://opendatacommunities.org/id/unitary-authority/warrington,FWB,Care Purchase West Team,54080,CP Residential EMI,441110,16/09/2019,1900469534,2260,Ashberry Healthcare,101061
WARRINGTON BOROUGH COUNCIL,http://opendatacommunities.org/id/unitary-authority/warrington,FWB,Care Purchase West Team,54080,CP Residential EMI,441110,16/09/2019,1900469648,2260,Ashberry Healthcare,101061
WARRINGTON BOROUGH COUNCIL,http://opendatacommunities.org/id/unitary-authority/warrington,FWB,Care Purchase West Team,54080,CP Residential EMI,441110,16/09/2019,1900469897,2260,Ashberry Healthcare,101061
WARRINGTON BOROUGH COUNCIL,http://opendatacommunities.org/id/unitary-authority/warrington,FWB,Care Purchase West Team,54080,CP-LongStayExternal,441150,16/09/2019,1900469506,1988,Ashberry Healthcare,101061
WARRINGTON BOROUGH COUNCIL,http://opendatacommunities.org/id/unitary-authority/warrington,FWB,Care Purchase South Team,54070,CP Nursing EMI,441105,16/09/2019,1900468981,3050.24,Ashberry Healthcare Ltd,104776
WARRINGTON BOROUGH COUNCIL,http://opendatacommunities.org/id/unitary-authority/warrington,FWB,Care Purchase Central Team,54050,CP Residential EMI,441110,16/09/2019,1900469138,2260,Ashberry Healthcare Ltd,104776
WARRINGTON BOROUGH COUNCIL,http://opendatacommunities.org/id/unitary-authority/warrington,FWB,Care Purchase East Team,54060,CP Residential EMI,441110,16/09/2019,1900469097,2260,Ashberry Healthcare Ltd,104776
WARRINGTON BOROUGH COUNCIL,http://opendatacommunities.org/id/unitary-authority/warrington,FWB,Care Purchase East Team,54060,CP Residential EMI,441110,16/09/2019,1900469403,2260,Ashberry Healthcare Ltd,104776
WARRINGTON BOROUGH COUNCIL,http://opendatacommunities.org/id/unitary-authority/warrington,FWB,Care Purchase East Team,54060,CP Residential EMI,441110,16/09/2019,1900469053,2260,Ashberry Healthcare Ltd,104776
WARRINGTON BOROUGH COUNCIL,http://opendatacommunities.org/id/unitary-authority/warrington,FWB,Care Purchase East Team,54060,CP Residential EMI,441110,16/09/2019,1900469299,2260,Ashberry Healthcare Ltd,104776
WARRINGTON BOROUGH COUNCIL,http://opendatacommunities.org/id/unitary-authority/warrington,FWB,Care Purchase East Team,54060,CP Residential EMI,441110,16/09/2019,1900469022,2260,Ashberry Healthcare Ltd,104776
WARRINGTON BOROUGH COUNCIL,http://opendatacommunities.org/id/unitary-authority/warrington,FWB,Care Purchase East Team,54060,CP Residential EMI,441110,16/09/2019,1900468903,2260,Ashberry Healthcare Ltd,104776
WARRINGTON BOROUGH COUNCIL,http://opendatacommunities.org/id/unitary-authority/warrington,FWB,Care Purchase East Team,54060,CP Residential EMI,441110,16/09/2019,1900469264,2260,Ashberry Healthcare Ltd,104776
WARRINGTON BOROUGH COUNCIL,http://opendatacommunities.org/id/unitary-authority/warrington,FWB,Care Purchase East Team,54060,CP Residential EMI,441110,16/09/2019,1900468936,2260,Ashberry Healthcare Ltd,104776
WARRINGTON BOROUGH COUNCIL,http://opendatacommunities.org/id/unitary-authority/warrington,FWB,Care Purchase East Team,54060,CP Residential EMI,441110,16/09/2019,1900469300,2260,Ashberry Healthcare Ltd,104776
WARRINGTON BOROUGH COUNCIL,http://opendatacommunities.org/id/unitary-authority/warrington,FWB,Care Purchase South Team,54070,CP Residential EMI,441110,16/09/2019,1900469402,2260,Ashberry Healthcare Ltd,104776
WARRINGTON BOROUGH COUNCIL,http://opendatacommunities.org/id/unitary-authority/warrington,FWB,Care Purchase West Team,54080,CP Residential EMI,441110,16/09/2019,1900469325,2260,Ashberry Healthcare Ltd,104776
WARRINGTON BOROUGH COUNCIL,http://opendatacommunities.org/id/unitary-authority/warrington,FWB,Care Purchase South Team,54070,Respite Residential EMI,441140,16/09/2019,1900469294,1200,Ashberry Healthcare Ltd,104776
WARRINGTON BOROUGH COUNCIL,http://opendatacommunities.org/id/unitary-authority/warrington,FWB,Care Purchase East Team,54060,CP-LongStayExternal,441150,16/09/2019,1900469007,2169.44,Ashberry Healthcare Ltd,104776
WARRINGTON BOROUGH COUNCIL,http://opendatacommunities.org/id/unitary-authority/warrington,FWB,Care Purchase East Team,54060,CP-LongStayExternal,441150,16/09/2019,1900469375,2139.2,Ashberry Healthcare Ltd,104776
WARRINGTON BOROUGH COUNCIL,http://opendatacommunities.org/id/unitary-authority/warrington,FWB,Care Purchase South Team,54070,CP-LongStayExternal,441150,16/09/2019,1900469379,2139.2,Ashberry Healthcare Ltd,104776
WARRINGTON BOROUGH COUNCIL,http://opendatacommunities.org/id/unitary-authority/warrington,FWB,Care Purchase East Team,54060,CP-LongStayExternal,441150,16/09/2019,1900469407,2080,Ashberry Healthcare Ltd,104776
WARRINGTON BOROUGH COUNCIL,http://opendatacommunities.org/id/unitary-authority/warrington,FWB,Care Purchase South Team,54070,CP-LongStayExternal,441150,16/09/2019,1900469119,2078.72,Ashberry Healthcare Ltd,104776
WARRINGTON BOROUGH COUNCIL,http://opendatacommunities.org/id/unitary-authority/warrington,FWB,Care Purchase Central Team,54050,CP-LongStayExternal,441150,16/09/2019,1900469202,2044,Ashberry Healthcare Ltd,104776
WARRINGTON BOROUGH COUNCIL,http://opendatacommunities.org/id/unitary-authority/warrington,FWB,Care Purchase East Team,54060,CP-LongStayExternal,441150,16/09/2019,1900468865,1988,Ashberry Healthcare Ltd,104776
WARRINGTON BOROUGH COUNCIL,http://opendatacommunities.org/id/unitary-authority/warrington,FWB,Care Purchase East Team,54060,CP-LongStayExternal,441150,16/09/2019,1900468982,1988,Ashberry Healthcare Ltd,104776
WARRINGTON BOROUGH COUNCIL,http://opendatacommunities.org/id/unitary-authority/warrington,FWB,Care Purchase East Team,54060,CP-LongStayExternal,441150,16/09/2019,1900468983,1988,Ashberry Healthcare Ltd,104776
WARRINGTON BOROUGH COUNCIL,http://opendatacommunities.org/id/unitary-authority/warrington,FWB,Care Purchase East Team,54060,CP-LongStayExternal,441150,16/09/2019,1900469135,1988,Ashberry Healthcare Ltd,104776
WARRINGTON BOROUGH COUNCIL,http://opendatacommunities.org/id/unitary-authority/warrington,FWB,Care Purchase East Team,54060,CP-LongStayExternal,441150,16/09/2019,1900469176,1988,Ashberry Healthcare Ltd,104776
WARRINGTON BOROUGH COUNCIL,http://opendatacommunities.org/id/unitary-authority/warrington,FWB,Care Purchase East Team,54060,CP-LongStayExternal,441150,16/09/2019,1900469274,1988,Ashberry Healthcare Ltd,104776
WARRINGTON BOROUGH COUNCIL,http://opendatacommunities.org/id/unitary-authority/warrington,FWB,Care Purchase East Team,54060,CP-LongStayExternal,441150,16/09/2019,1900469328,1988,Ashberry Healthcare Ltd,104776
WARRINGTON BOROUGH COUNCIL,http://opendatacommunities.org/id/unitary-authority/warrington,FWB,Care Purchase East Team,54060,CP-LongStayExternal,441150,16/09/2019,1900468874,1988,Ashberry Healthcare Ltd,104776
WARRINGTON BOROUGH COUNCIL,http://opendatacommunities.org/id/unitary-authority/warrington,FWB,Care Purchase South Team,54070,CP-LongStayExternal,441150,16/09/2019,1900469397,1988,Ashberry Healthcare Ltd,104776
WARRINGTON BOROUGH COUNCIL,http://opendatacommunities.org/id/unitary-authority/warrington,FWB,Care Purchase South Team,54070,CP-LongStayExternal,441150,16/09/2019,1900469336,1988,Ashberry Healthcare Ltd,104776
WARRINGTON BOROUGH COUNCIL,http://opendatacommunities.org/id/unitary-authority/warrington,FWB,Care Purchase South Team,54070,CP-LongStayExternal,441150,16/09/2019,1900469011,1988,Ashberry Healthcare Ltd,104776
WARRINGTON BOROUGH COUNCIL,http://opendatacommunities.org/id/unitary-authority/warrington,FWB,Care Purchase South Team,54070,CP-LongStayExternal,441150,16/09/2019,1900469193,1988,Ashberry Healthcare Ltd,104776
WARRINGTON BOROUGH COUNCIL,http://opendatacommunities.org/id/unitary-authority/warrington,FWB,Care Purchase West Team,54080,CP-LongStayExternal,441150,16/09/2019,1900469275,1940,Ashberry Healthcare Ltd,104776
WARRINGTON BOROUGH COUNCIL,http://opendatacommunities.org/id/unitary-authority/warrington,FWB,Care Purchase Central Team,54050,CP-Nursing Care-External,441200,16/09/2019,1900469006,2536,Ashberry Healthcare Ltd,104776
WARRINGTON BOROUGH COUNCIL,http://opendatacommunities.org/id/unitary-authority/warrington,FWB,Care Purchase East Team,54060,CP-Nursing Care-External,441200,16/09/2019,1900468895,2476,Ashberry Healthcare Ltd,104776
WARRINGTON BOROUGH COUNCIL,http://opendatacommunities.org/id/unitary-authority/warrington,FWB,Care Purchase Central Team,54050,CP-Nursing Care-External,441200,16/09/2019,1900469228,2256,Ashberry Healthcare Ltd,104776
WARRINGTON BOROUGH COUNCIL,http://opendatacommunities.org/id/unitary-authority/warrington,FWB,Care Purchase Central Team,54050,CP-Nursing Care-External,441200,16/09/2019,1900469267,2256,Ashberry Healthcare Ltd,104776
WARRINGTON BOROUGH COUNCIL,http://opendatacommunities.org/id/unitary-authority/warrington,FWB,Care Purchase East Team,54060,CP-Nursing Care-External,441200,16/09/2019,1900469309,2256,Ashberry Healthcare Ltd,104776
WARRINGTON BOROUGH COUNCIL,http://opendatacommunities.org/id/unitary-authority/warrington,FWB,Care Purchase East Team,54060,CP-Nursing Care-External,441200,16/09/2019,1900469145,2256,Ashberry Healthcare Ltd,104776
WARRINGTON BOROUGH COUNCIL,http://opendatacommunities.org/id/unitary-authority/warrington,FWB,Care Purchase East Team,54060,CP-Nursing Care-External,441200,16/09/2019,1900469203,2256,Ashberry Healthcare Ltd,104776
WARRINGTON BOROUGH COUNCIL,http://opendatacommunities.org/id/unitary-authority/warrington,FWB,Care Purchase East Team,54060,CP-Nursing Care-External,441200,16/09/2019,1900469266,2256,Ashberry Healthcare Ltd,104776
WARRINGTON BOROUGH COUNCIL,http://opendatacommunities.org/id/unitary-authority/warrington,FWB,Care Purchase West Team,54080,CP-Nursing Care-External,441200,16/09/2019,1900469192,2256,Ashberry Healthcare Ltd,104776
WARRINGTON BOROUGH COUNCIL,http://opendatacommunities.org/id/unitary-authority/warrington,FWB,Care Purchase Budget,54490,CP Free Nursing Care External,443500,13/09/2019,1900467827,2672.61,Ashberry Healthcare Ltd,104776
WARRINGTON BOROUGH COUNCIL,http://opendatacommunities.org/id/unitary-authority/warrington,FWB,Care Purchase Budget,54490,CP Free Nursing Care External,443500,13/09/2019,1900467826,2436.1,Ashberry Healthcare Ltd,104776
WARRINGTON BOROUGH COUNCIL,http://opendatacommunities.org/id/unitary-authority/warrington,FWB,Care Purchase Budget,54490,CP Free Nursing Care External,443500,20/09/2019,1900470738,2436.1,Ashberry Healthcare Ltd,104776
WARRINGTON BOROUGH COUNCIL,http://opendatacommunities.org/id/unitary-authority/warrington,FWB,Care Purchase Budget,54490,CP Free Nursing Care External,443500,28/09/2019,1900473297,1986.72,Ashberry Healthcare Ltd,104776
WARRINGTON BOROUGH COUNCIL,http://opendatacommunities.org/id/unitary-authority/warrington,FWB,Care Purchase Budget,54490,CP Free Nursing Care External,443500,13/09/2019,1900467824,1986.72,Ashberry Healthcare Ltd,104776
WARRINGTON BOROUGH COUNCIL,http://opendatacommunities.org/id/unitary-authority/warrington,FWB,Care Purchase Budget,54490,CP Free Nursing Care External,443500,13/09/2019,1900467828,1986.72,Ashberry Healthcare Ltd,104776
WARRINGTON BOROUGH COUNCIL,http://opendatacommunities.org/id/unitary-authority/warrington,FWB,Care Purchase Budget,54490,CP Free Nursing Care External,443500,13/09/2019,1900467886,1986.72,Ashberry Healthcare Ltd,104776
WARRINGTON BOROUGH COUNCIL,http://opendatacommunities.org/id/unitary-authority/warrington,FWB,Care Purchase Budget,54490,CP Free Nursing Care External,443500,16/09/2019,1900469430,662.24,Ashberry Healthcare Ltd,104776
WARRINGTON BOROUGH COUNCIL,http://opendatacommunities.org/id/unitary-authority/warrington,FWB,Care Purchase Budget,54490,CP Free Nursing Care External,443500,16/09/2019,1900469405,662.24,Ashberry Healthcare Ltd,104776
WARRINGTON BOROUGH COUNCIL,http://opendatacommunities.org/id/unitary-authority/warrington,FWB,Care Purchase Budget,54490,CP Free Nursing Care External,443500,16/09/2019,1900469109,662.24,Ashberry Healthcare Ltd,104776
WARRINGTON BOROUGH COUNCIL,http://opendatacommunities.org/id/unitary-authority/warrington,FWB,Care Purchase Budget,54490,CP Free Nursing Care External,443500,16/09/2019,1900469263,662.24,Ashberry Healthcare Ltd,104776
WARRINGTON BOROUGH COUNCIL,http://opendatacommunities.org/id/unitary-authority/warrington,FWB,Care Purchase Budget,54490,CP Free Nursing Care External,443500,16/09/2019,1900469226,662.24,Ashberry Healthcare Ltd,104776
WARRINGTON BOROUGH COUNCIL,http://opendatacommunities.org/id/unitary-authority/warrington,FWB,Care Purchase Budget,54490,CP Free Nursing Care External,443500,16/09/2019,1900468953,662.24,Ashberry Healthcare Ltd,104776
WARRINGTON BOROUGH COUNCIL,http://opendatacommunities.org/id/unitary-authority/warrington,FWB,Care Purchase Budget,54490,CP Free Nursing Care External,443500,16/09/2019,1900468960,662.24,Ashberry Healthcare Ltd,104776
WARRINGTON BOROUGH COUNCIL,http://opendatacommunities.org/id/unitary-authority/warrington,FWB,Care Purchase Budget,54490,CP Free Nursing Care External,443500,16/09/2019,1900469200,662.24,Ashberry Healthcare Ltd,104776
WARRINGTON BOROUGH COUNCIL,http://opendatacommunities.org/id/unitary-authority/warrington,FWB,Care Purchase Budget,54490,CP Free Nursing Care External,443500,16/09/2019,1900469204,662.24,Ashberry Healthcare Ltd,104776
WARRINGTON BOROUGH COUNCIL,http://opendatacommunities.org/id/unitary-authority/warrington,FWB,Temporary Accomodation,43652,Legal Costs Incurred,440200,08/08/2019,1900456813,1879.2,Ashfords LLP,116593
WARRINGTON BOROUGH COUNCIL,http://opendatacommunities.org/id/unitary-authority/warrington,FWB,Temporary Accomodation,43652,Legal Costs Incurred,440200,14/08/2019,1900458771,1673,Ashfords LLP,116593
WARRINGTON BOROUGH COUNCIL,http://opendatacommunities.org/id/unitary-authority/warrington,RSC,Chief Finance Officer,10000,Training,190150,14/08/2019,1900458758,2265,Aspire Procurement Training Ltd,115985
WARRINGTON BOROUGH COUNCIL,http://opendatacommunities.org/id/unitary-authority/warrington,FWB,Residential Placements,30102,CP-LongStayExternal,441150,19/09/2019,1900470692,15000,Aspireone Care Ltd,117035
WARRINGTON BOROUGH COUNCIL,http://opendatacommunities.org/id/unitary-authority/warrington,FWB,Care Purchase Central Team,54050,CP-LongStayExternal,441150,16/09/2019,1900469717,8977.64,Autism Care UK North West Ltd,116043
WARRINGTON BOROUGH COUNCIL,http://opendatacommunities.org/id/unitary-authority/warrington,FWB,Care Purchase Central Team,54050,CP-Domicil.External,440950,17/09/2019,1900470469,1161.72,Autism Initiatives,104503
WARRINGTON BOROUGH COUNCIL,http://opendatacommunities.org/id/unitary-authority/warrington,FWB,Care Purchase East Team,54060,Supported Accommodation,440975,27/09/2019,1900472623,9717.4,Autism Initiatives,104503
WARRINGTON BOROUGH COUNCIL,http://opendatacommunities.org/id/unitary-authority/warrington,FWB,Care Purchase West Team,54080,Supported Accommodation,440975,18/09/2019,1900470622,7440.54,Autism Initiatives,104503
WARRINGTON BOROUGH COUNCIL,http://opendatacommunities.org/id/unitary-authority/warrington,FWB,Care Purchase Central Team,54050,Supported Accommodation,440975,18/09/2019,1900470626,6329.05,Autism Initiatives,104503
WARRINGTON BOROUGH COUNCIL,http://opendatacommunities.org/id/unitary-authority/warrington,FWB,Care Purchase Central Team,54050,Supported Accommodation,440975,18/09/2019,1900470621,5926.2,Autism Initiatives,104503
WARRINGTON BOROUGH COUNCIL,http://opendatacommunities.org/id/unitary-authority/warrington,FWB,Care Purchase West Team,54080,Supported Accommodation,440975,18/09/2019,1900470625,5808.6,Autism Initiatives,104503
WARRINGTON BOROUGH COUNCIL,http://opendatacommunities.org/id/unitary-authority/warrington,FWB,Care Purchase West Team,54080,CP-Day Care-External,441100,18/09/2019,1900470623,2931.4,Autism Initiatives,104503
WARRINGTON BOROUGH COUNCIL,http://opendatacommunities.org/id/unitary-authority/warrington,FWB,Care Purchase West Team,54080,CP-Day Care-External,441100,27/09/2019,1900472622,1551.6,Autism Initiatives,104503
WARRINGTON BOROUGH COUNCIL,http://opendatacommunities.org/id/unitary-authority/warrington,FWB,Care Purchase East Team,54060,CP-Day Care-External,441100,17/09/2019,1900470469,693.64,Autism Initiatives,104503
WARRINGTON BOROUGH COUNCIL,http://opendatacommunities.org/id/unitary-authority/warrington,FWB,Care Purchase East Team,54060,CP-LongStayExternal,441150,16/09/2019,1900469487,4496,Autism Initiatives,104503
WARRINGTON BOROUGH COUNCIL,http://opendatacommunities.org/id/unitary-authority/warrington,FWB,Care Purchase West Team,54080,CP Residential EMI,441110,16/09/2019,1900469651,2100,Avery Homes Grove Park Limited,115792
WARRINGTON BOROUGH COUNCIL,http://opendatacommunities.org/id/unitary-authority/warrington,FWB,Care Purchase West Team,54080,CP-LongStayExternal,441150,16/09/2019,1900469651,1700,Avery Homes Grove Park Limited,115792
WARRINGTON BOROUGH COUNCIL,http://opendatacommunities.org/id/unitary-authority/warrington,FWB,Care Purchase West Team,54080,CP-LongStayExternal,441150,16/09/2019,1900469781,3488,Barchester Healthcare Brookfield,104548
WARRINGTON BOROUGH COUNCIL,http://opendatacommunities.org/id/unitary-authority/warrington,FWB,Care Purchase South Team,54070,CP-LongStayExternal,441150,16/09/2019,1900469695,3088,Barchester Healthcare Brookfield,104548
WARRINGTON BOROUGH COUNCIL,http://opendatacommunities.org/id/unitary-authority/warrington,FWB,Care Purchase South Team,54070,CP-LongStayExternal,441150,16/09/2019,1900469477,1988,Barchester Healthcare Brookfield,104548
WARRINGTON BOROUGH COUNCIL,http://opendatacommunities.org/id/unitary-authority/warrington,FWB,Care Purchase South Team,54070,CP-LongStayExternal,441150,16/09/2019,1900469948,1988,Barchester Healthcare Brookfield,104548
WARRINGTON BOROUGH COUNCIL,http://opendatacommunities.org/id/unitary-authority/warrington,FWB,Care Purchase South Team,54070,CP-LongStayExternal,441150,16/09/2019,1900469514,1988,Barchester Healthcare Brookfield,104548
WARRINGTON BOROUGH COUNCIL,http://opendatacommunities.org/id/unitary-authority/warrington,FWB,Care Purchase South Team,54070,CP-LongStayExternal,441150,16/09/2019,1900469915,1105.71,Barchester Healthcare Brookfield,104548
WARRINGTON BOROUGH COUNCIL,http://opendatacommunities.org/id/unitary-authority/warrington,FWB,Care Purchase South Team,54070,CP Residential EMI,441110,16/09/2019,1900469967,2260,Barchester Healthcare Cheshire Gran,111378
WARRINGTON BOROUGH COUNCIL,http://opendatacommunities.org/id/unitary-authority/warrington,FWB,Care Purchase South Team,54070,CP-Nursing Care-External,441200,16/09/2019,1900469666,4296,Barchester Healthcare Cheshire Gran,111378
WARRINGTON BOROUGH COUNCIL,http://opendatacommunities.org/id/unitary-authority/warrington,FWB,Care Purchase South Team,54070,CP-Nursing Care-External,441200,16/09/2019,1900469796,3456,Barchester Healthcare Cheshire Gran,111378
WARRINGTON BOROUGH COUNCIL,http://opendatacommunities.org/id/unitary-authority/warrington,FWB,Care Purchase Budget,54490,CP Free Nursing Care External,443500,26/09/2019,1900472015,1631.95,Barchester Healthcare Cheshire Gran,111378
WARRINGTON BOROUGH COUNCIL,http://opendatacommunities.org/id/unitary-authority/warrington,FWB,Care Purchase Budget,54490,CP Free Nursing Care External,443500,16/09/2019,1900469669,662.24,Barchester Healthcare Cheshire Gran,111378
WARRINGTON BOROUGH COUNCIL,http://opendatacommunities.org/id/unitary-authority/warrington,FWB,Care Purchase Budget,54490,CP Free Nursing Care External,443500,26/09/2019,1900471959,662.24,Barchester Healthcare Cheshire Gran,111378
WARRINGTON BOROUGH COUNCIL,http://opendatacommunities.org/id/unitary-authority/warrington,FWB,Care Purchase Budget,54490,CP Free Nursing Care External,443500,26/09/2019,1900471968,662.24,Barchester Healthcare Cheshire Gran,111378
WARRINGTON BOROUGH COUNCIL,http://opendatacommunities.org/id/unitary-authority/warrington,FWB,Care Purchase Budget,54490,CP Free Nursing Care External,443500,26/09/2019,1900472001,662.24,Barchester Healthcare Cheshire Gran,111378
WARRINGTON BOROUGH COUNCIL,http://opendatacommunities.org/id/unitary-authority/warrington,FWB,Care Purchase Budget,54490,CP Free Nursing Care External,443500,26/09/2019,1900472003,662.24,Barchester Healthcare Cheshire Gran,111378
WARRINGTON BOROUGH COUNCIL,http://opendatacommunities.org/id/unitary-authority/warrington,FWB,Care Purchase Budget,54490,CP Free Nursing Care External,443500,26/09/2019,1900472011,662.24,Barchester Healthcare Cheshire Gran,111378
WARRINGTON BOROUGH COUNCIL,http://opendatacommunities.org/id/unitary-authority/warrington,FWB,Care Purchase Budget,54490,CP Free Nursing Care External,443500,26/09/2019,1900472012,662.24,Barchester Healthcare Cheshire Gran,111378
WARRINGTON BOROUGH COUNCIL,http://opendatacommunities.org/id/unitary-authority/warrington,FWB,Care Purchase Budget,54490,CP Free Nursing Care External,443500,26/09/2019,1900472013,662.24,Barchester Healthcare Cheshire Gran,111378
WARRINGTON BOROUGH COUNCIL,http://opendatacommunities.org/id/unitary-authority/warrington,FWB,Care Purchase Budget,54490,CP Free Nursing Care External,443500,26/09/2019,1900472014,662.24,Barchester Healthcare Cheshire Gran,111378
WARRINGTON BOROUGH COUNCIL,http://opendatacommunities.org/id/unitary-authority/warrington,FWB,Care Purchase Budget,54490,CP Free Nursing Care External,443500,26/09/2019,1900472016,662.24,Barchester Healthcare Cheshire Gran,111378
WARRINGTON BOROUGH COUNCIL,http://opendatacommunities.org/id/unitary-authority/warrington,FWB,Care Purchase Budget,54490,CP Free Nursing Care External,443500,26/09/2019,1900472017,662.24,Barchester Healthcare Cheshire Gran,111378
WARRINGTON BOROUGH COUNCIL,http://opendatacommunities.org/id/unitary-authority/warrington,FWB,Care Purchase Budget,54490,CP Free Nursing Care External,443500,26/09/2019,1900472019,662.24,Barchester Healthcare Cheshire Gran,111378
WARRINGTON BOROUGH COUNCIL,http://opendatacommunities.org/id/unitary-authority/warrington,FWB,Care Purchase Budget,54490,CP Free Nursing Care External,443500,26/09/2019,1900472020,662.24,Barchester Healthcare Cheshire Gran,111378
WARRINGTON BOROUGH COUNCIL,http://opendatacommunities.org/id/unitary-authority/warrington,FWB,Care Purchase Budget,54490,CP Free Nursing Care External,443500,26/09/2019,1900472021,662.24,Barchester Healthcare Cheshire Gran,111378
WARRINGTON BOROUGH COUNCIL,http://opendatacommunities.org/id/unitary-authority/warrington,FWB,Care Purchase Budget,54490,CP Free Nursing Care External,443500,26/09/2019,1900472023,662.24,Barchester Healthcare Cheshire Gran,111378
WARRINGTON BOROUGH COUNCIL,http://opendatacommunities.org/id/unitary-authority/warrington,FWB,Care Purchase Budget,54490,CP Free Nursing Care External,443500,26/09/2019,1900471967,662.24,Barchester Healthcare Cheshire Gran,111378
WARRINGTON BOROUGH COUNCIL,http://opendatacommunities.org/id/unitary-authority/warrington,FWB,Care Purchase Budget,54490,CP Free Nursing Care External,443500,26/09/2019,1900471969,662.24,Barchester Healthcare Cheshire Gran,111378
WARRINGTON BOROUGH COUNCIL,http://opendatacommunities.org/id/unitary-authority/warrington,FWB,Care Purchase Budget,54490,CP Free Nursing Care External,443500,26/09/2019,1900472018,662.24,Barchester Healthcare Cheshire Gran,111378
WARRINGTON BOROUGH COUNCIL,http://opendatacommunities.org/id/unitary-authority/warrington,FWB,Care Purchase Budget,54490,CP Free Nursing Care External,443500,26/09/2019,1900472022,662.24,Barchester Healthcare Cheshire Gran,111378
WARRINGTON BOROUGH COUNCIL,http://opendatacommunities.org/id/unitary-authority/warrington,FWB,Care Purchase Budget,54490,CP Free Nursing Care External,443500,26/09/2019,1900472024,662.24,Barchester Healthcare Cheshire Gran,111378
WARRINGTON BOROUGH COUNCIL,http://opendatacommunities.org/id/unitary-authority/warrington,FWB,Care Purchase Budget,54490,CP Free Nursing Care External,443500,26/09/2019,1900472025,662.24,Barchester Healthcare Cheshire Gran,111378
WARRINGTON BOROUGH COUNCIL,http://opendatacommunities.org/id/unitary-authority/warrington,FWB,Care Purchase Budget,54490,CP Free Nursing Care External,443500,15/09/2019,1900468769,662.24,Barchester Healthcare Cheshire Gran,111378
WARRINGTON BOROUGH COUNCIL,http://opendatacommunities.org/id/unitary-authority/warrington,FWB,Care Purchase Budget,54490,CP Free Nursing Care External,443500,15/09/2019,1900468770,662.24,Barchester Healthcare Cheshire Gran,111378
WARRINGTON BOROUGH COUNCIL,http://opendatacommunities.org/id/unitary-authority/warrington,FWB,Care Purchase Budget,54490,CP Free Nursing Care External,443500,15/09/2019,1900468771,662.24,Barchester Healthcare Cheshire Gran,111378
WARRINGTON BOROUGH COUNCIL,http://opendatacommunities.org/id/unitary-authority/warrington,FWB,Care Purchase Budget,54490,CP Free Nursing Care External,443500,15/09/2019,1900468772,662.24,Barchester Healthcare Cheshire Gran,111378
WARRINGTON BOROUGH COUNCIL,http://opendatacommunities.org/id/unitary-authority/warrington,FWB,Care Purchase Budget,54490,CP Free Nursing Care External,443500,15/09/2019,1900468775,662.24,Barchester Healthcare Cheshire Gran,111378
WARRINGTON BOROUGH COUNCIL,http://opendatacommunities.org/id/unitary-authority/warrington,FWB,Care Purchase Budget,54490,CP Free Nursing Care External,443500,15/09/2019,1900468779,662.24,Barchester Healthcare Cheshire Gran,111378
WARRINGTON BOROUGH COUNCIL,http://opendatacommunities.org/id/unitary-authority/warrington,FWB,Care Purchase Budget,54490,CP Free Nursing Care External,443500,15/09/2019,1900468782,662.24,Barchester Healthcare Cheshire Gran,111378
WARRINGTON BOROUGH COUNCIL,http://opendatacommunities.org/id/unitary-authority/warrington,FWB,Care Purchase Budget,54490,CP Free Nursing Care External,443500,15/09/2019,1900468783,662.24,Barchester Healthcare Cheshire Gran,111378
WARRINGTON BOROUGH COUNCIL,http://opendatacommunities.org/id/unitary-authority/warrington,FWB,Care Purchase Budget,54490,CP Free Nursing Care External,443500,15/09/2019,1900468784,662.24,Barchester Healthcare Cheshire Gran,111378
WARRINGTON BOROUGH COUNCIL,http://opendatacommunities.org/id/unitary-authority/warrington,FWB,Care Purchase Budget,54490,CP Free Nursing Care External,443500,15/09/2019,1900468786,662.24,Barchester Healthcare Cheshire Gran,111378
WARRINGTON BOROUGH COUNCIL,http://opendatacommunities.org/id/unitary-authority/warrington,FWB,Care Purchase Budget,54490,CP Free Nursing Care External,443500,15/09/2019,1900468787,662.24,Barchester Healthcare Cheshire Gran,111378
WARRINGTON BOROUGH COUNCIL,http://opendatacommunities.org/id/unitary-authority/warrington,FWB,Care Purchase Budget,54490,CP Free Nursing Care External,443500,15/09/2019,1900468789,662.24,Barchester Healthcare Cheshire Gran,111378
WARRINGTON BOROUGH COUNCIL,http://opendatacommunities.org/id/unitary-authority/warrington,FWB,Care Purchase Budget,54490,CP Free Nursing Care External,443500,15/09/2019,1900468791,662.24,Barchester Healthcare Cheshire Gran,111378
WARRINGTON BOROUGH COUNCIL,http://opendatacommunities.org/id/unitary-authority/warrington,FWB,Care Purchase Budget,54490,CP Free Nursing Care External,443500,15/09/2019,1900468792,662.24,Barchester Healthcare Cheshire Gran,111378
WARRINGTON BOROUGH COUNCIL,http://opendatacommunities.org/id/unitary-authority/warrington,FWB,Care Purchase Budget,54490,CP Free Nursing Care External,443500,15/09/2019,1900468793,662.24,Barchester Healthcare Cheshire Gran,111378
WARRINGTON BOROUGH COUNCIL,http://opendatacommunities.org/id/unitary-authority/warrington,FWB,Care Purchase Budget,54490,CP Free Nursing Care External,443500,15/09/2019,1900468794,662.24,Barchester Healthcare Cheshire Gran,111378
WARRINGTON BOROUGH COUNCIL,http://opendatacommunities.org/id/unitary-authority/warrington,FWB,Care Purchase Budget,54490,CP Free Nursing Care External,443500,15/09/2019,1900468795,662.24,Barchester Healthcare Cheshire Gran,111378
WARRINGTON BOROUGH COUNCIL,http://opendatacommunities.org/id/unitary-authority/warrington,FWB,Care Purchase Budget,54490,CP Free Nursing Care External,443500,15/09/2019,1900468796,662.24,Barchester Healthcare Cheshire Gran,111378
WARRINGTON BOROUGH COUNCIL,http://opendatacommunities.org/id/unitary-authority/warrington,FWB,Care Purchase Budget,54490,CP Free Nursing Care External,443500,15/09/2019,1900468797,662.24,Barchester Healthcare Cheshire Gran,111378
WARRINGTON BOROUGH COUNCIL,http://opendatacommunities.org/id/unitary-authority/warrington,FWB,Care Purchase Budget,54490,CP Free Nursing Care External,443500,15/09/2019,1900468798,662.24,Barchester Healthcare Cheshire Gran,111378
WARRINGTON BOROUGH COUNCIL,http://opendatacommunities.org/id/unitary-authority/warrington,FWB,Care Purchase Budget,54490,CP Free Nursing Care External,443500,16/09/2019,1900468822,662.24,Barchester Healthcare Cheshire Gran,111378
WARRINGTON BOROUGH COUNCIL,http://opendatacommunities.org/id/unitary-authority/warrington,FWB,Care Purchase Budget,54490,CP Free Nursing Care External,443500,16/09/2019,1900468823,662.24,Barchester Healthcare Cheshire Gran,111378
WARRINGTON BOROUGH COUNCIL,http://opendatacommunities.org/id/unitary-authority/warrington,FWB,Care Purchase Budget,54490,CP Free Nursing Care External,443500,16/09/2019,1900468825,662.24,Barchester Healthcare Cheshire Gran,111378
WARRINGTON BOROUGH COUNCIL,http://opendatacommunities.org/id/unitary-authority/warrington,FWB,Care Purchase Budget,54490,CP Free Nursing Care External,443500,16/09/2019,1900468828,662.24,Barchester Healthcare Cheshire Gran,111378
WARRINGTON BOROUGH COUNCIL,http://opendatacommunities.org/id/unitary-authority/warrington,FWB,Care Purchase Budget,54490,CP Free Nursing Care External,443500,16/09/2019,1900468829,662.24,Barchester Healthcare Cheshire Gran,111378
WARRINGTON BOROUGH COUNCIL,http://opendatacommunities.org/id/unitary-authority/warrington,FWB,Care Purchase Budget,54490,CP Free Nursing Care External,443500,16/09/2019,1900468831,662.24,Barchester Healthcare Cheshire Gran,111378
WARRINGTON BOROUGH COUNCIL,http://opendatacommunities.org/id/unitary-authority/warrington,FWB,Care Purchase Budget,54490,CP Free Nursing Care External,443500,16/09/2019,1900468836,662.24,Barchester Healthcare Cheshire Gran,111378
WARRINGTON BOROUGH COUNCIL,http://opendatacommunities.org/id/unitary-authority/warrington,FWB,Care Purchase Budget,54490,CP Free Nursing Care External,443500,16/09/2019,1900468837,662.24,Barchester Healthcare Cheshire Gran,111378
WARRINGTON BOROUGH COUNCIL,http://opendatacommunities.org/id/unitary-authority/warrington,FWB,Care Purchase Budget,54490,CP Free Nursing Care External,443500,16/09/2019,1900468838,662.24,Barchester Healthcare Cheshire Gran,111378
WARRINGTON BOROUGH COUNCIL,http://opendatacommunities.org/id/unitary-authority/warrington,FWB,Care Purchase Budget,54490,CP Free Nursing Care External,443500,16/09/2019,1900469832,662.24,Barchester Healthcare Cheshire Gran,111378
WARRINGTON BOROUGH COUNCIL,http://opendatacommunities.org/id/unitary-authority/warrington,FWB,Care Purchase Budget,54490,CP Free Nursing Care External,443500,20/09/2019,1900470713,662.24,Barchester Healthcare Cheshire Gran,111378
WARRINGTON BOROUGH COUNCIL,http://opendatacommunities.org/id/unitary-authority/warrington,FWB,Care Purchase Budget,54490,CP Free Nursing Care External,443500,20/09/2019,1900470714,662.24,Barchester Healthcare Cheshire Gran,111378
WARRINGTON BOROUGH COUNCIL,http://opendatacommunities.org/id/unitary-authority/warrington,FWB,Care Purchase Budget,54490,CP Free Nursing Care External,443500,20/09/2019,1900470719,662.24,Barchester Healthcare Cheshire Gran,111378
WARRINGTON BOROUGH COUNCIL,http://opendatacommunities.org/id/unitary-authority/warrington,FWB,Care Purchase Budget,54490,CP Free Nursing Care External,443500,20/09/2019,1900470720,662.24,Barchester Healthcare Cheshire Gran,111378
WARRINGTON BOROUGH COUNCIL,http://opendatacommunities.org/id/unitary-authority/warrington,FWB,Care Purchase Budget,54490,CP Free Nursing Care External,443500,20/09/2019,1900470721,662.24,Barchester Healthcare Cheshire Gran,111378
WARRINGTON BOROUGH COUNCIL,http://opendatacommunities.org/id/unitary-authority/warrington,FWB,Care Purchase Budget,54490,CP Free Nursing Care External,443500,20/09/2019,1900470722,662.24,Barchester Healthcare Cheshire Gran,111378
WARRINGTON BOROUGH COUNCIL,http://opendatacommunities.org/id/unitary-authority/warrington,FWB,Care Purchase Budget,54490,CP Free Nursing Care External,443500,20/09/2019,1900470723,662.24,Barchester Healthcare Cheshire Gran,111378
WARRINGTON BOROUGH COUNCIL,http://opendatacommunities.org/id/unitary-authority/warrington,FWB,Care Purchase Budget,54490,CP Free Nursing Care External,443500,15/09/2019,1900468768,662.24,Barchester Healthcare Cheshire Gran,111378
WARRINGTON BOROUGH COUNCIL,http://opendatacommunities.org/id/unitary-authority/warrington,FWB,Care Purchase Budget,54490,CP Free Nursing Care External,443500,15/09/2019,1900468773,662.24,Barchester Healthcare Cheshire Gran,111378
WARRINGTON BOROUGH COUNCIL,http://opendatacommunities.org/id/unitary-authority/warrington,FWB,Care Purchase Budget,54490,CP Free Nursing Care External,443500,15/09/2019,1900468778,662.24,Barchester Healthcare Cheshire Gran,111378
WARRINGTON BOROUGH COUNCIL,http://opendatacommunities.org/id/unitary-authority/warrington,FWB,Care Purchase Budget,54490,CP Free Nursing Care External,443500,15/09/2019,1900468780,662.24,Barchester Healthcare Cheshire Gran,111378
WARRINGTON BOROUGH COUNCIL,http://opendatacommunities.org/id/unitary-authority/warrington,FWB,Care Purchase Budget,54490,CP Free Nursing Care External,443500,15/09/2019,1900468785,662.24,Barchester Healthcare Cheshire Gran,111378
WARRINGTON BOROUGH COUNCIL,http://opendatacommunities.org/id/unitary-authority/warrington,FWB,Care Purchase Budget,54490,CP Free Nursing Care External,443500,15/09/2019,1900468788,662.24,Barchester Healthcare Cheshire Gran,111378
WARRINGTON BOROUGH COUNCIL,http://opendatacommunities.org/id/unitary-authority/warrington,FWB,Care Purchase Budget,54490,CP Free Nursing Care External,443500,16/09/2019,1900468821,662.24,Barchester Healthcare Cheshire Gran,111378
WARRINGTON BOROUGH COUNCIL,http://opendatacommunities.org/id/unitary-authority/warrington,FWB,Care Purchase Budget,54490,CP Free Nursing Care External,443500,16/09/2019,1900468824,662.24,Barchester Healthcare Cheshire Gran,111378
WARRINGTON BOROUGH COUNCIL,http://opendatacommunities.org/id/unitary-authority/warrington,FWB,Care Purchase Budget,54490,CP Free Nursing Care External,443500,16/09/2019,1900468826,662.24,Barchester Healthcare Cheshire Gran,111378
WARRINGTON BOROUGH COUNCIL,http://opendatacommunities.org/id/unitary-authority/warrington,FWB,Care Purchase Budget,54490,CP Free Nursing Care External,443500,16/09/2019,1900468827,662.24,Barchester Healthcare Cheshire Gran,111378
WARRINGTON BOROUGH COUNCIL,http://opendatacommunities.org/id/unitary-authority/warrington,FWB,Care Purchase Budget,54490,CP Free Nursing Care External,443500,16/09/2019,1900468835,662.24,Barchester Healthcare Cheshire Gran,111378
WARRINGTON BOROUGH COUNCIL,http://opendatacommunities.org/id/unitary-authority/warrington,FWB,Care Purchase Budget,54490,CP Free Nursing Care External,443500,26/09/2019,1900471960,632.64,Barchester Healthcare Cheshire Gran,111378
WARRINGTON BOROUGH COUNCIL,http://opendatacommunities.org/id/unitary-authority/warrington,FWB,Care Purchase Budget,54490,CP Free Nursing Care External,443500,26/09/2019,1900471961,632.64,Barchester Healthcare Cheshire Gran,111378
WARRINGTON BOROUGH COUNCIL,http://opendatacommunities.org/id/unitary-authority/warrington,FWB,Care Purchase Budget,54490,CP Free Nursing Care External,443500,26/09/2019,1900471962,632.64,Barchester Healthcare Cheshire Gran,111378
WARRINGTON BOROUGH COUNCIL,http://opendatacommunities.org/id/unitary-authority/warrington,FWB,Care Purchase Budget,54490,CP Free Nursing Care External,443500,26/09/2019,1900471964,632.64,Barchester Healthcare Cheshire Gran,111378
WARRINGTON BOROUGH COUNCIL,http://opendatacommunities.org/id/unitary-authority/warrington,FWB,Care Purchase Budget,54490,CP Free Nursing Care External,443500,26/09/2019,1900471965,632.64,Barchester Healthcare Cheshire Gran,111378
WARRINGTON BOROUGH COUNCIL,http://opendatacommunities.org/id/unitary-authority/warrington,FWB,Care Purchase Budget,54490,CP Free Nursing Care External,443500,26/09/2019,1900471975,632.64,Barchester Healthcare Cheshire Gran,111378
WARRINGTON BOROUGH COUNCIL,http://opendatacommunities.org/id/unitary-authority/warrington,FWB,Care Purchase Budget,54490,CP Free Nursing Care External,443500,26/09/2019,1900471980,632.64,Barchester Healthcare Cheshire Gran,111378
WARRINGTON BOROUGH COUNCIL,http://opendatacommunities.org/id/unitary-authority/warrington,FWB,Care Purchase Budget,54490,CP Free Nursing Care External,443500,26/09/2019,1900471981,632.64,Barchester Healthcare Cheshire Gran,111378
WARRINGTON BOROUGH COUNCIL,http://opendatacommunities.org/id/unitary-authority/warrington,FWB,Care Purchase Budget,54490,CP Free Nursing Care External,443500,26/09/2019,1900471982,632.64,Barchester Healthcare Cheshire Gran,111378
WARRINGTON BOROUGH COUNCIL,http://opendatacommunities.org/id/unitary-authority/warrington,FWB,Care Purchase Budget,54490,CP Free Nursing Care External,443500,26/09/2019,1900471983,632.64,Barchester Healthcare Cheshire Gran,111378
WARRINGTON BOROUGH COUNCIL,http://opendatacommunities.org/id/unitary-authority/warrington,FWB,Care Purchase Budget,54490,CP Free Nursing Care External,443500,26/09/2019,1900471984,632.64,Barchester Healthcare Cheshire Gran,111378
WARRINGTON BOROUGH COUNCIL,http://opendatacommunities.org/id/unitary-authority/warrington,FWB,Care Purchase Budget,54490,CP Free Nursing Care External,443500,26/09/2019,1900471985,632.64,Barchester Healthcare Cheshire Gran,111378
WARRINGTON BOROUGH COUNCIL,http://opendatacommunities.org/id/unitary-authority/warrington,FWB,Care Purchase Budget,54490,CP Free Nursing Care External,443500,26/09/2019,1900471987,632.64,Barchester Healthcare Cheshire Gran,111378
WARRINGTON BOROUGH COUNCIL,http://opendatacommunities.org/id/unitary-authority/warrington,FWB,Care Purchase Budget,54490,CP Free Nursing Care External,443500,26/09/2019,1900471990,632.64,Barchester Healthcare Cheshire Gran,111378
WARRINGTON BOROUGH COUNCIL,http://opendatacommunities.org/id/unitary-authority/warrington,FWB,Care Purchase Budget,54490,CP Free Nursing Care External,443500,26/09/2019,1900471991,632.64,Barchester Healthcare Cheshire Gran,111378
WARRINGTON BOROUGH COUNCIL,http://opendatacommunities.org/id/unitary-authority/warrington,FWB,Care Purchase Budget,54490,CP Free Nursing Care External,443500,26/09/2019,1900471992,632.64,Barchester Healthcare Cheshire Gran,111378
WARRINGTON BOROUGH COUNCIL,http://opendatacommunities.org/id/unitary-authority/warrington,FWB,Care Purchase Budget,54490,CP Free Nursing Care External,443500,26/09/2019,1900471994,632.64,Barchester Healthcare Cheshire Gran,111378
WARRINGTON BOROUGH COUNCIL,http://opendatacommunities.org/id/unitary-authority/warrington,FWB,Care Purchase Budget,54490,CP Free Nursing Care External,443500,26/09/2019,1900471995,632.64,Barchester Healthcare Cheshire Gran,111378
WARRINGTON BOROUGH COUNCIL,http://opendatacommunities.org/id/unitary-authority/warrington,FWB,Care Purchase Budget,54490,CP Free Nursing Care External,443500,26/09/2019,1900471996,632.64,Barchester Healthcare Cheshire Gran,111378
WARRINGTON BOROUGH COUNCIL,http://opendatacommunities.org/id/unitary-authority/warrington,FWB,Care Purchase Budget,54490,CP Free Nursing Care External,443500,26/09/2019,1900471997,632.64,Barchester Healthcare Cheshire Gran,111378
WARRINGTON BOROUGH COUNCIL,http://opendatacommunities.org/id/unitary-authority/warrington,FWB,Care Purchase Budget,54490,CP Free Nursing Care External,443500,20/09/2019,1900470727,632.64,Barchester Healthcare Cheshire Gran,111378
WARRINGTON BOROUGH COUNCIL,http://opendatacommunities.org/id/unitary-authority/warrington,FWB,Care Purchase Budget,54490,CP Free Nursing Care External,443500,20/09/2019,1900470728,632.64,Barchester Healthcare Cheshire Gran,111378
WARRINGTON BOROUGH COUNCIL,http://opendatacommunities.org/id/unitary-authority/warrington,FWB,Care Purchase Budget,54490,CP Free Nursing Care External,443500,20/09/2019,1900470734,632.64,Barchester Healthcare Cheshire Gran,111378
WARRINGTON BOROUGH COUNCIL,http://opendatacommunities.org/id/unitary-authority/warrington,FWB,Care Purchase Budget,54490,CP Free Nursing Care External,443500,26/09/2019,1900471963,632.64,Barchester Healthcare Cheshire Gran,111378
WARRINGTON BOROUGH COUNCIL,http://opendatacommunities.org/id/unitary-authority/warrington,FWB,Care Purchase Budget,54490,CP Free Nursing Care External,443500,26/09/2019,1900471966,632.64,Barchester Healthcare Cheshire Gran,111378
WARRINGTON BOROUGH COUNCIL,http://opendatacommunities.org/id/unitary-authority/warrington,FWB,Care Purchase Budget,54490,CP Free Nursing Care External,443500,26/09/2019,1900471978,632.64,Barchester Healthcare Cheshire Gran,111378
WARRINGTON BOROUGH COUNCIL,http://opendatacommunities.org/id/unitary-authority/warrington,FWB,Care Purchase Budget,54490,CP Free Nursing Care External,443500,26/09/2019,1900471979,632.64,Barchester Healthcare Cheshire Gran,111378
WARRINGTON BOROUGH COUNCIL,http://opendatacommunities.org/id/unitary-authority/warrington,FWB,Care Purchase Budget,54490,CP Free Nursing Care External,443500,26/09/2019,1900471986,632.64,Barchester Healthcare Cheshire Gran,111378
WARRINGTON BOROUGH COUNCIL,http://opendatacommunities.org/id/unitary-authority/warrington,FWB,Care Purchase Budget,54490,CP Free Nursing Care External,443500,26/09/2019,1900471988,632.64,Barchester Healthcare Cheshire Gran,111378
WARRINGTON BOROUGH COUNCIL,http://opendatacommunities.org/id/unitary-authority/warrington,FWB,Care Purchase Budget,54490,CP Free Nursing Care External,443500,26/09/2019,1900471989,632.64,Barchester Healthcare Cheshire Gran,111378
WARRINGTON BOROUGH COUNCIL,http://opendatacommunities.org/id/unitary-authority/warrington,FWB,Care Purchase Budget,54490,CP Free Nursing Care External,443500,26/09/2019,1900471993,632.64,Barchester Healthcare Cheshire Gran,111378
WARRINGTON BOROUGH COUNCIL,http://opendatacommunities.org/id/unitary-authority/warrington,FWB,Care Purchase Budget,54490,CP Free Nursing Care External,443500,26/09/2019,1900471998,632.64,Barchester Healthcare Cheshire Gran,111378
WARRINGTON BOROUGH COUNCIL,http://opendatacommunities.org/id/unitary-authority/warrington,FWB,Care Purchase Budget,54490,CP Free Nursing Care External,443500,26/09/2019,1900471999,632.64,Barchester Healthcare Cheshire Gran,111378
WARRINGTON BOROUGH COUNCIL,http://opendatacommunities.org/id/unitary-authority/warrington,FWB,Care Purchase Budget,54490,CP Free Nursing Care External,443500,26/09/2019,1900472000,632.64,Barchester Healthcare Cheshire Gran,111378
WARRINGTON BOROUGH COUNCIL,http://opendatacommunities.org/id/unitary-authority/warrington,FWB,Care Purchase Budget,54490,CP Free Nursing Care External,443500,26/09/2019,1900472002,632.64,Barchester Healthcare Cheshire Gran,111378
WARRINGTON BOROUGH COUNCIL,http://opendatacommunities.org/id/unitary-authority/warrington,FWB,Care Purchase Budget,54490,CP Free Nursing Care External,443500,15/09/2019,1900468776,632.64,Barchester Healthcare Cheshire Gran,111378
WARRINGTON BOROUGH COUNCIL,http://opendatacommunities.org/id/unitary-authority/warrington,FWB,Care Purchase Budget,54490,CP Free Nursing Care External,443500,15/09/2019,1900468777,632.64,Barchester Healthcare Cheshire Gran,111378
WARRINGTON BOROUGH COUNCIL,http://opendatacommunities.org/id/unitary-authority/warrington,FWB,Care Purchase Budget,54490,CP Free Nursing Care External,443500,15/09/2019,1900468781,632.64,Barchester Healthcare Cheshire Gran,111378
WARRINGTON BOROUGH COUNCIL,http://opendatacommunities.org/id/unitary-authority/warrington,FWB,Care Purchase Budget,54490,CP Free Nursing Care External,443500,15/09/2019,1900468790,632.64,Barchester Healthcare Cheshire Gran,111378
WARRINGTON BOROUGH COUNCIL,http://opendatacommunities.org/id/unitary-authority/warrington,FWB,Care Purchase Budget,54490,CP Free Nursing Care External,443500,16/09/2019,1900468832,632.64,Barchester Healthcare Cheshire Gran,111378
WARRINGTON BOROUGH COUNCIL,http://opendatacommunities.org/id/unitary-authority/warrington,FWB,Care Purchase Budget,54490,CP Free Nursing Care External,443500,20/09/2019,1900470724,632.64,Barchester Healthcare Cheshire Gran,111378
WARRINGTON BOROUGH COUNCIL,http://opendatacommunities.org/id/unitary-authority/warrington,FWB,Care Purchase Budget,54490,CP Free Nursing Care External,443500,20/09/2019,1900470725,632.64,Barchester Healthcare Cheshire Gran,111378
WARRINGTON BOROUGH COUNCIL,http://opendatacommunities.org/id/unitary-authority/warrington,FWB,Care Purchase Budget,54490,CP Free Nursing Care External,443500,20/09/2019,1900470726,632.64,Barchester Healthcare Cheshire Gran,111378
WARRINGTON BOROUGH COUNCIL,http://opendatacommunities.org/id/unitary-authority/warrington,FWB,Care Purchase Budget,54490,CP Free Nursing Care External,443500,20/09/2019,1900470729,632.64,Barchester Healthcare Cheshire Gran,111378
WARRINGTON BOROUGH COUNCIL,http://opendatacommunities.org/id/unitary-authority/warrington,FWB,Care Purchase Budget,54490,CP Free Nursing Care External,443500,20/09/2019,1900470730,632.64,Barchester Healthcare Cheshire Gran,111378
WARRINGTON BOROUGH COUNCIL,http://opendatacommunities.org/id/unitary-authority/warrington,FWB,Care Purchase Budget,54490,CP Free Nursing Care External,443500,20/09/2019,1900470731,632.64,Barchester Healthcare Cheshire Gran,111378
WARRINGTON BOROUGH COUNCIL,http://opendatacommunities.org/id/unitary-authority/warrington,FWB,Care Purchase Budget,54490,CP Free Nursing Care External,443500,20/09/2019,1900470732,632.64,Barchester Healthcare Cheshire Gran,111378
WARRINGTON BOROUGH COUNCIL,http://opendatacommunities.org/id/unitary-authority/warrington,FWB,Care Purchase Budget,54490,CP Free Nursing Care External,443500,20/09/2019,1900470733,632.64,Barchester Healthcare Cheshire Gran,111378
WARRINGTON BOROUGH COUNCIL,http://opendatacommunities.org/id/unitary-authority/warrington,FWB,Care Purchase Budget,54490,CP Free Nursing Care External,443500,20/09/2019,1900470735,632.64,Barchester Healthcare Cheshire Gran,111378
WARRINGTON BOROUGH COUNCIL,http://opendatacommunities.org/id/unitary-authority/warrington,FWB,Care Purchase Budget,54490,CP Free Nursing Care External,443500,15/09/2019,1900468774,632.64,Barchester Healthcare Cheshire Gran,111378
WARRINGTON BOROUGH COUNCIL,http://opendatacommunities.org/id/unitary-authority/warrington,FWB,Care Purchase Budget,54490,CP Free Nursing Care External,443500,16/09/2019,1900468833,632.64,Barchester Healthcare Cheshire Gran,111378
WARRINGTON BOROUGH COUNCIL,http://opendatacommunities.org/id/unitary-authority/warrington,FWB,Care Purchase Budget,54490,CP Free Nursing Care External,443500,16/09/2019,1900468834,632.64,Barchester Healthcare Cheshire Gran,111378
WARRINGTON BOROUGH COUNCIL,http://opendatacommunities.org/id/unitary-authority/warrington,FWB,Care Purchase West Team,54080,CP-Nursing Care-External,441200,16/09/2019,1900469245,3103.36,Barchester Homes Westvale House,105246
WARRINGTON BOROUGH COUNCIL,http://opendatacommunities.org/id/unitary-authority/warrington,FWB,Care Purchase West Team,54080,CP-Nursing Care-External,441200,16/09/2019,1900469099,3087.36,Barchester Homes Westvale House,105246
WARRINGTON BOROUGH COUNCIL,http://opendatacommunities.org/id/unitary-authority/warrington,FWB,Care Purchase West Team,54080,CP-Nursing Care-External,441200,16/09/2019,1900469051,2900,Barchester Homes Westvale House,105246
WARRINGTON BOROUGH COUNCIL,http://opendatacommunities.org/id/unitary-authority/warrington,FWB,Care Purchase South Team,54070,CP-Nursing Care-External,441200,16/09/2019,1900469254,2556,Barchester Homes Westvale House,105246
WARRINGTON BOROUGH COUNCIL,http://opendatacommunities.org/id/unitary-authority/warrington,FWB,Care Purchase West Team,54080,CP-Nursing Care-External,441200,16/09/2019,1900469248,2536,Barchester Homes Westvale House,105246
WARRINGTON BOROUGH COUNCIL,http://opendatacommunities.org/id/unitary-authority/warrington,FWB,Care Purchase South Team,54070,CP-Nursing Care-External,441200,16/09/2019,1900469161,2456,Barchester Homes Westvale House,105246
WARRINGTON BOROUGH COUNCIL,http://opendatacommunities.org/id/unitary-authority/warrington,FWB,Care Purchase Central Team,54050,CP-Nursing Care-External,441200,16/09/2019,1900469261,2256,Barchester Homes Westvale House,105246
WARRINGTON BOROUGH COUNCIL,http://opendatacommunities.org/id/unitary-authority/warrington,FWB,Care Purchase Central Team,54050,CP-Nursing Care-External,441200,16/09/2019,1900469415,2256,Barchester Homes Westvale House,105246
WARRINGTON BOROUGH COUNCIL,http://opendatacommunities.org/id/unitary-authority/warrington,FWB,Care Purchase Central Team,54050,CP-Nursing Care-External,441200,16/09/2019,1900469121,2256,Barchester Homes Westvale House,105246
WARRINGTON BOROUGH COUNCIL,http://opendatacommunities.org/id/unitary-authority/warrington,FWB,Care Purchase East Team,54060,CP-Nursing Care-External,441200,16/09/2019,1900469388,2256,Barchester Homes Westvale House,105246
WARRINGTON BOROUGH COUNCIL,http://opendatacommunities.org/id/unitary-authority/warrington,FWB,Care Purchase East Team,54060,CP-Nursing Care-External,441200,16/09/2019,1900469211,2256,Barchester Homes Westvale House,105246
WARRINGTON BOROUGH COUNCIL,http://opendatacommunities.org/id/unitary-authority/warrington,FWB,Care Purchase South Team,54070,CP-Nursing Care-External,441200,16/09/2019,1900469015,2256,Barchester Homes Westvale House,105246
WARRINGTON BOROUGH COUNCIL,http://opendatacommunities.org/id/unitary-authority/warrington,FWB,Care Purchase West Team,54080,CP-Nursing Care-External,441200,16/09/2019,1900468912,2256,Barchester Homes Westvale House,105246
WARRINGTON BOROUGH COUNCIL,http://opendatacommunities.org/id/unitary-authority/warrington,FWB,Care Purchase West Team,54080,CP-Nursing Care-External,441200,16/09/2019,1900468916,2256,Barchester Homes Westvale House,105246
WARRINGTON BOROUGH COUNCIL,http://opendatacommunities.org/id/unitary-authority/warrington,FWB,Care Purchase West Team,54080,CP-Nursing Care-External,441200,16/09/2019,1900469002,2256,Barchester Homes Westvale House,105246
WARRINGTON BOROUGH COUNCIL,http://opendatacommunities.org/id/unitary-authority/warrington,FWB,Care Purchase West Team,54080,CP-Nursing Care-External,441200,16/09/2019,1900469253,2256,Barchester Homes Westvale House,105246
WARRINGTON BOROUGH COUNCIL,http://opendatacommunities.org/id/unitary-authority/warrington,FWB,Care Purchase West Team,54080,CP-Nursing Care-External,441200,16/09/2019,1900469033,2256,Barchester Homes Westvale House,105246
WARRINGTON BOROUGH COUNCIL,http://opendatacommunities.org/id/unitary-authority/warrington,FWB,Care Purchase West Team,54080,CP-Nursing Care-External,441200,16/09/2019,1900469122,2256,Barchester Homes Westvale House,105246
WARRINGTON BOROUGH COUNCIL,http://opendatacommunities.org/id/unitary-authority/warrington,FWB,Care Purchase West Team,54080,CP-Nursing Care-External,441200,16/09/2019,1900469392,2256,Barchester Homes Westvale House,105246
WARRINGTON BOROUGH COUNCIL,http://opendatacommunities.org/id/unitary-authority/warrington,FWB,Care Purchase West Team,54080,CP-Nursing Care-External,441200,16/09/2019,1900469104,2256,Barchester Homes Westvale House,105246
WARRINGTON BOROUGH COUNCIL,http://opendatacommunities.org/id/unitary-authority/warrington,FWB,Care Purchase West Team,54080,CP-Nursing Care-External,441200,16/09/2019,1900469123,2256,Barchester Homes Westvale House,105246
WARRINGTON BOROUGH COUNCIL,http://opendatacommunities.org/id/unitary-authority/warrington,FWB,Care Purchase West Team,54080,CP-Nursing Care-External,441200,16/09/2019,1900469129,2256,Barchester Homes Westvale House,105246
WARRINGTON BOROUGH COUNCIL,http://opendatacommunities.org/id/unitary-authority/warrington,FWB,Care Purchase West Team,54080,CP-Nursing Care-External,441200,16/09/2019,1900469194,2256,Barchester Homes Westvale House,105246
WARRINGTON BOROUGH COUNCIL,http://opendatacommunities.org/id/unitary-authority/warrington,FWB,Care Purchase West Team,54080,CP-Nursing Care-External,441200,16/09/2019,1900469093,2256,Barchester Homes Westvale House,105246
WARRINGTON BOROUGH COUNCIL,http://opendatacommunities.org/id/unitary-authority/warrington,FWB,Care Purchase West Team,54080,CP-Nursing Care-External,441200,16/09/2019,1900468887,2256,Barchester Homes Westvale House,105246
WARRINGTON BOROUGH COUNCIL,http://opendatacommunities.org/id/unitary-authority/warrington,FWB,Care Purchase Budget,54490,CP Free Nursing Care External,443500,26/09/2019,1900471977,11234.55,Barchester Homes Westvale House,105246
WARRINGTON BOROUGH COUNCIL,http://opendatacommunities.org/id/unitary-authority/warrington,FWB,Care Purchase Budget,54490,CP Free Nursing Care External,443500,14/09/2019,1900468697,9933.6,Barchester Homes Westvale House,105246
WARRINGTON BOROUGH COUNCIL,http://opendatacommunities.org/id/unitary-authority/warrington,FWB,Care Purchase Budget,54490,CP Free Nursing Care External,443500,26/09/2019,1900471976,9436.92,Barchester Homes Westvale House,105246
WARRINGTON BOROUGH COUNCIL,http://opendatacommunities.org/id/unitary-authority/warrington,FWB,Care Purchase Budget,54490,CP Free Nursing Care External,443500,16/09/2019,1900469381,662.24,Barchester Homes Westvale House,105246
WARRINGTON BOROUGH COUNCIL,http://opendatacommunities.org/id/unitary-authority/warrington,FWB,Care Purchase Budget,54490,CP Free Nursing Care External,443500,16/09/2019,1900469386,662.24,Barchester Homes Westvale House,105246
WARRINGTON BOROUGH COUNCIL,http://opendatacommunities.org/id/unitary-authority/warrington,FWB,Care Purchase Budget,54490,CP Free Nursing Care External,443500,16/09/2019,1900469390,662.24,Barchester Homes Westvale House,105246
WARRINGTON BOROUGH COUNCIL,http://opendatacommunities.org/id/unitary-authority/warrington,FWB,Care Purchase Budget,54490,CP Free Nursing Care External,443500,16/09/2019,1900469391,662.24,Barchester Homes Westvale House,105246
WARRINGTON BOROUGH COUNCIL,http://opendatacommunities.org/id/unitary-authority/warrington,FWB,Care Purchase Budget,54490,CP Free Nursing Care External,443500,16/09/2019,1900469393,662.24,Barchester Homes Westvale House,105246
WARRINGTON BOROUGH COUNCIL,http://opendatacommunities.org/id/unitary-authority/warrington,FWB,Care Purchase Budget,54490,CP Free Nursing Care External,443500,16/09/2019,1900469098,662.24,Barchester Homes Westvale House,105246
WARRINGTON BOROUGH COUNCIL,http://opendatacommunities.org/id/unitary-authority/warrington,FWB,Care Purchase Budget,54490,CP Free Nursing Care External,443500,16/09/2019,1900469101,662.24,Barchester Homes Westvale House,105246
WARRINGTON BOROUGH COUNCIL,http://opendatacommunities.org/id/unitary-authority/warrington,FWB,Care Purchase Budget,54490,CP Free Nursing Care External,443500,16/09/2019,1900469117,662.24,Barchester Homes Westvale House,105246
WARRINGTON BOROUGH COUNCIL,http://opendatacommunities.org/id/unitary-authority/warrington,FWB,Care Purchase Budget,54490,CP Free Nursing Care External,443500,16/09/2019,1900469164,662.24,Barchester Homes Westvale House,105246
WARRINGTON BOROUGH COUNCIL,http://opendatacommunities.org/id/unitary-authority/warrington,FWB,Care Purchase Budget,54490,CP Free Nursing Care External,443500,16/09/2019,1900469166,662.24,Barchester Homes Westvale House,105246
WARRINGTON BOROUGH COUNCIL,http://opendatacommunities.org/id/unitary-authority/warrington,FWB,Care Purchase Budget,54490,CP Free Nursing Care External,443500,16/09/2019,1900469175,662.24,Barchester Homes Westvale House,105246
WARRINGTON BOROUGH COUNCIL,http://opendatacommunities.org/id/unitary-authority/warrington,FWB,Care Purchase Budget,54490,CP Free Nursing Care External,443500,16/09/2019,1900469220,662.24,Barchester Homes Westvale House,105246
WARRINGTON BOROUGH COUNCIL,http://opendatacommunities.org/id/unitary-authority/warrington,FWB,Care Purchase Budget,54490,CP Free Nursing Care External,443500,16/09/2019,1900469247,662.24,Barchester Homes Westvale House,105246
WARRINGTON BOROUGH COUNCIL,http://opendatacommunities.org/id/unitary-authority/warrington,FWB,Care Purchase Budget,54490,CP Free Nursing Care External,443500,16/09/2019,1900469289,662.24,Barchester Homes Westvale House,105246
WARRINGTON BOROUGH COUNCIL,http://opendatacommunities.org/id/unitary-authority/warrington,FWB,Care Purchase Budget,54490,CP Free Nursing Care External,443500,16/09/2019,1900468861,662.24,Barchester Homes Westvale House,105246
WARRINGTON BOROUGH COUNCIL,http://opendatacommunities.org/id/unitary-authority/warrington,FWB,Care Purchase Budget,54490,CP Free Nursing Care External,443500,16/09/2019,1900468881,662.24,Barchester Homes Westvale House,105246
WARRINGTON BOROUGH COUNCIL,http://opendatacommunities.org/id/unitary-authority/warrington,FWB,Care Purchase Budget,54490,CP Free Nursing Care External,443500,16/09/2019,1900468894,662.24,Barchester Homes Westvale House,105246
WARRINGTON BOROUGH COUNCIL,http://opendatacommunities.org/id/unitary-authority/warrington,FWB,Care Purchase Budget,54490,CP Free Nursing Care External,443500,16/09/2019,1900468935,662.24,Barchester Homes Westvale House,105246
WARRINGTON BOROUGH COUNCIL,http://opendatacommunities.org/id/unitary-authority/warrington,FWB,Care Purchase Budget,54490,CP Free Nursing Care External,443500,16/09/2019,1900468971,662.24,Barchester Homes Westvale House,105246
WARRINGTON BOROUGH COUNCIL,http://opendatacommunities.org/id/unitary-authority/warrington,FWB,Care Purchase Budget,54490,CP Free Nursing Care External,443500,16/09/2019,1900469054,662.24,Barchester Homes Westvale House,105246
WARRINGTON BOROUGH COUNCIL,http://opendatacommunities.org/id/unitary-authority/warrington,FWB,Care Purchase Budget,54490,CP Free Nursing Care External,443500,16/09/2019,1900469185,662.24,Barchester Homes Westvale House,105246
